{"text_format":"1","workbook":"xlsx","n_sheets":5,"sheets":["Notes","Areas","Trusts","Categories","BS"],"not_rendered":{"charts":0,"images":0,"macros":1,"external_links":2,"defined_names":8,"comments":0,"pivot_tables":0},"unopened":[],"bounds":{"document_bytes":16777216,"sheet_cells":100000,"rows_first":2000,"rows_last":500,"rows_between":2000,"halvings":0,"cell_chars":16384,"cell_head_chars":4096},"cells_cut":0,"cells_raw":0,"read":"whole","date_system":"1900"}

{"sheet":"Notes","index":0,"n_rows":3,"n_cols":7,"rows_kept":3,"cut":false,"hidden":false,"merged":[]}
[]
[" Community Health Friends and Family Test (FFT) data - January 2015"]
[null,null,null,null,null,null,"     Show data for:"]

{"sheet":"Areas","index":1,"n_rows":40,"n_cols":14,"rows_kept":40,"cut":false,"hidden":false,"merged":[[9,8,9,13],[9,1,10,1],[9,2,10,2],[9,3,10,3],[9,4,10,4],[9,5,10,5],[9,6,10,6]]}
[null,"Friends and Family Test - Community Health          January 2015",null,null,null,null,null,"Contact: FFT data team - england.friendsandfamilytest@nhs.net"]
[]
[]
[null,null,"Show data for:",null,null,null,null,null,"(Collection mode data is shown with Trusts data)"]
[]
[null,null,null,null,null,"Area:"]
[null,null,"      Sort data by:           ",null,null,"     Filter data by -    Trust:","  N/A"]
[null,null,null,null,null,"Category:","  N/A"]
[]
[null,"Area Team Code","Area Team Name","Total Responses","Total Eligible","Percentage Recommended","Percentage Not  Recommended",null,"Breakdown of Responses"]
[null,null,null,null,null,null,null,null,"Extremely Likely","Likely","Neither","Unlikely","Extremely Unlikely","Don't Know"]
[null,null,"England (including Independent Sector Providers)",73282,2429988,0.95690619797494614,1.4560192134494146E-2,null,56514,13610,1199,566,501,892]
[null,null,"England (excluding Independent Sector Providers)",61789,2159732,0.95504054119665316,1.4695172279855638E-2,null,47524,11487,1061,501,407,809]
[null,null,"Selection (excluding suppressed data)",{"$f":"SUBTOTAL(9,D15:D40)","v":73282},{"$f":"SUBTOTAL(9,E15:E40)","v":2429988},{"$f":"IFERROR((I14+J14)/SUM(I14:N14),\"N/A\")","v":0.95690619797494614},{"$f":"IFERROR((L14+M14)/SUM(I14:N14),\"N/A\")","v":1.4560192134494146E-2},null,{"$f":"SUBTOTAL(9,I15:I40)","v":56514},{"$f":"SUBTOTAL(9,J15:J40)","v":13610},1199,566,501,892]
[null,"Q44","Cheshire, Warrington And Wirral Area Team",1085,83065,0.91981566820276495,4.7004608294930875E-2,null,850,148,23,21,30,13]
[null,"Q45","Durham, Darlington And Tees Area Team",1799,12912,0.97943301834352414,3.8910505836575876E-3,null,1491,271,7,2,5,23]
[null,"Q46","Greater Manchester Area Team",4500,117119,0.93977777777777782,1.9777777777777776E-2,null,3542,687,129,40,49,53]
[null,"Q47","Lancashire Area Team",1732,78839,0.96939953810623558,7.5057736720554272E-3,null,1406,273,20,6,7,20]
[null,"Q48","Merseyside Area Team",246,64783,0.97560975609756095,8.130081300813009E-3,null,171,69,3,1,1,1]
[null,"Q49","Cumbria, Northumberland, Tyne And Wear Area Team",2626,54609,0.97753236862147752,6.4737242955064736E-3,null,2192,375,18,12,5,24]
[null,"Q50","North Yorkshire And Humber Area Team",1023,34424,0.98240469208211145,1.9550342130987292E-3,null,781,224,6,1,1,10]
[null,"Q51","South Yorkshire And Bassetlaw Area Team",2455,51409,0.90264765784114054,2.810590631364562E-2,null,1680,536,89,29,40,81]
[null,"Q52","West Yorkshire Area Team",2391,84096,0.94228356336260977,1.7565872020075281E-2,null,1756,497,55,16,26,41]
[null,"Q53","Arden, Herefordshire And Worcestershire Area Team",944,51053,0.97139830508474578,6.3559322033898309E-3,null,738,179,7,3,3,14]
[null,"Q54","Birmingham And The Black Country Area Team",1946,94234,0.93371017471736895,2.3124357656731757E-2,null,1398,419,53,28,17,31]
[null,"Q55","Derbyshire And Nottinghamshire Area Team",4627,135618,0.97925221525826667,4.3224551545277719E-3,null,4075,456,58,11,9,18]
[null,"Q56","East Anglia Area Team",1709,83927,0.97425394967817436,7.0216500877706258E-3,null,1353,312,21,2,10,11]
[null,"Q57","Essex Area Team",687,53764,0.97962154294032022,1.1644832605531296E-2,null,556,117,6,5,3,0]
[null,"Q58","Hertfordshire And The South Midlands Area Team",5181,95030,0.96834587917390469,4.8253232966608767E-3,null,4208,809,75,13,12,64]
[null,"Q59","Leicestershire And Lincolnshire Area Team",1661,89167,0.96508127633955454,6.020469596628537E-3,null,1289,314,26,6,4,22]
[null,"Q60","Shropshire And Staffordshire Area Team",2792,143049,0.9652578796561605,6.8051575931232094E-3,null,2155,540,38,13,6,40]
[null,"Q64","Bath, Gloucestershire, Swindon And Wiltshire Area Team",2013,50978,0.96224540486835564,1.7883755588673621E-2,null,1615,322,28,14,22,12]
[null,"Q65","Bristol, North Somerset, Somerset And South Gloucestershire Area Team",1119,1119,0.88203753351206438,0.1126005361930295,null,134,853,2,118,8,4]
[null,"Q66","Devon, Cornwall And Isles Of Scilly Area Team",1754,60876,0.97947548460661349,6.8415051311288486E-3,null,1526,192,17,5,7,7]
[null,"Q67","Kent And Medway Area Team",4112,75000,0.97203307392996108,7.0525291828793775E-3,null,3205,792,49,16,13,37]
[null,"Q68","Surrey And Sussex Area Team",2959,55559,0.96012166272389321,6.7590402162892868E-3,null,2347,494,41,12,8,57]
[null,"Q69","Thames Valley Area Team",2121,57586,0.91560584629891562,2.0273455917020275E-2,null,1545,397,54,26,17,82]
[null,"Q70","Wessex Area Team",3940,163914,0.95913705583756348,9.1370558375634525E-3,null,3126,653,77,19,17,48]
[null,"Q71","London Area Team",6367,367602,0.93340662792523954,2.6543112926024817E-2,null,4385,1558,159,82,87,96]
[null,"IS1","Independent Sector Provider",11493,270256,0.9669363960671713,1.3834507961367789E-2,null,8990,2123,138,65,94,83]

{"sheet":"Trusts","index":2,"n_rows":130,"n_cols":23,"rows_kept":130,"cut":false,"hidden":false,"merged":[[9,17,10,17],[9,18,10,18],[9,19,10,19],[9,20,10,20],[9,21,10,21],[9,22,10,22],[8,16,8,22],[9,1,10,1],[9,2,10,2],[9,3,10,3],[9,4,10,4],[9,5,10,5],[9,6,10,6],[9,7,10,7],[9,9,9,14],[9,16,10,16]]}
[null,"Friends and Family Test - Community Health          January 2015",null,null,null,null,null,"Contact: FFT data team - england.friendsandfamilytest@nhs.net"]
[]
[]
[null,null,null,"Show data for:",null,null,null,null,null,"(Collection mode data is shown with Trusts data)"]
[]
[null,null,null,null,null,null,"Area:"]
[null,null,"      Sort data by:           ",null,null,null,"     Filter data by -    Trust:"]
[null,null,null,null,null,null,"Category:","  N/A"]
[null,null,null,null,null,null,null,null,null,null,null,null,null,null,null,null,"Mode of Collection"]
[null,"Area Team Code","Trust Code","Trust Name","Total Responses","Total Eligible","Percentage Recommended","Percentage Not  Recommended",null,"Breakdown of Responses",null,null,null,null,null,null,"SMS/Text / Smartphone App","Electronic tablet/kiosk in care or at discharge","Paper / postcard in care or at discharge","Paper survey sent to the patients home","Telephone survey once patient is home","Online survey once patient is home","Other"]
[null,null,null,null,null,null,null,null,null,"Extremely Likely","Likely","Neither","Unlikely","Extremely Unlikely","Don't Know"]
[null,null,null,"England (including Independent Sector Providers)",73282,2429988,0.95690619797494614,1.4560192134494146E-2,null,56514,13610,1199,566,501,892,null,{"$f":" SUM(Q15:Q200)","v":4118},{"$f":" SUM(R15:R200)","v":5930},45378,6795,3261,4171,2748]
[null,null,null,"England (excluding Independent Sector Providers)",61789,2159732,0.95504054119665316,1.4695172279855638E-2,null,47524,11487,1061,501,407,809,null,{"$f":"SUMIF($B:$B,\"<>IS1\",Q15:Q200)","v":4118},5862,44824,6777,3261,4167,2003]
[null,null,null,"Selection (excluding suppressed data)",{"$f":"SUBTOTAL(9,E15:E3000)","v":73282},{"$f":"SUBTOTAL(9,F15:F3000)","v":2429988},{"$f":"IFERROR((J14+K14)/SUM(J14:O14),\"N/A\")","v":0.95656137346169257},{"$f":"IFERROR((M14+N14)/SUM(J14:O14),\"N/A\")","v":1.4737365506001299E-2},null,{"$f":"SUBTOTAL(9,J15:J3000)","v":55818},13438,1191,566,501,887,null,{"$f":"SUBTOTAL(9,Q15:Q3000)","v":4118},5930,45378,6795,3261,4171,2748]
[null,"Q44","RTV","5 BOROUGHS PARTNERSHIP NHS FOUNDATION TRUST",399,33830,0.98245614035087714,2.5062656641604009E-3,null,346,46,1,1,0,5,null,0,0,399,0,0,0,0]
[null,"Q44","RXA","CHESHIRE AND WIRRAL PARTNERSHIP NHS FOUNDATION TRUST",5,15580,0.6,0,null,3,0,0,0,0,2,null,0,0,5,0,0,0,0]
[null,"Q44","RJN","EAST CHESHIRE NHS TRUST",227,1701,0.89867841409691629,5.2863436123348019E-2,null,158,46,10,6,6,1,null,224,0,0,0,3,0,0]
[null,"Q44","RY7","WIRRAL COMMUNITY NHS TRUST",454,31954,0.87885462555066074,8.3700440528634359E-2,null,343,56,12,14,24,5,null,0,102,352,0,0,0,0]
[null,"Q45","RXP","COUNTY DURHAM AND DARLINGTON NHS FOUNDATION TRUST",1749,8899,0.98284734133790741,3.4305317324185248E-3,null,1460,259,5,2,4,19,null,0,0,1749,0,0,0,0]
[null,"Q45","RVW","NORTH TEES AND HARTLEPOOL NHS FOUNDATION TRUST",20,27,0.75,0.05,null,9,6,1,0,1,3,null,0,0,20,0,0,0,0]
[null,"Q45","RTR","SOUTH TEES HOSPITALS NHS FOUNDATION TRUST",30,3986,0.93333333333333335,0,null,22,6,1,0,0,1,null,0,0,21,9,0,0,0]
[null,"Q46","RMC","BOLTON NHS FOUNDATION TRUST",735,24101,0.94013605442176873,2.0408163265306121E-2,null,570,121,20,8,7,9,null,735,0,0,0,0,0,0]
[null,"Q46","RY2","BRIDGEWATER COMMUNITY HEALTHCARE NHS FOUNDATION TRUST",1975,41275,0.9691139240506329,7.5949367088607592E-3,null,1646,268,41,6,9,5,null,0,0,0,1965,0,10,0]
[null,"Q46","RW3","CENTRAL MANCHESTER UNIVERSITY HOSPITALS NHS FOUNDATION TRUST",14,9804,0.8571428571428571,7.1428571428571425E-2,null,8,4,1,0,1,0,null,0,3,0,0,0,11,0]
[null,"Q46","RW6","PENNINE ACUTE HOSPITALS NHS TRUST",98,624,0.87755102040816324,2.0408163265306121E-2,null,67,19,6,1,1,4,null,19,0,0,0,79,0,0]
[null,"Q46","RT2","PENNINE CARE NHS FOUNDATION TRUST",826,826,0.92615012106537531,2.5423728813559324E-2,null,642,123,22,6,15,18,null,645,50,131,0,0,0,0]
[null,"Q46","RM3","SALFORD ROYAL NHS FOUNDATION TRUST",139,19516,0.92805755395683454,4.3165467625899283E-2,null,114,15,3,2,4,1,null,139,0,0,0,0,0,0]
[null,"Q46","RWJ","STOCKPORT NHS FOUNDATION TRUST",698,20933,0.88681948424068768,3.8681948424068767E-2,null,485,134,36,17,10,16,null,429,0,8,0,261,0,0]
[null,"Q46","RM2","UNIVERSITY HOSPITAL OF SOUTH MANCHESTER NHS FOUNDATION TRUST",15,40,0.8666666666666667,0.13333333333333333,null,10,3,0,0,2,0,null,0,0,15,0,0,0,0]
[null,"Q47","RXL","BLACKPOOL TEACHING HOSPITALS NHS FOUNDATION TRUST",332,22644,0.95783132530120485,9.0361445783132526E-3,null,269,49,3,3,0,8,null,19,69,205,0,39,0,0]
[null,"Q47","RXR","EAST LANCASHIRE HOSPITALS NHS TRUST",676,47410,0.9526627218934911,1.1834319526627219E-2,null,539,105,14,2,6,10,null,323,0,353,0,0,0,0]
[null,"Q47","RW5","LANCASHIRE CARE NHS FOUNDATION TRUST",724,8785,0.99033149171270718,2.7624309392265192E-3,null,598,119,3,1,1,2,null,0,0,724,0,0,0,0]
[null,"Q48","RY1","LIVERPOOL COMMUNITY HEALTH NHS TRUST",189,61400,0.96825396825396826,1.0582010582010581E-2,null,116,67,3,1,1,1,null,0,0,189,0,0,0,0]
[null,"Q48","RVY","SOUTHPORT AND ORMSKIRK HOSPITAL NHS TRUST",57,3383,1,0,null,55,2,0,0,0,0,null,0,0,57,0,0,0,0]
[null,"Q49","RNN","CUMBRIA PARTNERSHIP NHS FOUNDATION TRUST",322,21440,0.99068322981366463,6.2111801242236021E-3,null,263,56,0,2,0,1,null,0,167,155,0,0,0,0]
[null,"Q49","RTF","NORTHUMBRIA HEALTHCARE NHS FOUNDATION TRUST",593,11464,0.98650927487352447,5.0590219224283303E-3,null,539,46,4,1,2,1,null,0,0,589,4,0,0,0]
[null,"Q49","RE9","SOUTH TYNESIDE NHS FOUNDATION TRUST",1662,20724,0.97111913357400725,7.2202166064981952E-3,null,1350,264,14,9,3,22,null,0,0,1662,0,0,0,0]
[null,"Q49","RTD","THE NEWCASTLE UPON TYNE HOSPITALS NHS FOUNDATION TRUST",49,981,1,0,null,40,9,0,0,0,0,null,0,0,49,0,0,0,0]
[null,"Q50","RCD","HARROGATE AND DISTRICT NHS FOUNDATION TRUST",165,2161,0.9939393939393939,0,null,122,42,0,0,0,1,null,0,0,0,0,165,0,0]
[null,"Q50","RV9","HUMBER NHS FOUNDATION TRUST",340,10525,0.98529411764705888,2.9411764705882353E-3,null,270,65,1,0,1,3,null,0,9,331,0,0,0,0]
[null,"Q50","RJL","NORTHERN LINCOLNSHIRE AND GOOLE NHS FOUNDATION TRUST",406,17531,0.97783251231527091,0,null,289,108,3,0,0,6,null,0,0,406,0,0,0,0]
[null,"Q50","RCB","YORK TEACHING HOSPITAL NHS FOUNDATION TRUST",112,4207,0.9732142857142857,8.9285714285714281E-3,null,100,9,2,1,0,0,null,0,0,110,0,0,2,0]
[null,"Q51","TAH","SHEFFIELD HEALTH & SOCIAL CARE NHS FOUNDATION TRUST",4,602,"*","*",null,"*","*","*","*","*","*",null,"*","*","*","*","*","*","*"]
[null,"Q51","RHQ","SHEFFIELD TEACHING HOSPITALS NHS FOUNDATION TRUST",1650,7183,0.86242424242424243,4.1818181818181817E-2,null,1047,376,82,29,40,76,null,535,0,5,0,1110,0,0]
[null,"Q51","RFR","THE ROTHERHAM NHS FOUNDATION TRUST",801,43624,0.98501872659176026,0,null,"*","*","*","*","*","*",null,"*","*","*","*","*","*","*"]
[null,"Q52","RCF","AIREDALE NHS FOUNDATION TRUST",178,1388,0.9887640449438202,0,null,152,24,2,0,0,0,null,0,0,178,0,0,0,0]
[null,"Q52","TAD","BRADFORD DISTRICT CARE TRUST",90,33339,1,0,null,73,17,0,0,0,0,null,0,24,27,0,0,39,0]
[null,"Q52","RWY","CALDERDALE AND HUDDERSFIELD NHS FOUNDATION TRUST",650,15311,0.91230769230769226,4.9230769230769231E-2,null,437,156,17,10,22,8,null,650,0,0,0,0,0,0]
[null,"Q52","RY6","LEEDS COMMUNITY HEALTHCARE NHS TRUST",10,844,0.6,0,null,1,5,4,0,0,0,null,0,0,10,0,0,0,0]
[null,"Q52","RXF","MID YORKSHIRE HOSPITALS NHS TRUST",1045,30095,0.93875598086124401,7.6555023923444978E-3,null,749,232,26,5,3,30,null,0,0,1042,0,0,3,0]
[null,"Q52","RXG","SOUTH WEST YORKSHIRE PARTNERSHIP NHS FOUNDATION TRUST",418,3119,0.97368421052631582,4.7846889952153108E-3,null,344,63,6,1,1,3,null,0,0,418,0,0,0,0]
[null,"Q53","RYG","COVENTRY AND WARWICKSHIRE PARTNERSHIP NHS TRUST",248,13693,0.967741935483871,1.2096774193548387E-2,null,183,57,1,1,2,4,null,0,0,248,0,0,0,0]
[null,"Q53","RJC","SOUTH WARWICKSHIRE NHS FOUNDATION TRUST",491,2088,0.97352342158859473,2.0366598778004071E-3,null,399,79,5,0,1,7,null,0,0,491,0,0,0,0]
[null,"Q53","R1A","WORCESTERSHIRE HEALTH AND CARE NHS TRUST",8,27646,1,0,null,6,2,0,0,0,0,null,0,0,0,8,0,0,0]
[null,"Q53","RLQ","WYE VALLEY NHS TRUST",197,7626,0.96954314720812185,1.015228426395939E-2,null,150,41,1,2,0,3,null,0,0,197,0,0,0,0]
[null,"Q54","RYW","BIRMINGHAM COMMUNITY HEALTHCARE NHS TRUST",925,55125,0.94594594594594594,1.5135135135135135E-2,null,669,206,24,10,4,12,null,0,819,105,0,1,0,0]
[null,"Q54","TAJ","BLACK COUNTRY PARTNERSHIP NHS FOUNDATION TRUST",15,2900,0.93333333333333335,0,null,7,7,0,0,0,1,null,0,0,0,15,0,0,0]
[null,"Q54","RR1","HEART OF ENGLAND NHS FOUNDATION TRUST",152,5736,0.95394736842105265,1.9736842105263157E-2,null,120,25,4,2,1,0,null,152,0,0,0,0,0,0]
[null,"Q54","RNA","THE DUDLEY GROUP NHS FOUNDATION TRUST",53,13302,0.8867924528301887,3.7735849056603772E-2,null,36,11,3,1,1,1,null,0,0,53,0,0,0,0]
[null,"Q54","RL4","THE ROYAL WOLVERHAMPTON NHS TRUST",459,2967,0.88017429193899777,5.6644880174291937E-2,null,309,95,20,15,11,9,null,133,0,0,0,326,0,0]
[null,"Q54","RBK","WALSALL HEALTHCARE NHS TRUST",342,14204,0.9707602339181286,0,null,257,75,2,0,0,8,null,0,0,342,0,0,0,0]
[null,"Q55","RTG","DERBY HOSPITALS NHS FOUNDATION TRUST",20,918,1,0,null,"*","*","*","*","*","*",null,"*","*","*","*","*","*","*"]
[null,"Q55","RY8","DERBYSHIRE COMMUNITY HEALTH SERVICES NHS FOUNDATION TRUST",2049,52644,0.97950219619326506,5.3684724255734506E-3,null,1896,111,25,4,7,6,null,0,22,2011,7,6,0,3]
[null,"Q55","RXM","DERBYSHIRE HEALTHCARE NHS FOUNDATION TRUST",3,7714,"*","*",null,"*","*","*","*","*","*",null,"*","*","*","*","*","*","*"]
[null,"Q55","RX1","NOTTINGHAM UNIVERSITY HOSPITALS NHS TRUST",832,1229,0.96153846153846156,6.0096153846153849E-3,null,683,117,15,3,2,12,null,0,0,832,0,0,0,0]
[null,"Q55","RHA","NOTTINGHAMSHIRE HEALTHCARE NHS FOUNDATION TRUST",1723,73113,0.98723157283807317,2.3215322112594312E-3,null,1479,222,18,4,0,0,null,0,0,1723,0,0,0,0]
[null,"Q56","RT1","CAMBRIDGESHIRE AND PETERBOROUGH NHS FOUNDATION TRUST",99,3994,0.97979797979797978,0,null,70,27,2,0,0,0,null,0,87,12,0,0,0,0]
[null,"Q56","RYV","CAMBRIDGESHIRE COMMUNITY SERVICES NHS TRUST",995,47077,0.97085427135678393,7.0351758793969852E-3,null,768,198,13,0,7,9,null,0,78,817,97,0,3,0]
[null,"Q56","RY3","NORFOLK COMMUNITY HEALTH AND CARE NHS TRUST",615,32856,0.9788617886178862,8.130081300813009E-3,null,515,87,6,2,3,2,null,0,0,607,0,0,8,0]
[null,"Q57","RWN","SOUTH ESSEX PARTNERSHIP UNIVERSITY NHS FOUNDATION TRUST",687,53764,0.97962154294032022,1.1644832605531296E-2,null,556,117,6,5,3,0,null,0,0,0,687,0,0,0]
[null,"Q58","RY4","HERTFORDSHIRE COMMUNITY NHS TRUST",2990,67312,0.96588628762541806,3.0100334448160534E-3,null,2370,518,49,7,2,44,null,0,0,0,2475,0,515,0]
[null,"Q58","RP1","NORTHAMPTONSHIRE HEALTHCARE NHS FOUNDATION TRUST",2191,27718,0.97170241898676402,7.3026015518028297E-3,null,1838,291,26,6,10,20,null,0,8,2152,0,0,31,0]
[null,"Q59","RT5","LEICESTERSHIRE PARTNERSHIP NHS TRUST",934,42368,0.97323340471092079,5.3533190578158455E-3,null,733,176,9,2,3,11,null,0,0,874,37,0,0,23]
[null,"Q59","RY5","LINCOLNSHIRE COMMUNITY HEALTH SERVICES NHS TRUST",727,46799,0.9546079779917469,6.8775790921595595E-3,null,556,138,17,4,1,11,null,0,0,726,0,0,0,1]
[null,"Q60","R1D","SHROPSHIRE COMMUNITY HEALTH NHS TRUST",967,22700,0.95656670113753883,9.3071354705274046E-3,null,813,112,10,5,4,23,null,0,0,965,0,0,2,0]
[null,"Q60","RRE","SOUTH STAFFORDSHIRE AND SHROPSHIRE HEALTHCARE NHS FOUNDATION TRUST",46,1142,1,0,null,38,8,0,0,0,0,null,0,0,46,0,0,0,0]
[null,"Q60","R1E","STAFFORDSHIRE AND STOKE ON TRENT PARTNERSHIP NHS TRUST",1779,119207,0.96908375491849352,5.621135469364812E-3,null,1304,420,28,8,2,17,null,0,38,0,0,0,1741,0]
[null,"Q64","R1J","GLOUCESTERSHIRE CARE SERVICES NHS TRUST",2013,34868,0.96224540486835564,1.7883755588673621E-2,null,1615,322,28,14,22,12,null,115,16,1562,121,0,199,0]
[null,"Q64","RN3","GREAT WESTERN HOSPITALS NHS FOUNDATION TRUST",0,16110,"NA","NA",null,0,0,0,0,0,0,null,0,0,0,0,0,0,0]
[null,"Q65","RH5","SOMERSET PARTNERSHIP NHS FOUNDATION TRUST",1119,1119,0.88203753351206438,0.1126005361930295,null,134,853,2,118,8,4,null,0,0,1119,0,0,0,0]
[null,"Q66","RJ8","CORNWALL PARTNERSHIP NHS FOUNDATION TRUST",49,2798,0.97959183673469385,0,null,"*","*","*","*","*","*",null,"*","*","*","*","*","*","*"]
[null,"Q66","RBZ","NORTHERN DEVON HEALTHCARE NHS TRUST",1164,25994,0.97938144329896903,7.7319587628865982E-3,null,1002,138,10,4,5,5,null,0,0,1047,117,0,0,0]
[null,"Q66","RYF","SOUTH WESTERN AMBULANCE SERVICE NHS FOUNDATION TRUST",4,9314,"*","*",null,"*","*","*","*","*","*",null,"*","*","*","*","*","*","*"]
[null,"Q66","R1G","TORBAY AND SOUTHERN DEVON HEALTH AND CARE NHS TRUST",537,22770,0.97951582867783982,5.5865921787709499E-3,null,478,48,6,1,2,2,null,0,0,537,0,0,0,0]
[null,"Q67","RYY","KENT COMMUNITY HEALTH NHS FOUNDATION TRUST",4112,75000,0.97203307392996108,7.0525291828793775E-3,null,3205,792,49,16,13,37,null,0,912,3173,27,0,0,0]
[null,"Q68","RXC","EAST SUSSEX HEALTHCARE NHS TRUST",218,15780,0.95871559633027525,1.3761467889908258E-2,null,178,31,4,3,0,2,null,0,82,136,0,0,0,0]
[null,"Q68","RDU","FRIMLEY HEALTH NHS FOUNDATION TRUST",18,188,1,0,null,18,0,0,0,0,0,null,0,0,18,0,0,0,0]
[null,"Q68","RDR","SUSSEX COMMUNITY NHS TRUST",2723,39591,0.95997062063900107,6.243114212265883E-3,null,2151,463,37,9,8,55,null,0,0,2721,0,0,2,0]
[null,"Q69","RWX","BERKSHIRE HEALTHCARE NHS FOUNDATION TRUST",1222,6979,0.97299509001636664,5.7283142389525366E-3,null,1016,173,15,6,1,11,null,0,247,975,0,0,0,0]
[null,"Q69","RXQ","BUCKINGHAMSHIRE HEALTHCARE NHS TRUST",53,17528,1,0,null,47,6,0,0,0,0,null,0,0,53,0,0,0,0]
[null,"Q69","RNU","OXFORD HEALTH NHS FOUNDATION TRUST",846,33079,0.82742316784869974,4.2553191489361701E-2,null,482,218,39,20,16,71,null,0,0,55,309,0,436,46]
[null,"Q70","RDY","DORSET HEALTHCARE UNIVERSITY NHS FOUNDATION TRUST",1825,67658,0.96,9.8630136986301367E-3,null,1504,248,33,11,7,22,null,0,255,10,0,0,570,990]
[null,"Q70","R1F","ISLE OF WIGHT NHS TRUST",141,6239,0.98581560283687941,7.0921985815602835E-3,null,119,20,1,0,1,0,null,0,47,94,0,0,0,0]
[null,"Q70","R1C","SOLENT NHS TRUST",580,47884,0.96379310344827585,8.6206896551724137E-3,null,430,129,6,3,2,10,null,0,3,577,0,0,0,0]
[null,"Q70","RW1","SOUTHERN HEALTH NHS FOUNDATION TRUST",1394,42133,0.9533715925394548,8.60832137733142E-3,null,1073,256,37,5,7,16,null,0,0,1394,0,0,0,0]
[null,"Q71","RRP","BARNET, ENFIELD AND HARINGEY MENTAL HEALTH NHS TRUST",209,10987,0.83732057416267947,9.5693779904306216E-3,null,116,59,6,1,1,26,null,0,0,0,0,0,209,0]
[null,"Q71","R1H","BARTS HEALTH NHS TRUST",363,6400,0.9614325068870524,8.2644628099173556E-3,null,286,63,10,0,3,1,null,0,0,363,0,0,0,0]
[null,"Q71","RV3","CENTRAL AND NORTH WEST LONDON NHS FOUNDATION TRUST",366,45891,0.93989071038251371,1.6393442622950821E-2,null,253,91,10,2,4,6,null,0,0,0,364,0,2,0]
[null,"Q71","RYX","CENTRAL LONDON COMMUNITY HEALTHCARE NHS TRUST",1610,60082,0.86832298136645958,7.515527950310559E-2,null,993,405,51,58,63,40,null,0,81,696,0,833,0,0]
[null,"Q71","RJ6","CROYDON HEALTH SERVICES NHS TRUST",331,20192,0.97885196374622352,6.0422960725075529E-3,null,272,52,1,2,0,4,null,0,0,331,0,0,0,0]
[null,"Q71","RJ1","GUY'S AND ST THOMAS' NHS FOUNDATION TRUST",148,3845,0.95270270270270274,1.3513513513513514E-2,null,88,53,5,2,0,0,null,0,0,26,0,0,122,0]
[null,"Q71","RQX","HOMERTON UNIVERSITY HOSPITAL NHS FOUNDATION TRUST",374,7895,0.98128342245989308,2.6737967914438501E-3,null,294,73,5,0,1,1,null,0,1,361,0,0,12,0]
[null,"Q71","RY9","HOUNSLOW AND RICHMOND COMMUNITY HEALTHCARE NHS TRUST",493,21493,0.95740365111561865,1.8255578093306288E-2,null,355,117,9,5,4,3,null,0,425,64,0,0,4,0]
[null,"Q71","RJ2","LEWISHAM AND GREENWICH NHS TRUST",722,7178,0.95152354570637121,1.5235457063711912E-2,null,495,192,21,5,6,3,null,0,0,722,0,0,0,0]
[null,"Q71","R1K","LONDON NORTH WEST HEALTHCARE NHS TRUST",200,23074,0.97499999999999998,5.0000000000000001E-3,null,137,58,2,1,0,2,null,0,0,200,0,0,0,0]
[null,"Q71","RAT","NORTH EAST LONDON NHS FOUNDATION TRUST",743,60867,0.95827725437415878,6.7294751009421266E-3,null,513,199,22,4,1,4,null,0,27,354,0,284,78,0]
[null,"Q71","RPG","OXLEAS NHS FOUNDATION TRUST",346,47618,0.98265895953757221,2.8901734104046241E-3,null,279,61,4,1,0,1,null,0,159,187,0,0,0,0]
[null,"Q71","RPY","THE ROYAL MARSDEN NHS FOUNDATION TRUST",72,19885,0.88888888888888884,2.7777777777777776E-2,null,43,21,5,1,1,1,null,0,0,0,0,62,10,0]
[null,"Q71","RKE","THE WHITTINGTON HOSPITAL NHS TRUST",163,29224,0.95705521472392641,1.8404907975460124E-2,null,108,48,3,0,3,1,null,0,163,0,0,0,0,0]
[null,"Q71","RFW","WEST MIDDLESEX UNIVERSITY HOSPITAL NHS TRUST",227,2971,0.96475770925110127,0,null,153,66,5,0,0,3,null,0,0,0,0,0,0,227]
[null,"IS1","NQ1","ANGLIAN COMMUNITY ENTERPRISE COMMUNITY INTEREST COMPANY (ACE CIC)",1249,11044,0.98478783026421135,3.2025620496397116E-3,null,1006,224,13,2,2,2,null,0,5,1244,0,0,0,0]
[null,"IS1","8HH94","BARDOC",37,9872,0.72972972972972971,0.21621621621621623,null,19,8,2,2,6,0,null,0,0,37,0,0,0,0]
[null,"IS1","NLW","BRISTOL COMMUNITY HEALTH",935,17015,0.94973262032085559,2.2459893048128343E-2,null,673,215,20,10,11,6,null,0,28,188,0,0,6,713]
[null,"IS1","NQV","BROMLEY HEALTHCARE",80,80,1,0,null,65,15,0,0,0,0,null,0,0,80,0,0,0,0]
[null,"IS1","NTP","CARE UK",2851,98035,0.94738688179586106,2.5605050859347597E-2,null,1994,707,51,31,42,26,null,0,743,2005,0,0,103,0]
[null,"IS1","NNF","CITY HEALTH CARE PARTNERSHIP CIC",431,13394,0.97215777262180969,1.8561484918793503E-2,null,338,81,3,1,7,1,null,0,327,85,0,0,19,0]
[null,"IS1","NTV","CSH SURREY",150,11388,0.9,5.3333333333333337E-2,null,109,26,2,4,4,5,null,0,0,8,107,31,4,0]
[null,"IS1","NAX","EAST COAST COMMUNITY HEALTHCARE C.I.C",741,8086,0.9892037786774629,5.3981106612685558E-3,null,652,81,4,1,3,0,null,0,0,689,0,52,0,0]
[null,"IS1","NDJ","FIRST COMMUNITY HEALTH AND CARE CIC",744,13576,0.97715053763440862,5.3763440860215058E-3,null,605,122,6,1,3,7,null,0,0,737,0,0,7,0]
[null,"IS1","NQ7","MEDWAY COMMUNITY HEALTHCARE",268,22845,0.94402985074626866,2.2388059701492536E-2,null,223,30,5,2,4,4,null,0,43,10,208,0,7,0]
[null,"IS1","NLT","NORTH SOMERSET COMMUNITY PARTNERSHIP COMMUNITY INTEREST COMPANY",880,1112,0.98068181818181821,2.2727272727272726E-3,null,689,174,7,1,1,8,null,0,822,0,58,0,0,0]
[null,"IS1","NR3","NOTTINGHAM CITYCARE PARTNERSHIP",382,25143,0.94240837696335078,1.5706806282722512E-2,null,290,70,5,3,3,11,null,0,0,368,0,9,5,0]
[null,"IS1","NQH","NOVUS HEALTH LTD",162,2513,0.96296296296296291,1.8518518518518517E-2,null,133,23,3,2,1,0,null,0,0,0,162,0,0,0]
[null,"IS1","NLL","PENINSULA COMMUNITY HEALTH C.I.C",1194,8966,0.98324958123953099,5.8626465661641538E-3,null,1039,135,7,3,4,6,null,0,0,1187,0,0,7,0]
[null,"IS1","NR5","PLYMOUTH COMMUNITY HEALTHCARE (CIC)",765,2635,0.98562091503267979,5.2287581699346402E-3,null,644,110,5,2,2,2,null,0,20,0,0,0,0,745]
[null,"IS1","NQA","PROVIDE",134,22097,0.95522388059701491,7.462686567164179E-3,null,107,21,0,0,1,5,null,0,48,78,4,0,4,0]
[null,"IS1","NNC","SOLENT MEDICAL SERVICES LIMITED",6,985,1,0,null,1,5,0,0,0,0,null,0,0,6,0,0,0,0]
[null,"IS1","NGX","TAURUS HEALTHCARE LTD",451,1440,0.98891352549889133,0,null,373,73,5,0,0,0,null,0,0,451,0,0,0,0]
[null,"IS1","NDK","YARBOROUGH CLEE CARE LIMITED",19,19,1,0,null,17,2,0,0,0,0,null,0,0,19,0,0,0,0]
[null,"IS1","NNV","YOUR HEALTHCARE",14,11,1,0,null,13,1,0,0,0,0,null,0,0,0,14,0,0,0]

{"sheet":"Categories","index":3,"n_rows":474,"n_cols":15,"rows_kept":474,"cut":false,"hidden":false,"merged":[[9,7,10,7],[9,9,9,14],[9,1,10,1],[9,2,10,2],[9,3,10,3],[9,4,10,4],[9,5,10,5],[9,6,10,6]]}
[null,"Friends and Family Test - Community Health          January 2015",null,null,null,null,"Contact: FFT data team - england.friendsandfamilytest@nhs.net"]
[]
[]
[null,null,null,"                                                        Show data for:",null,null,null,"     (Collection mode data is shown with Trusts data)"]
[]
[null,null,null,null,null,"Area:"]
[null,null,"      Sort data by:           ",null,null,"     Filter data by -    Trust:"]
[null,null,null,null,null,"Category:"]
[]
[null,"Area Team Code","Trust Code","Trust Name","Category","Total Responses","Percentage Recommended","Percentage Not  Recommended",null,"Breakdown of Responses"]
[null,null,null,null,null,null,null,null,null,"Extremely Likely","Likely","Neither","Unlikely","Extremely Unlikely","Don't Know"]
[null,null,null,null,"England (including Independent Sector Providers)",73282,0.95690619797494614,1.4560192134494146E-2,null,56514,13610,1199,566,501,892]
[null,null,null,null,"England (excluding Independent Sector Providers)",61789,0.95504054119665316,1.4695172279855638E-2,null,47524,11487,1061,501,407,809]
[null,null,null,null,"Selection (excluding suppressed data)",{"$f":"SUBTOTAL(9,F15:F5000)","v":73282},{"$f":"IFERROR((J14+K14)/SUM(J14:O14),\"N/A\")","v":0.95675466160937994},{"$f":"IFERROR((M14+N14)/SUM(J14:O14),\"N/A\")","v":1.4687357244701615E-2},null,{"$f":"SUBTOTAL(9,J15:J5000)","v":55740},13375,1180,563,498,883]
[null,"Q44","RTV","5 BOROUGHS PARTNERSHIP NHS FOUNDATION TRUST","Children & Family Services",162,0.96913580246913578,0,null,129,28,1,0,0,4]
[null,"Q44","RTV","5 BOROUGHS PARTNERSHIP NHS FOUNDATION TRUST","Community Healthcare Other",30,0.96666666666666667,0,null,27,2,0,0,0,1]
[null,"Q44","RTV","5 BOROUGHS PARTNERSHIP NHS FOUNDATION TRUST","Community Nursing Services",15,1,0,null,15,0,0,0,0,0]
[null,"Q44","RTV","5 BOROUGHS PARTNERSHIP NHS FOUNDATION TRUST","Rehabilitation & Therapy Services",73,1,0,null,66,7,0,0,0,0]
[null,"Q44","RTV","5 BOROUGHS PARTNERSHIP NHS FOUNDATION TRUST","Specialist Services",119,0.99159663865546221,8.4033613445378148E-3,null,109,9,0,1,0,0]
[null,"Q44","RXA","CHESHIRE AND WIRRAL PARTNERSHIP NHS FOUNDATION TRUST","Community Healthcare Other",1,"*","*",null,"*","*","*","*","*","*"]
[null,"Q44","RXA","CHESHIRE AND WIRRAL PARTNERSHIP NHS FOUNDATION TRUST","Community Nursing Services",2,"*","*",null,"*","*","*","*","*","*"]
[null,"Q44","RXA","CHESHIRE AND WIRRAL PARTNERSHIP NHS FOUNDATION TRUST","Specialist Services",2,"*","*",null,"*","*","*","*","*","*"]
[null,"Q44","RJN","EAST CHESHIRE NHS TRUST","Rehabilitation & Therapy Services",227,0.89867841409691629,5.2863436123348019E-2,null,158,46,10,6,6,1]
[null,"Q44","RY7","WIRRAL COMMUNITY NHS TRUST","Community Healthcare Other",170,0.69411764705882351,0.22352941176470589,null,86,32,10,14,24,4]
[null,"Q44","RY7","WIRRAL COMMUNITY NHS TRUST","Community Nursing Services",214,0.99065420560747663,0,null,193,19,1,0,0,1]
[null,"Q44","RY7","WIRRAL COMMUNITY NHS TRUST","Rehabilitation & Therapy Services",69,0.98550724637681164,0,null,"*","*","*","*","*","*"]
[null,"Q44","RY7","WIRRAL COMMUNITY NHS TRUST","Specialist Services",1,"*","*",null,"*","*","*","*","*","*"]
[null,"Q45","RXP","COUNTY DURHAM AND DARLINGTON NHS FOUNDATION TRUST","Children & Family Services",412,0.96116504854368934,2.4271844660194173E-3,null,304,92,0,0,1,15]
[null,"Q45","RXP","COUNTY DURHAM AND DARLINGTON NHS FOUNDATION TRUST","Community Inpatient Services",105,0.97142857142857142,9.5238095238095247E-3,null,87,15,1,0,1,1]
[null,"Q45","RXP","COUNTY DURHAM AND DARLINGTON NHS FOUNDATION TRUST","Community Nursing Services",95,0.97894736842105268,0,null,77,16,1,0,0,1]
[null,"Q45","RXP","COUNTY DURHAM AND DARLINGTON NHS FOUNDATION TRUST","Specialist Services",1137,0.9920844327176781,3.5180299032541778E-3,null,992,136,3,2,2,2]
[null,"Q45","RVW","NORTH TEES AND HARTLEPOOL NHS FOUNDATION TRUST","Community Inpatient Services",20,0.75,0.05,null,9,6,1,0,1,3]
[null,"Q45","RTR","SOUTH TEES HOSPITALS NHS FOUNDATION TRUST","Children & Family Services",9,0.88888888888888884,0,null,7,1,1,0,0,0]
[null,"Q45","RTR","SOUTH TEES HOSPITALS NHS FOUNDATION TRUST","Community Inpatient Services",21,0.95238095238095233,0,null,15,5,0,0,0,1]
[null,"Q46","RMC","BOLTON NHS FOUNDATION TRUST","Children & Family Services",35,0.88571428571428568,5.7142857142857141E-2,null,23,8,1,0,2,1]
[null,"Q46","RMC","BOLTON NHS FOUNDATION TRUST","Community Nursing Services",300,0.92333333333333334,2.6666666666666668E-2,null,240,37,9,4,4,6]
[null,"Q46","RMC","BOLTON NHS FOUNDATION TRUST","Rehabilitation & Therapy Services",278,0.97841726618705038,3.5971223021582736E-3,null,210,62,5,1,0,0]
[null,"Q46","RMC","BOLTON NHS FOUNDATION TRUST","Specialist Services",122,0.9098360655737705,3.2786885245901641E-2,null,97,14,5,3,1,2]
[null,"Q46","RY2","BRIDGEWATER COMMUNITY HEALTHCARE NHS FOUNDATION TRUST","Children & Family Services",1122,0.9732620320855615,1.7825311942959001E-3,null,955,137,26,0,2,2]
[null,"Q46","RY2","BRIDGEWATER COMMUNITY HEALTHCARE NHS FOUNDATION TRUST","Community Healthcare Other",115,0.89565217391304353,5.2173913043478258E-2,null,84,19,6,3,3,0]
[null,"Q46","RY2","BRIDGEWATER COMMUNITY HEALTHCARE NHS FOUNDATION TRUST","Community Inpatient Services",7,1,0,null,6,1,0,0,0,0]
[null,"Q46","RY2","BRIDGEWATER COMMUNITY HEALTHCARE NHS FOUNDATION TRUST","Community Nursing Services",170,0.94705882352941173,1.7647058823529412E-2,null,141,20,5,2,1,1]
[null,"Q46","RY2","BRIDGEWATER COMMUNITY HEALTHCARE NHS FOUNDATION TRUST","Rehabilitation & Therapy Services",126,0.99206349206349209,0,null,105,20,1,0,0,0]
[null,"Q46","RY2","BRIDGEWATER COMMUNITY HEALTHCARE NHS FOUNDATION TRUST","Specialist Services",435,0.97931034482758617,9.1954022988505746E-3,null,355,71,3,1,3,2]
[null,"Q46","RW3","CENTRAL MANCHESTER UNIVERSITY HOSPITALS NHS FOUNDATION TRUST","Children & Family Services",8,0.875,0.125,null,6,1,0,0,1,0]
[null,"Q46","RW3","CENTRAL MANCHESTER UNIVERSITY HOSPITALS NHS FOUNDATION TRUST","Community Inpatient Services",3,"*","*",null,"*","*","*","*","*","*"]
[null,"Q46","RW3","CENTRAL MANCHESTER UNIVERSITY HOSPITALS NHS FOUNDATION TRUST","Community Nursing Services",2,"*","*",null,"*","*","*","*","*","*"]
[null,"Q46","RW3","CENTRAL MANCHESTER UNIVERSITY HOSPITALS NHS FOUNDATION TRUST","Specialist Services",1,"*","*",null,"*","*","*","*","*","*"]
[null,"Q46","RW6","PENNINE ACUTE HOSPITALS NHS TRUST","Community Healthcare Other",9,0.88888888888888884,0,null,"*","*","*","*","*","*"]
[null,"Q46","RW6","PENNINE ACUTE HOSPITALS NHS TRUST","Community Nursing Services",39,0.89743589743589747,2.564102564102564E-2,null,26,9,1,1,0,2]
[null,"Q46","RW6","PENNINE ACUTE HOSPITALS NHS TRUST","Rehabilitation & Therapy Services",1,"*","*",null,"*","*","*","*","*","*"]
[null,"Q46","RW6","PENNINE ACUTE HOSPITALS NHS TRUST","Specialist Services",49,0.8571428571428571,2.0408163265306121E-2,null,34,8,5,0,1,1]
[null,"Q46","RT2","PENNINE CARE NHS FOUNDATION TRUST","Children & Family Services",137,0.97080291970802923,2.1897810218978103E-2,null,115,18,1,0,3,0]
[null,"Q46","RT2","PENNINE CARE NHS FOUNDATION TRUST","Community Healthcare Other",53,0.60377358490566035,3.7735849056603772E-2,null,24,8,6,0,2,13]
[null,"Q46","RT2","PENNINE CARE NHS FOUNDATION TRUST","Community Nursing Services",166,0.96385542168674698,6.024096385542169E-3,null,141,19,4,0,1,1]
[null,"Q46","RT2","PENNINE CARE NHS FOUNDATION TRUST","Rehabilitation & Therapy Services",470,0.93617021276595747,3.1914893617021274E-2,null,362,78,11,6,9,4]
[null,"Q46","RM3","SALFORD ROYAL NHS FOUNDATION TRUST","Children & Family Services",11,0.90909090909090906,0,null,9,1,0,0,0,1]
[null,"Q46","RM3","SALFORD ROYAL NHS FOUNDATION TRUST","Community Nursing Services",44,0.95454545454545459,0,null,33,9,2,0,0,0]
[null,"Q46","RM3","SALFORD ROYAL NHS FOUNDATION TRUST","Rehabilitation & Therapy Services",84,0.91666666666666663,7.1428571428571425E-2,null,72,5,1,2,4,0]
[null,"Q46","RWJ","STOCKPORT NHS FOUNDATION TRUST","Children & Family Services",22,0.72727272727272729,0.13636363636363635,null,"*","*","*","*","*","*"]
[null,"Q46","RWJ","STOCKPORT NHS FOUNDATION TRUST","Community Healthcare Other",1,"*","*",null,"*","*","*","*","*","*"]
[null,"Q46","RWJ","STOCKPORT NHS FOUNDATION TRUST","Community Nursing Services",216,0.90277777777777779,2.7777777777777776E-2,null,159,36,10,4,2,5]
[null,"Q46","RWJ","STOCKPORT NHS FOUNDATION TRUST","Rehabilitation & Therapy Services",358,0.87430167597765363,4.4692737430167599E-2,null,243,70,19,11,5,10]
[null,"Q46","RWJ","STOCKPORT NHS FOUNDATION TRUST","Specialist Services",101,0.93069306930693074,1.9801980198019802E-2,null,72,22,4,0,2,1]
[null,"Q46","RM2","UNIVERSITY HOSPITAL OF SOUTH MANCHESTER NHS FOUNDATION TRUST","Community Inpatient Services",15,0.8666666666666667,0.13333333333333333,null,10,3,0,0,2,0]
[null,"Q47","RXL","BLACKPOOL TEACHING HOSPITALS NHS FOUNDATION TRUST","Community Inpatient Services",25,0.88,0.04,null,19,3,1,1,0,1]
[null,"Q47","RXL","BLACKPOOL TEACHING HOSPITALS NHS FOUNDATION TRUST","Community Nursing Services",98,0.94897959183673475,1.020408163265306E-2,null,78,15,1,1,0,3]
[null,"Q47","RXL","BLACKPOOL TEACHING HOSPITALS NHS FOUNDATION TRUST","Rehabilitation & Therapy Services",114,0.95614035087719296,8.771929824561403E-3,null,86,23,1,1,0,3]
[null,"Q47","RXL","BLACKPOOL TEACHING HOSPITALS NHS FOUNDATION TRUST","Specialist Services",95,0.98947368421052628,0,null,86,8,0,0,0,1]
[null,"Q47","RXR","EAST LANCASHIRE HOSPITALS NHS TRUST","Community Healthcare Other",260,0.96923076923076923,3.8461538461538464E-3,null,204,48,2,1,0,5]
[null,"Q47","RXR","EAST LANCASHIRE HOSPITALS NHS TRUST","Community Inpatient Services",95,0.98947368421052628,0,null,78,16,1,0,0,0]
[null,"Q47","RXR","EAST LANCASHIRE HOSPITALS NHS TRUST","Community Nursing Services",261,0.94252873563218387,2.2988505747126436E-2,null,213,33,5,1,5,4]
[null,"Q47","RXR","EAST LANCASHIRE HOSPITALS NHS TRUST","Rehabilitation & Therapy Services",55,0.89090909090909087,1.8181818181818181E-2,null,42,7,4,0,1,1]
[null,"Q47","RXR","EAST LANCASHIRE HOSPITALS NHS TRUST","Specialist Services",5,0.6,0,null,2,1,2,0,0,0]
[null,"Q47","RW5","LANCASHIRE CARE NHS FOUNDATION TRUST","Children & Family Services",576,0.98784722222222221,3.472222222222222E-3,null,468,101,3,1,1,2]
[null,"Q47","RW5","LANCASHIRE CARE NHS FOUNDATION TRUST","Community Inpatient Services",8,1,0,null,8,0,0,0,0,0]
[null,"Q47","RW5","LANCASHIRE CARE NHS FOUNDATION TRUST","Community Nursing Services",16,1,0,null,14,2,0,0,0,0]
[null,"Q47","RW5","LANCASHIRE CARE NHS FOUNDATION TRUST","Rehabilitation & Therapy Services",14,1,0,null,11,3,0,0,0,0]
[null,"Q47","RW5","LANCASHIRE CARE NHS FOUNDATION TRUST","Specialist Services",110,1,0,null,97,13,0,0,0,0]
[null,"Q48","RY1","LIVERPOOL COMMUNITY HEALTH NHS TRUST","Children & Family Services",2,"*","*",null,"*","*","*","*","*","*"]
[null,"Q48","RY1","LIVERPOOL COMMUNITY HEALTH NHS TRUST","Community Healthcare Other",112,0.9732142857142857,8.9285714285714281E-3,null,83,26,2,0,1,0]
[null,"Q48","RY1","LIVERPOOL COMMUNITY HEALTH NHS TRUST","Community Inpatient Services",37,0.94594594594594594,2.7027027027027029E-2,null,13,22,1,1,0,0]
[null,"Q48","RY1","LIVERPOOL COMMUNITY HEALTH NHS TRUST","Community Nursing Services",8,1,0,null,6,2,0,0,0,0]
[null,"Q48","RY1","LIVERPOOL COMMUNITY HEALTH NHS TRUST","Rehabilitation & Therapy Services",7,0.8571428571428571,0,null,"*","*","*","*","*","*"]
[null,"Q48","RY1","LIVERPOOL COMMUNITY HEALTH NHS TRUST","Specialist Services",23,1,0,null,8,15,0,0,0,0]
[null,"Q48","RVY","SOUTHPORT AND ORMSKIRK HOSPITAL NHS TRUST","Community Nursing Services",45,1,0,null,43,2,0,0,0,0]
[null,"Q48","RVY","SOUTHPORT AND ORMSKIRK HOSPITAL NHS TRUST","Specialist Services",12,1,0,null,12,0,0,0,0,0]
[null,"Q49","RNN","CUMBRIA PARTNERSHIP NHS FOUNDATION TRUST","Children & Family Services",67,1,0,null,53,14,0,0,0,0]
[null,"Q49","RNN","CUMBRIA PARTNERSHIP NHS FOUNDATION TRUST","Community Healthcare Other",5,1,0,null,"*","*","*","*","*","*"]
[null,"Q49","RNN","CUMBRIA PARTNERSHIP NHS FOUNDATION TRUST","Community Inpatient Services",129,0.97674418604651159,1.5503875968992248E-2,null,105,21,0,2,0,1]
[null,"Q49","RNN","CUMBRIA PARTNERSHIP NHS FOUNDATION TRUST","Community Nursing Services",1,"*","*",null,"*","*","*","*","*","*"]
[null,"Q49","RNN","CUMBRIA PARTNERSHIP NHS FOUNDATION TRUST","Rehabilitation & Therapy Services",90,1,0,null,75,15,0,0,0,0]
[null,"Q49","RNN","CUMBRIA PARTNERSHIP NHS FOUNDATION TRUST","Specialist Services",30,1,0,null,27,3,0,0,0,0]
[null,"Q49","RTF","NORTHUMBRIA HEALTHCARE NHS FOUNDATION TRUST","Children & Family Services",9,1,0,null,7,2,0,0,0,0]
[null,"Q49","RTF","NORTHUMBRIA HEALTHCARE NHS FOUNDATION TRUST","Community Healthcare Other",235,0.96595744680851059,1.276595744680851E-2,null,202,25,4,1,2,1]
[null,"Q49","RTF","NORTHUMBRIA HEALTHCARE NHS FOUNDATION TRUST","Community Nursing Services",26,1,0,null,21,5,0,0,0,0]
[null,"Q49","RTF","NORTHUMBRIA HEALTHCARE NHS FOUNDATION TRUST","Rehabilitation & Therapy Services",323,1,0,null,309,14,0,0,0,0]
[null,"Q49","RE9","SOUTH TYNESIDE NHS FOUNDATION TRUST","Children & Family Services",193,0.98445595854922274,0,null,172,18,1,0,0,2]
[null,"Q49","RE9","SOUTH TYNESIDE NHS FOUNDATION TRUST","Community Inpatient Services",30,0.96666666666666667,0,null,21,8,1,0,0,0]
[null,"Q49","RE9","SOUTH TYNESIDE NHS FOUNDATION TRUST","Community Nursing Services",330,0.97575757575757571,3.0303030303030303E-3,null,284,38,6,0,1,1]
[null,"Q49","RE9","SOUTH TYNESIDE NHS FOUNDATION TRUST","Rehabilitation & Therapy Services",1109,0.9675383228133454,9.9188458070333628E-3,null,873,200,6,9,2,19]
[null,"Q49","RTD","THE NEWCASTLE UPON TYNE HOSPITALS NHS FOUNDATION TRUST","Community Healthcare Other",31,1,0,null,27,4,0,0,0,0]
[null,"Q49","RTD","THE NEWCASTLE UPON TYNE HOSPITALS NHS FOUNDATION TRUST","Community Nursing Services",18,1,0,null,13,5,0,0,0,0]
[null,"Q50","RCD","HARROGATE AND DISTRICT NHS FOUNDATION TRUST","Community Inpatient Services",3,"*","*",null,"*","*","*","*","*","*"]
[null,"Q50","RCD","HARROGATE AND DISTRICT NHS FOUNDATION TRUST","Rehabilitation & Therapy Services",162,0.99382716049382713,0,null,"*","*","*","*","*","*"]
[null,"Q50","RV9","HUMBER NHS FOUNDATION TRUST","Children & Family Services",10,0.7,0,null,7,0,0,0,0,3]
[null,"Q50","RV9","HUMBER NHS FOUNDATION TRUST","Community Healthcare Other",82,1,0,null,66,16,0,0,0,0]
[null,"Q50","RV9","HUMBER NHS FOUNDATION TRUST","Community Inpatient Services",10,1,0,null,10,0,0,0,0,0]
[null,"Q50","RV9","HUMBER NHS FOUNDATION TRUST","Community Nursing Services",36,1,0,null,32,4,0,0,0,0]
[null,"Q50","RV9","HUMBER NHS FOUNDATION TRUST","Rehabilitation & Therapy Services",174,0.9885057471264368,5.7471264367816091E-3,null,134,38,1,0,1,0]
[null,"Q50","RV9","HUMBER NHS FOUNDATION TRUST","Specialist Services",28,1,0,null,21,7,0,0,0,0]
[null,"Q50","RJL","NORTHERN LINCOLNSHIRE AND GOOLE NHS FOUNDATION TRUST","Children & Family Services",60,0.85,0,null,29,22,3,0,0,6]
[null,"Q50","RJL","NORTHERN LINCOLNSHIRE AND GOOLE NHS FOUNDATION TRUST","Community Nursing Services",153,1,0,null,117,36,0,0,0,0]
[null,"Q50","RJL","NORTHERN LINCOLNSHIRE AND GOOLE NHS FOUNDATION TRUST","Rehabilitation & Therapy Services",176,1,0,null,128,48,0,0,0,0]
[null,"Q50","RJL","NORTHERN LINCOLNSHIRE AND GOOLE NHS FOUNDATION TRUST","Specialist Services",17,1,0,null,15,2,0,0,0,0]
[null,"Q50","RCB","YORK TEACHING HOSPITAL NHS FOUNDATION TRUST","Community Healthcare Other",13,0.92307692307692313,0,null,11,1,1,0,0,0]
[null,"Q50","RCB","YORK TEACHING HOSPITAL NHS FOUNDATION TRUST","Community Inpatient Services",51,0.98039215686274506,1.9607843137254902E-2,null,46,4,0,1,0,0]
[null,"Q50","RCB","YORK TEACHING HOSPITAL NHS FOUNDATION TRUST","Community Nursing Services",17,0.94117647058823528,0,null,13,3,1,0,0,0]
[null,"Q50","RCB","YORK TEACHING HOSPITAL NHS FOUNDATION TRUST","Specialist Services",31,1,0,null,30,1,0,0,0,0]
[null,"Q51","TAH","SHEFFIELD HEALTH & SOCIAL CARE NHS FOUNDATION TRUST","Rehabilitation & Therapy Services",2,"*","*",null,"*","*","*","*","*","*"]
[null,"Q51","TAH","SHEFFIELD HEALTH & SOCIAL CARE NHS FOUNDATION TRUST","Specialist Services",2,"*","*",null,"*","*","*","*","*","*"]
[null,"Q51","RHQ","SHEFFIELD TEACHING HOSPITALS NHS FOUNDATION TRUST","Community Healthcare Other",236,0.89830508474576276,5.9322033898305086E-2,null,170,42,7,3,11,3]
[null,"Q51","RHQ","SHEFFIELD TEACHING HOSPITALS NHS FOUNDATION TRUST","Community Nursing Services",427,0.85245901639344257,4.6838407494145202E-2,null,266,98,20,8,12,23]
[null,"Q51","RHQ","SHEFFIELD TEACHING HOSPITALS NHS FOUNDATION TRUST","Rehabilitation & Therapy Services",692,0.85693641618497107,3.6127167630057806E-2,null,430,163,36,14,11,38]
[null,"Q51","RHQ","SHEFFIELD TEACHING HOSPITALS NHS FOUNDATION TRUST","Specialist Services",295,0.86101694915254234,3.3898305084745763E-2,null,181,73,19,4,6,12]
[null,"Q51","RFR","THE ROTHERHAM NHS FOUNDATION TRUST","Children & Family Services",24,1,0,null,"*","*","*","*","*","*"]
[null,"Q51","RFR","THE ROTHERHAM NHS FOUNDATION TRUST","Community Inpatient Services",83,0.98795180722891562,0,null,"*","*","*","*","*","*"]
[null,"Q51","RFR","THE ROTHERHAM NHS FOUNDATION TRUST","Community Nursing Services",183,0.98360655737704916,0,null,129,51,3,0,0,0]
[null,"Q51","RFR","THE ROTHERHAM NHS FOUNDATION TRUST","Rehabilitation & Therapy Services",162,0.99382716049382713,0,null,123,38,1,0,0,0]
[null,"Q51","RFR","THE ROTHERHAM NHS FOUNDATION TRUST","Specialist Services",349,0.97994269340974216,0,null,291,51,2,0,0,5]
[null,"Q52","RCF","AIREDALE NHS FOUNDATION TRUST","Children & Family Services",17,1,0,null,12,5,0,0,0,0]
[null,"Q52","RCF","AIREDALE NHS FOUNDATION TRUST","Community Inpatient Services",14,1,0,null,11,3,0,0,0,0]
[null,"Q52","RCF","AIREDALE NHS FOUNDATION TRUST","Community Nursing Services",33,1,0,null,30,3,0,0,0,0]
[null,"Q52","RCF","AIREDALE NHS FOUNDATION TRUST","Rehabilitation & Therapy Services",114,0.98245614035087714,0,null,99,13,2,0,0,0]
[null,"Q52","TAD","BRADFORD DISTRICT CARE TRUST","Children & Family Services",14,1,0,null,12,2,0,0,0,0]
[null,"Q52","TAD","BRADFORD DISTRICT CARE TRUST","Community Healthcare Other",3,"*","*",null,"*","*","*","*","*","*"]
[null,"Q52","TAD","BRADFORD DISTRICT CARE TRUST","Community Nursing Services",32,1,0,null,29,3,0,0,0,0]
[null,"Q52","TAD","BRADFORD DISTRICT CARE TRUST","Rehabilitation & Therapy Services",36,1,0,null,26,10,0,0,0,0]
[null,"Q52","TAD","BRADFORD DISTRICT CARE TRUST","Specialist Services",5,1,0,null,"*","*","*","*","*","*"]
[null,"Q52","RWY","CALDERDALE AND HUDDERSFIELD NHS FOUNDATION TRUST","Children & Family Services",67,0.85074626865671643,8.9552238805970144E-2,null,40,17,3,2,4,1]
[null,"Q52","RWY","CALDERDALE AND HUDDERSFIELD NHS FOUNDATION TRUST","Community Inpatient Services",1,"*","*",null,"*","*","*","*","*","*"]
[null,"Q52","RWY","CALDERDALE AND HUDDERSFIELD NHS FOUNDATION TRUST","Community Nursing Services",51,0.86274509803921573,9.8039215686274508E-2,null,32,12,1,0,5,1]
[null,"Q52","RWY","CALDERDALE AND HUDDERSFIELD NHS FOUNDATION TRUST","Rehabilitation & Therapy Services",515,0.92427184466019419,3.8834951456310676E-2,null,355,121,13,7,13,6]
[null,"Q52","RWY","CALDERDALE AND HUDDERSFIELD NHS FOUNDATION TRUST","Specialist Services",16,0.9375,6.25E-2,null,"*","*","*","*","*","*"]
[null,"Q52","RY6","LEEDS COMMUNITY HEALTHCARE NHS TRUST","Children & Family Services",10,0.6,0,null,1,5,4,0,0,0]
[null,"Q52","RXF","MID YORKSHIRE HOSPITALS NHS TRUST","Children & Family Services",411,0.88077858880778592,1.2165450121654502E-2,null,227,135,19,4,1,25]
[null,"Q52","RXF","MID YORKSHIRE HOSPITALS NHS TRUST","Community Inpatient Services",33,0.87878787878787878,0,null,18,11,1,0,0,3]
[null,"Q52","RXF","MID YORKSHIRE HOSPITALS NHS TRUST","Community Nursing Services",37,0.97297297297297303,0,null,33,3,1,0,0,0]
[null,"Q52","RXF","MID YORKSHIRE HOSPITALS NHS TRUST","Rehabilitation & Therapy Services",382,0.98952879581151831,2.617801047120419E-3,null,337,41,2,1,0,1]
[null,"Q52","RXF","MID YORKSHIRE HOSPITALS NHS TRUST","Specialist Services",182,0.96703296703296704,1.098901098901099E-2,null,134,42,3,0,2,1]
[null,"Q52","RXG","SOUTH WEST YORKSHIRE PARTNERSHIP NHS FOUNDATION TRUST","Children & Family Services",43,0.97674418604651159,0,null,33,9,0,0,0,1]
[null,"Q52","RXG","SOUTH WEST YORKSHIRE PARTNERSHIP NHS FOUNDATION TRUST","Community Nursing Services",184,0.96739130434782605,1.0869565217391304E-2,null,154,24,4,1,1,0]
[null,"Q52","RXG","SOUTH WEST YORKSHIRE PARTNERSHIP NHS FOUNDATION TRUST","Rehabilitation & Therapy Services",152,0.97368421052631582,0,null,123,25,2,0,0,2]
[null,"Q52","RXG","SOUTH WEST YORKSHIRE PARTNERSHIP NHS FOUNDATION TRUST","Specialist Services",39,1,0,null,34,5,0,0,0,0]
[null,"Q53","RYG","COVENTRY AND WARWICKSHIRE PARTNERSHIP NHS TRUST","Community Healthcare Other",28,0.8571428571428571,7.1428571428571425E-2,null,19,5,1,0,2,1]
[null,"Q53","RYG","COVENTRY AND WARWICKSHIRE PARTNERSHIP NHS TRUST","Community Nursing Services",17,1,0,null,17,0,0,0,0,0]
[null,"Q53","RYG","COVENTRY AND WARWICKSHIRE PARTNERSHIP NHS TRUST","Rehabilitation & Therapy Services",135,0.97777777777777775,7.4074074074074077E-3,null,100,32,0,1,0,2]
[null,"Q53","RYG","COVENTRY AND WARWICKSHIRE PARTNERSHIP NHS TRUST","Specialist Services",68,0.98529411764705888,0,null,47,20,0,0,0,1]
[null,"Q53","RJC","SOUTH WARWICKSHIRE NHS FOUNDATION TRUST","Community Nursing Services",215,0.95348837209302328,4.6511627906976744E-3,null,159,46,3,0,1,6]
[null,"Q53","RJC","SOUTH WARWICKSHIRE NHS FOUNDATION TRUST","Rehabilitation & Therapy Services",165,0.9939393939393939,0,null,148,16,1,0,0,0]
[null,"Q53","RJC","SOUTH WARWICKSHIRE NHS FOUNDATION TRUST","Specialist Services",111,0.98198198198198194,0,null,92,17,1,0,0,1]
[null,"Q53","R1A","WORCESTERSHIRE HEALTH AND CARE NHS TRUST","Community Inpatient Services",6,1,0,null,"*","*","*","*","*","*"]
[null,"Q53","R1A","WORCESTERSHIRE HEALTH AND CARE NHS TRUST","Rehabilitation & Therapy Services",2,"*","*",null,"*","*","*","*","*","*"]
[null,"Q53","RLQ","WYE VALLEY NHS TRUST","Children & Family Services",35,0.97142857142857142,0,null,30,4,1,0,0,0]
[null,"Q53","RLQ","WYE VALLEY NHS TRUST","Community Healthcare Other",4,"*","*",null,"*","*","*","*","*","*"]
[null,"Q53","RLQ","WYE VALLEY NHS TRUST","Community Inpatient Services",120,0.95833333333333337,1.6666666666666666E-2,null,84,31,0,2,0,3]
[null,"Q53","RLQ","WYE VALLEY NHS TRUST","Community Nursing Services",7,1,0,null,7,0,0,0,0,0]
[null,"Q53","RLQ","WYE VALLEY NHS TRUST","Rehabilitation & Therapy Services",5,1,0,null,"*","*","*","*","*","*"]
[null,"Q53","RLQ","WYE VALLEY NHS TRUST","Specialist Services",26,1,0,null,21,5,0,0,0,0]
[null,"Q54","RYW","BIRMINGHAM COMMUNITY HEALTHCARE NHS TRUST","Children & Family Services",101,0.98019801980198018,9.9009900990099011E-3,null,78,21,0,1,0,1]
[null,"Q54","RYW","BIRMINGHAM COMMUNITY HEALTHCARE NHS TRUST","Community Inpatient Services",184,0.93478260869565222,2.1739130434782608E-2,null,157,15,6,2,2,2]
[null,"Q54","RYW","BIRMINGHAM COMMUNITY HEALTHCARE NHS TRUST","Community Nursing Services",140,0.95714285714285718,2.1428571428571429E-2,null,112,22,2,2,1,1]
[null,"Q54","RYW","BIRMINGHAM COMMUNITY HEALTHCARE NHS TRUST","Rehabilitation & Therapy Services",164,0.96951219512195119,6.0975609756097563E-3,null,109,50,1,1,0,3]
[null,"Q54","RYW","BIRMINGHAM COMMUNITY HEALTHCARE NHS TRUST","Specialist Services",336,0.92559523809523814,1.488095238095238E-2,null,213,98,15,4,1,5]
[null,"Q54","TAJ","BLACK COUNTRY PARTNERSHIP NHS FOUNDATION TRUST","Community Healthcare Other",15,0.93333333333333335,0,null,7,7,0,0,0,1]
[null,"Q54","RR1","HEART OF ENGLAND NHS FOUNDATION TRUST","Children & Family Services",70,0.94285714285714284,2.8571428571428571E-2,null,50,16,2,1,1,0]
[null,"Q54","RR1","HEART OF ENGLAND NHS FOUNDATION TRUST","Community Healthcare Other",9,1,0,null,"*","*","*","*","*","*"]
[null,"Q54","RR1","HEART OF ENGLAND NHS FOUNDATION TRUST","Community Nursing Services",4,"*","*",null,"*","*","*","*","*","*"]
[null,"Q54","RR1","HEART OF ENGLAND NHS FOUNDATION TRUST","Rehabilitation & Therapy Services",18,0.88888888888888884,0,null,14,2,2,0,0,0]
[null,"Q54","RR1","HEART OF ENGLAND NHS FOUNDATION TRUST","Specialist Services",51,0.98039215686274506,1.9607843137254902E-2,null,44,6,0,1,0,0]
[null,"Q54","RNA","THE DUDLEY GROUP NHS FOUNDATION TRUST","Community Nursing Services",12,0.91666666666666663,0,null,7,4,1,0,0,0]
[null,"Q54","RNA","THE DUDLEY GROUP NHS FOUNDATION TRUST","Rehabilitation & Therapy Services",31,0.87096774193548387,3.2258064516129031E-2,null,20,7,2,0,1,1]
[null,"Q54","RNA","THE DUDLEY GROUP NHS FOUNDATION TRUST","Specialist Services",10,0.9,0.1,null,9,0,0,1,0,0]
[null,"Q54","RL4","THE ROYAL WOLVERHAMPTON NHS TRUST","Community Healthcare Other",459,0.88017429193899777,5.6644880174291937E-2,null,309,95,20,15,11,9]
[null,"Q54","RBK","WALSALL HEALTHCARE NHS TRUST","Children & Family Services",42,0.97619047619047616,0,null,33,8,0,0,0,1]
[null,"Q54","RBK","WALSALL HEALTHCARE NHS TRUST","Community Healthcare Other",24,0.95833333333333337,0,null,21,2,1,0,0,0]
[null,"Q54","RBK","WALSALL HEALTHCARE NHS TRUST","Community Inpatient Services",12,1,0,null,8,4,0,0,0,0]
[null,"Q54","RBK","WALSALL HEALTHCARE NHS TRUST","Community Nursing Services",132,0.96212121212121215,0,null,98,29,1,0,0,4]
[null,"Q54","RBK","WALSALL HEALTHCARE NHS TRUST","Rehabilitation & Therapy Services",21,1,0,null,19,2,0,0,0,0]
[null,"Q54","RBK","WALSALL HEALTHCARE NHS TRUST","Specialist Services",111,0.97297297297297303,0,null,78,30,0,0,0,3]
[null,"Q55","RTG","DERBY HOSPITALS NHS FOUNDATION TRUST","Community Nursing Services",20,1,0,null,"*","*","*","*","*","*"]
[null,"Q55","RY8","DERBYSHIRE COMMUNITY HEALTH SERVICES NHS FOUNDATION TRUST","Children & Family Services",146,0.96575342465753422,6.8493150684931503E-3,null,122,19,3,0,1,1]
[null,"Q55","RY8","DERBYSHIRE COMMUNITY HEALTH SERVICES NHS FOUNDATION TRUST","Community Healthcare Other",957,0.98746081504702199,3.134796238244514E-3,null,901,44,8,2,1,1]
[null,"Q55","RY8","DERBYSHIRE COMMUNITY HEALTH SERVICES NHS FOUNDATION TRUST","Community Inpatient Services",138,0.97826086956521741,0,null,128,7,1,0,0,2]
[null,"Q55","RY8","DERBYSHIRE COMMUNITY HEALTH SERVICES NHS FOUNDATION TRUST","Community Nursing Services",65,1,0,null,60,5,0,0,0,0]
[null,"Q55","RY8","DERBYSHIRE COMMUNITY HEALTH SERVICES NHS FOUNDATION TRUST","Rehabilitation & Therapy Services",433,0.99076212471131642,2.3094688221709007E-3,null,410,19,2,0,1,1]
[null,"Q55","RY8","DERBYSHIRE COMMUNITY HEALTH SERVICES NHS FOUNDATION TRUST","Specialist Services",310,0.9419354838709677,1.935483870967742E-2,null,275,17,11,2,4,1]
[null,"Q55","RXM","DERBYSHIRE HEALTHCARE NHS FOUNDATION TRUST","Children & Family Services",3,"*","*",null,"*","*","*","*","*","*"]
[null,"Q55","RX1","NOTTINGHAM UNIVERSITY HOSPITALS NHS TRUST","Children & Family Services",165,0.90303030303030307,1.8181818181818181E-2,null,128,21,9,2,1,4]
[null,"Q55","RX1","NOTTINGHAM UNIVERSITY HOSPITALS NHS TRUST","Specialist Services",667,0.97601199400299854,2.9985007496251873E-3,null,555,96,6,1,1,8]
[null,"Q55","RHA","NOTTINGHAMSHIRE HEALTHCARE NHS FOUNDATION TRUST","Children & Family Services",799,0.98623279098873595,3.7546933667083854E-3,null,698,90,8,3,0,0]
[null,"Q55","RHA","NOTTINGHAMSHIRE HEALTHCARE NHS FOUNDATION TRUST","Community Inpatient Services",21,0.95238095238095233,0,null,16,4,1,0,0,0]
[null,"Q55","RHA","NOTTINGHAMSHIRE HEALTHCARE NHS FOUNDATION TRUST","Community Nursing Services",370,0.98648648648648651,0,null,294,71,5,0,0,0]
[null,"Q55","RHA","NOTTINGHAMSHIRE HEALTHCARE NHS FOUNDATION TRUST","Rehabilitation & Therapy Services",159,0.98113207547169812,6.2893081761006293E-3,null,130,26,2,1,0,0]
[null,"Q55","RHA","NOTTINGHAMSHIRE HEALTHCARE NHS FOUNDATION TRUST","Specialist Services",374,0.99465240641711228,0,null,341,31,2,0,0,0]
[null,"Q56","RT1","CAMBRIDGESHIRE AND PETERBOROUGH NHS FOUNDATION TRUST","Children & Family Services",99,0.97979797979797978,0,null,70,27,2,0,0,0]
[null,"Q56","RYV","CAMBRIDGESHIRE COMMUNITY SERVICES NHS TRUST","Children & Family Services",35,0.97142857142857142,0,null,29,5,1,0,0,0]
[null,"Q56","RYV","CAMBRIDGESHIRE COMMUNITY SERVICES NHS TRUST","Community Healthcare Other",18,0.83333333333333337,0.1111111111111111,null,10,5,1,0,2,0]
[null,"Q56","RYV","CAMBRIDGESHIRE COMMUNITY SERVICES NHS TRUST","Community Inpatient Services",12,0.91666666666666663,0,null,4,7,1,0,0,0]
[null,"Q56","RYV","CAMBRIDGESHIRE COMMUNITY SERVICES NHS TRUST","Community Nursing Services",144,0.95833333333333337,1.3888888888888888E-2,null,112,26,0,0,2,4]
[null,"Q56","RYV","CAMBRIDGESHIRE COMMUNITY SERVICES NHS TRUST","Rehabilitation & Therapy Services",87,0.9885057471264368,0,null,74,12,1,0,0,0]
[null,"Q56","RYV","CAMBRIDGESHIRE COMMUNITY SERVICES NHS TRUST","Specialist Services",699,0.97567954220314734,4.2918454935622317E-3,null,539,143,9,0,3,5]
[null,"Q56","RY3","NORFOLK COMMUNITY HEALTH AND CARE NHS TRUST","Children & Family Services",100,0.96,0.01,null,81,15,2,1,0,1]
[null,"Q56","RY3","NORFOLK COMMUNITY HEALTH AND CARE NHS TRUST","Community Healthcare Other",23,0.95652173913043481,4.3478260869565216E-2,null,20,2,0,0,1,0]
[null,"Q56","RY3","NORFOLK COMMUNITY HEALTH AND CARE NHS TRUST","Community Inpatient Services",34,0.91176470588235292,5.8823529411764705E-2,null,21,10,1,1,1,0]
[null,"Q56","RY3","NORFOLK COMMUNITY HEALTH AND CARE NHS TRUST","Community Nursing Services",101,1,0,null,89,12,0,0,0,0]
[null,"Q56","RY3","NORFOLK COMMUNITY HEALTH AND CARE NHS TRUST","Rehabilitation & Therapy Services",109,1,0,null,94,15,0,0,0,0]
[null,"Q56","RY3","NORFOLK COMMUNITY HEALTH AND CARE NHS TRUST","Specialist Services",248,0.97983870967741937,4.0322580645161289E-3,null,210,33,3,0,1,1]
[null,"Q57","RWN","SOUTH ESSEX PARTNERSHIP UNIVERSITY NHS FOUNDATION TRUST","Children & Family Services",55,0.96363636363636362,1.8181818181818181E-2,null,38,15,1,1,0,0]
[null,"Q57","RWN","SOUTH ESSEX PARTNERSHIP UNIVERSITY NHS FOUNDATION TRUST","Community Inpatient Services",7,1,0,null,5,2,0,0,0,0]
[null,"Q57","RWN","SOUTH ESSEX PARTNERSHIP UNIVERSITY NHS FOUNDATION TRUST","Community Nursing Services",76,0.98684210526315785,1.3157894736842105E-2,null,61,14,0,1,0,0]
[null,"Q57","RWN","SOUTH ESSEX PARTNERSHIP UNIVERSITY NHS FOUNDATION TRUST","Rehabilitation & Therapy Services",147,0.99319727891156462,0,null,128,18,1,0,0,0]
[null,"Q57","RWN","SOUTH ESSEX PARTNERSHIP UNIVERSITY NHS FOUNDATION TRUST","Specialist Services",402,0.97512437810945274,1.4925373134328358E-2,null,324,68,4,3,3,0]
[null,"Q58","RY4","HERTFORDSHIRE COMMUNITY NHS TRUST","Children & Family Services",1060,0.98490566037735849,3.7735849056603774E-3,null,847,197,12,4,0,0]
[null,"Q58","RY4","HERTFORDSHIRE COMMUNITY NHS TRUST","Community Healthcare Other",11,1,0,null,11,0,0,0,0,0]
[null,"Q58","RY4","HERTFORDSHIRE COMMUNITY NHS TRUST","Community Inpatient Services",230,0.97391304347826091,8.6956521739130436E-3,null,199,25,1,2,0,3]
[null,"Q58","RY4","HERTFORDSHIRE COMMUNITY NHS TRUST","Community Nursing Services",1207,0.95277547638773818,0,null,928,222,24,0,0,33]
[null,"Q58","RY4","HERTFORDSHIRE COMMUNITY NHS TRUST","Rehabilitation & Therapy Services",272,0.96323529411764708,7.3529411764705881E-3,null,234,28,0,1,1,8]
[null,"Q58","RY4","HERTFORDSHIRE COMMUNITY NHS TRUST","Specialist Services",210,0.93809523809523809,4.7619047619047623E-3,null,151,46,12,0,1,0]
[null,"Q58","RP1","NORTHAMPTONSHIRE HEALTHCARE NHS FOUNDATION TRUST","Children & Family Services",270,0.94814814814814818,1.1111111111111112E-2,null,213,43,7,1,2,4]
[null,"Q58","RP1","NORTHAMPTONSHIRE HEALTHCARE NHS FOUNDATION TRUST","Community Healthcare Other",38,1,0,null,32,6,0,0,0,0]
[null,"Q58","RP1","NORTHAMPTONSHIRE HEALTHCARE NHS FOUNDATION TRUST","Community Inpatient Services",68,0.97058823529411764,1.4705882352941176E-2,null,49,17,0,1,0,1]
[null,"Q58","RP1","NORTHAMPTONSHIRE HEALTHCARE NHS FOUNDATION TRUST","Community Nursing Services",332,0.96987951807228912,1.2048192771084338E-2,null,281,41,4,1,3,2]
[null,"Q58","RP1","NORTHAMPTONSHIRE HEALTHCARE NHS FOUNDATION TRUST","Rehabilitation & Therapy Services",1019,0.9754661432777233,4.9067713444553487E-3,null,885,109,9,2,3,11]
[null,"Q58","RP1","NORTHAMPTONSHIRE HEALTHCARE NHS FOUNDATION TRUST","Specialist Services",464,0.97629310344827591,6.4655172413793103E-3,null,378,75,6,1,2,2]
[null,"Q59","RT5","LEICESTERSHIRE PARTNERSHIP NHS TRUST","Children & Family Services",383,0.98172323759791125,7.832898172323759E-3,null,288,88,2,2,1,2]
[null,"Q59","RT5","LEICESTERSHIRE PARTNERSHIP NHS TRUST","Community Healthcare Other",38,1,0,null,29,9,0,0,0,0]
[null,"Q59","RT5","LEICESTERSHIRE PARTNERSHIP NHS TRUST","Community Inpatient Services",163,0.94478527607361962,6.1349693251533744E-3,null,116,38,2,0,1,6]
[null,"Q59","RT5","LEICESTERSHIRE PARTNERSHIP NHS TRUST","Community Nursing Services",98,0.93877551020408168,0,null,75,17,3,0,0,3]
[null,"Q59","RT5","LEICESTERSHIRE PARTNERSHIP NHS TRUST","Rehabilitation & Therapy Services",233,0.98712446351931327,4.2918454935622317E-3,null,208,22,2,0,1,0]
[null,"Q59","RT5","LEICESTERSHIRE PARTNERSHIP NHS TRUST","Specialist Services",19,1,0,null,17,2,0,0,0,0]
[null,"Q59","RY5","LINCOLNSHIRE COMMUNITY HEALTH SERVICES NHS TRUST","Children & Family Services",163,0.92638036809815949,6.1349693251533744E-3,null,113,38,6,1,0,5]
[null,"Q59","RY5","LINCOLNSHIRE COMMUNITY HEALTH SERVICES NHS TRUST","Community Healthcare Other",100,0.85,0.03,null,54,31,8,2,1,4]
[null,"Q59","RY5","LINCOLNSHIRE COMMUNITY HEALTH SERVICES NHS TRUST","Community Inpatient Services",97,0.96907216494845361,1.0309278350515464E-2,null,80,14,1,1,0,1]
[null,"Q59","RY5","LINCOLNSHIRE COMMUNITY HEALTH SERVICES NHS TRUST","Community Nursing Services",149,0.99328859060402686,0,null,127,21,1,0,0,0]
[null,"Q59","RY5","LINCOLNSHIRE COMMUNITY HEALTH SERVICES NHS TRUST","Rehabilitation & Therapy Services",67,1,0,null,57,10,0,0,0,0]
[null,"Q59","RY5","LINCOLNSHIRE COMMUNITY HEALTH SERVICES NHS TRUST","Specialist Services",151,0.98675496688741726,0,null,125,24,1,0,0,1]
[null,"Q60","R1D","SHROPSHIRE COMMUNITY HEALTH NHS TRUST","Children & Family Services",306,0.93137254901960786,3.2679738562091504E-3,null,255,30,4,0,1,16]
[null,"Q60","R1D","SHROPSHIRE COMMUNITY HEALTH NHS TRUST","Community Healthcare Other",322,0.97515527950310554,9.316770186335404E-3,null,279,35,1,2,1,4]
[null,"Q60","R1D","SHROPSHIRE COMMUNITY HEALTH NHS TRUST","Community Inpatient Services",49,0.89795918367346939,2.0408163265306121E-2,null,35,9,4,1,0,0]
[null,"Q60","R1D","SHROPSHIRE COMMUNITY HEALTH NHS TRUST","Community Nursing Services",90,1,0,null,81,9,0,0,0,0]
[null,"Q60","R1D","SHROPSHIRE COMMUNITY HEALTH NHS TRUST","Rehabilitation & Therapy Services",168,0.97023809523809523,1.7857142857142856E-2,null,139,24,1,1,2,1]
[null,"Q60","R1D","SHROPSHIRE COMMUNITY HEALTH NHS TRUST","Specialist Services",32,0.90625,3.125E-2,null,24,5,0,1,0,2]
[null,"Q60","RRE","SOUTH STAFFORDSHIRE AND SHROPSHIRE HEALTHCARE NHS FOUNDATION TRUST","Children & Family Services",46,1,0,null,38,8,0,0,0,0]
[null,"Q60","R1E","STAFFORDSHIRE AND STOKE ON TRENT PARTNERSHIP NHS TRUST","Children & Family Services",334,0.95209580838323349,0,null,251,67,11,0,0,5]
[null,"Q60","R1E","STAFFORDSHIRE AND STOKE ON TRENT PARTNERSHIP NHS TRUST","Community Healthcare Other",251,0.96414342629482075,3.9840637450199202E-3,null,209,33,5,1,0,3]
[null,"Q60","R1E","STAFFORDSHIRE AND STOKE ON TRENT PARTNERSHIP NHS TRUST","Community Inpatient Services",175,0.97714285714285709,1.1428571428571429E-2,null,127,44,1,2,0,1]
[null,"Q60","R1E","STAFFORDSHIRE AND STOKE ON TRENT PARTNERSHIP NHS TRUST","Community Nursing Services",40,1,0,null,34,6,0,0,0,0]
[null,"Q60","R1E","STAFFORDSHIRE AND STOKE ON TRENT PARTNERSHIP NHS TRUST","Rehabilitation & Therapy Services",223,1,0,null,178,45,0,0,0,0]
[null,"Q60","R1E","STAFFORDSHIRE AND STOKE ON TRENT PARTNERSHIP NHS TRUST","Specialist Services",756,0.96560846560846558,9.2592592592592587E-3,null,505,225,11,5,2,8]
[null,"Q64","R1J","GLOUCESTERSHIRE CARE SERVICES NHS TRUST","Children & Family Services",47,0.97872340425531912,0,null,32,14,1,0,0,0]
[null,"Q64","R1J","GLOUCESTERSHIRE CARE SERVICES NHS TRUST","Community Healthcare Other",1300,0.97692307692307689,1.7692307692307691E-2,null,1095,175,5,7,16,2]
[null,"Q64","R1J","GLOUCESTERSHIRE CARE SERVICES NHS TRUST","Community Inpatient Services",132,0.86363636363636365,3.787878787878788E-2,null,86,28,10,4,1,3]
[null,"Q64","R1J","GLOUCESTERSHIRE CARE SERVICES NHS TRUST","Community Nursing Services",137,0.94890510948905105,0,null,106,24,6,0,0,1]
[null,"Q64","R1J","GLOUCESTERSHIRE CARE SERVICES NHS TRUST","Rehabilitation & Therapy Services",270,0.937037037037037,2.9629629629629631E-2,null,192,61,5,3,5,4]
[null,"Q64","R1J","GLOUCESTERSHIRE CARE SERVICES NHS TRUST","Specialist Services",127,0.97637795275590555,0,null,104,20,1,0,0,2]
[null,"Q65","RH5","SOMERSET PARTNERSHIP NHS FOUNDATION TRUST","Community Inpatient Services",165,0.96969696969696972,1.2121212121212121E-2,null,129,31,1,1,1,2]
[null,"Q65","RH5","SOMERSET PARTNERSHIP NHS FOUNDATION TRUST","Rehabilitation & Therapy Services",359,0.90250696378830086,9.4707520891364902E-2,null,2,322,0,32,2,1]
[null,"Q65","RH5","SOMERSET PARTNERSHIP NHS FOUNDATION TRUST","Specialist Services",595,0.8453781512605042,0.15126050420168066,null,3,500,1,85,5,1]
[null,"Q66","RJ8","CORNWALL PARTNERSHIP NHS FOUNDATION TRUST","Children & Family Services",49,0.97959183673469385,0,null,"*","*","*","*","*","*"]
[null,"Q66","RBZ","NORTHERN DEVON HEALTHCARE NHS TRUST","Community Healthcare Other",819,0.98901098901098905,0,null,731,79,6,0,0,3]
[null,"Q66","RBZ","NORTHERN DEVON HEALTHCARE NHS TRUST","Community Inpatient Services",73,0.98630136986301364,1.3698630136986301E-2,null,61,11,0,0,1,0]
[null,"Q66","RBZ","NORTHERN DEVON HEALTHCARE NHS TRUST","Community Nursing Services",98,0.97959183673469385,0,null,84,12,2,0,0,0]
[null,"Q66","RBZ","NORTHERN DEVON HEALTHCARE NHS TRUST","Rehabilitation & Therapy Services",117,0.9145299145299145,5.9829059829059832E-2,null,80,27,2,3,4,1]
[null,"Q66","RBZ","NORTHERN DEVON HEALTHCARE NHS TRUST","Specialist Services",57,0.96491228070175439,1.7543859649122806E-2,null,46,9,0,1,0,1]
[null,"Q66","RYF","SOUTH WESTERN AMBULANCE SERVICE NHS FOUNDATION TRUST","Community Healthcare Other",4,"*","*",null,"*","*","*","*","*","*"]
[null,"Q66","R1G","TORBAY AND SOUTHERN DEVON HEALTH AND CARE NHS TRUST","Community Healthcare Other",371,0.99460916442048519,5.3908355795148251E-3,null,338,31,0,0,2,0]
[null,"Q66","R1G","TORBAY AND SOUTHERN DEVON HEALTH AND CARE NHS TRUST","Community Inpatient Services",121,0.93388429752066116,8.2644628099173556E-3,null,98,15,6,1,0,1]
[null,"Q66","R1G","TORBAY AND SOUTHERN DEVON HEALTH AND CARE NHS TRUST","Community Nursing Services",9,0.88888888888888884,0,null,7,1,0,0,0,1]
[null,"Q66","R1G","TORBAY AND SOUTHERN DEVON HEALTH AND CARE NHS TRUST","Rehabilitation & Therapy Services",36,1,0,null,35,1,0,0,0,0]
[null,"Q67","RYY","KENT COMMUNITY HEALTH NHS FOUNDATION TRUST","Children & Family Services",276,0.87681159420289856,1.8115942028985508E-2,null,173,69,9,1,4,20]
[null,"Q67","RYY","KENT COMMUNITY HEALTH NHS FOUNDATION TRUST","Community Healthcare Other",2182,0.98120989917506873,5.0412465627864347E-3,null,1790,351,18,9,2,12]
[null,"Q67","RYY","KENT COMMUNITY HEALTH NHS FOUNDATION TRUST","Community Inpatient Services",102,0.98039215686274506,0,null,67,33,1,0,0,1]
[null,"Q67","RYY","KENT COMMUNITY HEALTH NHS FOUNDATION TRUST","Community Nursing Services",182,0.97802197802197799,0,null,138,40,3,0,0,1]
[null,"Q67","RYY","KENT COMMUNITY HEALTH NHS FOUNDATION TRUST","Rehabilitation & Therapy Services",579,0.97236614853195169,3.4542314335060447E-3,null,458,105,11,0,2,3]
[null,"Q67","RYY","KENT COMMUNITY HEALTH NHS FOUNDATION TRUST","Specialist Services",791,0.97724399494310998,1.3906447534766119E-2,null,579,194,7,6,5,0]
[null,"Q68","RXC","EAST SUSSEX HEALTHCARE NHS TRUST","Community Healthcare Other",149,0.97315436241610742,6.7114093959731542E-3,null,133,12,2,1,0,1]
[null,"Q68","RXC","EAST SUSSEX HEALTHCARE NHS TRUST","Community Inpatient Services",56,0.9107142857142857,3.5714285714285712E-2,null,32,19,2,2,0,1]
[null,"Q68","RXC","EAST SUSSEX HEALTHCARE NHS TRUST","Community Nursing Services",7,1,0,null,7,0,0,0,0,0]
[null,"Q68","RXC","EAST SUSSEX HEALTHCARE NHS TRUST","Rehabilitation & Therapy Services",6,1,0,null,6,0,0,0,0,0]
[null,"Q68","RDU","FRIMLEY HEALTH NHS FOUNDATION TRUST","Community Healthcare Other",7,1,0,null,7,0,0,0,0,0]
[null,"Q68","RDU","FRIMLEY HEALTH NHS FOUNDATION TRUST","Rehabilitation & Therapy Services",11,1,0,null,11,0,0,0,0,0]
[null,"Q68","RDR","SUSSEX COMMUNITY NHS TRUST","Children & Family Services",734,0.9536784741144414,4.0871934604904629E-3,null,558,142,14,0,3,17]
[null,"Q68","RDR","SUSSEX COMMUNITY NHS TRUST","Community Healthcare Other",1033,0.96127783155856728,7.7444336882865443E-3,null,828,165,12,5,3,20]
[null,"Q68","RDR","SUSSEX COMMUNITY NHS TRUST","Community Inpatient Services",129,0.96899224806201545,7.7519379844961239E-3,null,103,22,1,1,0,2]
[null,"Q68","RDR","SUSSEX COMMUNITY NHS TRUST","Community Nursing Services",218,0.94495412844036697,1.3761467889908258E-2,null,174,32,1,1,2,8]
[null,"Q68","RDR","SUSSEX COMMUNITY NHS TRUST","Rehabilitation & Therapy Services",296,0.96621621621621623,3.3783783783783786E-3,null,242,44,5,1,0,4]
[null,"Q68","RDR","SUSSEX COMMUNITY NHS TRUST","Specialist Services",313,0.97124600638977632,3.1948881789137379E-3,null,246,58,4,1,0,4]
[null,"Q69","RWX","BERKSHIRE HEALTHCARE NHS FOUNDATION TRUST","Children & Family Services",2,"*","*",null,"*","*","*","*","*","*"]
[null,"Q69","RWX","BERKSHIRE HEALTHCARE NHS FOUNDATION TRUST","Community Healthcare Other",386,0.93523316062176165,1.5544041450777202E-2,null,306,55,9,6,0,10]
[null,"Q69","RWX","BERKSHIRE HEALTHCARE NHS FOUNDATION TRUST","Community Inpatient Services",74,0.91891891891891897,1.3513513513513514E-2,null,"*","*","*","*","*","*"]
[null,"Q69","RWX","BERKSHIRE HEALTHCARE NHS FOUNDATION TRUST","Community Nursing Services",147,0.99319727891156462,0,null,125,21,1,0,0,0]
[null,"Q69","RWX","BERKSHIRE HEALTHCARE NHS FOUNDATION TRUST","Rehabilitation & Therapy Services",444,1,0,null,388,56,0,0,0,0]
[null,"Q69","RWX","BERKSHIRE HEALTHCARE NHS FOUNDATION TRUST","Specialist Services",169,0.99408284023668636,0,null,153,15,0,0,0,1]
[null,"Q69","RXQ","BUCKINGHAMSHIRE HEALTHCARE NHS TRUST","Community Inpatient Services",35,1,0,null,29,6,0,0,0,0]
[null,"Q69","RXQ","BUCKINGHAMSHIRE HEALTHCARE NHS TRUST","Community Nursing Services",18,1,0,null,18,0,0,0,0,0]
[null,"Q69","RNU","OXFORD HEALTH NHS FOUNDATION TRUST","Children & Family Services",437,0.71853546910755151,5.2631578947368418E-2,null,186,128,37,14,9,63]
[null,"Q69","RNU","OXFORD HEALTH NHS FOUNDATION TRUST","Community Healthcare Other",326,0.94478527607361962,2.7607361963190184E-2,null,234,74,2,4,5,7]
[null,"Q69","RNU","OXFORD HEALTH NHS FOUNDATION TRUST","Community Inpatient Services",35,0.94285714285714284,5.7142857142857141E-2,null,31,2,0,1,1,0]
[null,"Q69","RNU","OXFORD HEALTH NHS FOUNDATION TRUST","Community Nursing Services",7,0.8571428571428571,0.14285714285714285,null,4,2,0,0,1,0]
[null,"Q69","RNU","OXFORD HEALTH NHS FOUNDATION TRUST","Rehabilitation & Therapy Services",16,0.9375,6.25E-2,null,11,4,0,1,0,0]
[null,"Q69","RNU","OXFORD HEALTH NHS FOUNDATION TRUST","Specialist Services",25,0.96,0,null,16,8,0,0,0,1]
[null,"Q70","RDY","DORSET HEALTHCARE UNIVERSITY NHS FOUNDATION TRUST","Children & Family Services",152,0.88815789473684215,1.9736842105263157E-2,null,74,61,12,3,0,2]
[null,"Q70","RDY","DORSET HEALTHCARE UNIVERSITY NHS FOUNDATION TRUST","Community Healthcare Other",1254,0.97846889952153115,4.7846889952153108E-3,null,1142,85,7,3,3,14]
[null,"Q70","RDY","DORSET HEALTHCARE UNIVERSITY NHS FOUNDATION TRUST","Community Inpatient Services",94,0.96808510638297873,2.1276595744680851E-2,null,71,20,0,2,0,1]
[null,"Q70","RDY","DORSET HEALTHCARE UNIVERSITY NHS FOUNDATION TRUST","Community Nursing Services",299,0.91638795986622068,2.3411371237458192E-2,null,197,77,14,3,4,4]
[null,"Q70","RDY","DORSET HEALTHCARE UNIVERSITY NHS FOUNDATION TRUST","Rehabilitation & Therapy Services",21,1,0,null,19,2,0,0,0,0]
[null,"Q70","RDY","DORSET HEALTHCARE UNIVERSITY NHS FOUNDATION TRUST","Specialist Services",5,0.8,0,null,1,3,0,0,0,1]
[null,"Q70","R1F","ISLE OF WIGHT NHS TRUST","Community Inpatient Services",27,0.92592592592592593,3.7037037037037035E-2,null,18,7,1,0,1,0]
[null,"Q70","R1F","ISLE OF WIGHT NHS TRUST","Community Nursing Services",24,1,0,null,20,4,0,0,0,0]
[null,"Q70","R1F","ISLE OF WIGHT NHS TRUST","Rehabilitation & Therapy Services",57,1,0,null,50,7,0,0,0,0]
[null,"Q70","R1F","ISLE OF WIGHT NHS TRUST","Specialist Services",33,1,0,null,31,2,0,0,0,0]
[null,"Q70","R1C","SOLENT NHS TRUST","Children & Family Services",90,0.98888888888888893,0,null,69,20,1,0,0,0]
[null,"Q70","R1C","SOLENT NHS TRUST","Community Healthcare Other",128,0.9609375,2.34375E-2,null,87,36,2,2,1,0]
[null,"Q70","R1C","SOLENT NHS TRUST","Community Inpatient Services",34,0.94117647058823528,0,null,24,8,1,0,0,1]
[null,"Q70","R1C","SOLENT NHS TRUST","Community Nursing Services",66,0.95454545454545459,1.5151515151515152E-2,null,60,3,0,0,1,2]
[null,"Q70","R1C","SOLENT NHS TRUST","Rehabilitation & Therapy Services",90,0.93333333333333335,1.1111111111111112E-2,null,74,10,0,1,0,5]
[null,"Q70","R1C","SOLENT NHS TRUST","Specialist Services",172,0.97674418604651159,0,null,116,52,2,0,0,2]
[null,"Q70","RW1","SOUTHERN HEALTH NHS FOUNDATION TRUST","Children & Family Services",581,0.94320137693631667,1.2048192771084338E-2,null,397,151,16,3,4,10]
[null,"Q70","RW1","SOUTHERN HEALTH NHS FOUNDATION TRUST","Community Healthcare Other",31,0.93548387096774188,0,null,29,0,2,0,0,0]
[null,"Q70","RW1","SOUTHERN HEALTH NHS FOUNDATION TRUST","Community Inpatient Services",163,0.96319018404907975,0,null,136,21,5,0,0,1]
[null,"Q70","RW1","SOUTHERN HEALTH NHS FOUNDATION TRUST","Community Nursing Services",273,0.94871794871794868,7.326007326007326E-3,null,218,41,7,1,1,5]
[null,"Q70","RW1","SOUTHERN HEALTH NHS FOUNDATION TRUST","Rehabilitation & Therapy Services",10,1,0,null,10,0,0,0,0,0]
[null,"Q70","RW1","SOUTHERN HEALTH NHS FOUNDATION TRUST","Specialist Services",336,0.97023809523809523,8.9285714285714281E-3,null,283,43,7,1,2,0]
[null,"Q71","RRP","BARNET, ENFIELD AND HARINGEY MENTAL HEALTH NHS TRUST","Children & Family Services",98,0.90816326530612246,2.0408163265306121E-2,null,58,31,3,1,1,4]
[null,"Q71","RRP","BARNET, ENFIELD AND HARINGEY MENTAL HEALTH NHS TRUST","Community Inpatient Services",10,0.8,0,null,0,8,2,0,0,0]
[null,"Q71","RRP","BARNET, ENFIELD AND HARINGEY MENTAL HEALTH NHS TRUST","Community Nursing Services",8,1,0,null,5,3,0,0,0,0]
[null,"Q71","RRP","BARNET, ENFIELD AND HARINGEY MENTAL HEALTH NHS TRUST","Rehabilitation & Therapy Services",22,0.95454545454545459,0,null,15,6,0,0,0,1]
[null,"Q71","RRP","BARNET, ENFIELD AND HARINGEY MENTAL HEALTH NHS TRUST","Specialist Services",71,0.6901408450704225,0,null,38,11,1,0,0,21]
[null,"Q71","R1H","BARTS HEALTH NHS TRUST","Community Healthcare Other",20,0.95,0,null,18,1,1,0,0,0]
[null,"Q71","R1H","BARTS HEALTH NHS TRUST","Community Nursing Services",43,0.93023255813953487,0,null,34,6,3,0,0,0]
[null,"Q71","R1H","BARTS HEALTH NHS TRUST","Rehabilitation & Therapy Services",144,0.97916666666666663,1.3888888888888888E-2,null,123,18,0,0,2,1]
[null,"Q71","R1H","BARTS HEALTH NHS TRUST","Specialist Services",156,0.95512820512820518,6.41025641025641E-3,null,111,38,6,0,1,0]
[null,"Q71","RV3","CENTRAL AND NORTH WEST LONDON NHS FOUNDATION TRUST","Children & Family Services",141,0.92907801418439717,2.1276595744680851E-2,null,99,32,5,1,2,2]
[null,"Q71","RV3","CENTRAL AND NORTH WEST LONDON NHS FOUNDATION TRUST","Community Inpatient Services",21,0.90476190476190477,0,null,14,5,1,0,0,1]
[null,"Q71","RV3","CENTRAL AND NORTH WEST LONDON NHS FOUNDATION TRUST","Community Nursing Services",37,0.97297297297297303,0,null,28,8,1,0,0,0]
[null,"Q71","RV3","CENTRAL AND NORTH WEST LONDON NHS FOUNDATION TRUST","Rehabilitation & Therapy Services",123,0.99186991869918695,0,null,83,39,1,0,0,0]
[null,"Q71","RV3","CENTRAL AND NORTH WEST LONDON NHS FOUNDATION TRUST","Specialist Services",44,0.81818181818181823,6.8181818181818177E-2,null,29,7,2,1,2,3]
[null,"Q71","RYX","CENTRAL LONDON COMMUNITY HEALTHCARE NHS TRUST","Children & Family Services",145,0.91724137931034477,2.7586206896551724E-2,null,94,39,7,3,1,1]
[null,"Q71","RYX","CENTRAL LONDON COMMUNITY HEALTHCARE NHS TRUST","Community Healthcare Other",306,0.84640522875816993,8.1699346405228759E-2,null,164,95,7,15,10,15]
[null,"Q71","RYX","CENTRAL LONDON COMMUNITY HEALTHCARE NHS TRUST","Community Inpatient Services",58,0.89655172413793105,3.4482758620689655E-2,null,22,30,1,1,1,3]
[null,"Q71","RYX","CENTRAL LONDON COMMUNITY HEALTHCARE NHS TRUST","Community Nursing Services",233,0.89699570815450647,5.1502145922746781E-2,null,142,67,5,6,6,7]
[null,"Q71","RYX","CENTRAL LONDON COMMUNITY HEALTHCARE NHS TRUST","Rehabilitation & Therapy Services",379,0.87862796833773082,7.1240105540897103E-2,null,205,128,10,17,10,9]
[null,"Q71","RYX","CENTRAL LONDON COMMUNITY HEALTHCARE NHS TRUST","Specialist Services",489,0.84253578732106338,0.10429447852760736,null,366,46,21,16,35,5]
[null,"Q71","RJ6","CROYDON HEALTH SERVICES NHS TRUST","Children & Family Services",67,0.97014925373134331,1.4925373134328358E-2,null,57,8,1,1,0,0]
[null,"Q71","RJ6","CROYDON HEALTH SERVICES NHS TRUST","Community Nursing Services",54,1,0,null,47,7,0,0,0,0]
[null,"Q71","RJ6","CROYDON HEALTH SERVICES NHS TRUST","Rehabilitation & Therapy Services",103,0.98058252427184467,9.7087378640776691E-3,null,87,14,0,1,0,1]
[null,"Q71","RJ6","CROYDON HEALTH SERVICES NHS TRUST","Specialist Services",107,0.9719626168224299,0,null,81,23,0,0,0,3]
[null,"Q71","RJ1","GUY'S AND ST THOMAS' NHS FOUNDATION TRUST","Children & Family Services",60,0.96666666666666667,0,null,36,22,2,0,0,0]
[null,"Q71","RJ1","GUY'S AND ST THOMAS' NHS FOUNDATION TRUST","Community Inpatient Services",9,1,0,null,5,4,0,0,0,0]
[null,"Q71","RJ1","GUY'S AND ST THOMAS' NHS FOUNDATION TRUST","Community Nursing Services",35,0.91428571428571426,2.8571428571428571E-2,null,20,12,2,1,0,0]
[null,"Q71","RJ1","GUY'S AND ST THOMAS' NHS FOUNDATION TRUST","Rehabilitation & Therapy Services",12,0.91666666666666663,8.3333333333333329E-2,null,10,1,0,1,0,0]
[null,"Q71","RJ1","GUY'S AND ST THOMAS' NHS FOUNDATION TRUST","Specialist Services",32,0.96875,0,null,17,14,1,0,0,0]
[null,"Q71","RQX","HOMERTON UNIVERSITY HOSPITAL NHS FOUNDATION TRUST","Community Nursing Services",24,1,0,null,18,6,0,0,0,0]
[null,"Q71","RQX","HOMERTON UNIVERSITY HOSPITAL NHS FOUNDATION TRUST","Rehabilitation & Therapy Services",132,0.98484848484848486,0,null,97,33,1,0,0,1]
[null,"Q71","RQX","HOMERTON UNIVERSITY HOSPITAL NHS FOUNDATION TRUST","Specialist Services",218,0.97706422018348627,4.5871559633027525E-3,null,179,34,4,0,1,0]
[null,"Q71","RY9","HOUNSLOW AND RICHMOND COMMUNITY HEALTHCARE NHS TRUST","Children & Family Services",162,0.96296296296296291,1.2345679012345678E-2,null,100,56,2,1,1,2]
[null,"Q71","RY9","HOUNSLOW AND RICHMOND COMMUNITY HEALTHCARE NHS TRUST","Community Healthcare Other",205,0.95609756097560972,1.9512195121951219E-2,null,168,28,5,3,1,0]
[null,"Q71","RY9","HOUNSLOW AND RICHMOND COMMUNITY HEALTHCARE NHS TRUST","Community Inpatient Services",20,0.95,0.05,null,17,2,0,1,0,0]
[null,"Q71","RY9","HOUNSLOW AND RICHMOND COMMUNITY HEALTHCARE NHS TRUST","Community Nursing Services",98,0.97959183673469385,1.020408163265306E-2,null,67,29,0,0,1,1]
[null,"Q71","RY9","HOUNSLOW AND RICHMOND COMMUNITY HEALTHCARE NHS TRUST","Rehabilitation & Therapy Services",1,"*","*",null,"*","*","*","*","*","*"]
[null,"Q71","RY9","HOUNSLOW AND RICHMOND COMMUNITY HEALTHCARE NHS TRUST","Specialist Services",7,0.5714285714285714,0.14285714285714285,null,"*","*","*","*","*","*"]
[null,"Q71","RJ2","LEWISHAM AND GREENWICH NHS TRUST","Specialist Services",722,0.95152354570637121,1.5235457063711912E-2,null,495,192,21,5,6,3]
[null,"Q71","R1K","LONDON NORTH WEST HEALTHCARE NHS TRUST","Community Nursing Services",42,0.97619047619047616,0,null,24,17,1,0,0,0]
[null,"Q71","R1K","LONDON NORTH WEST HEALTHCARE NHS TRUST","Rehabilitation & Therapy Services",18,1,0,null,11,7,0,0,0,0]
[null,"Q71","R1K","LONDON NORTH WEST HEALTHCARE NHS TRUST","Specialist Services",140,0.97142857142857142,7.1428571428571426E-3,null,102,34,1,1,0,2]
[null,"Q71","RAT","NORTH EAST LONDON NHS FOUNDATION TRUST","Children & Family Services",156,0.94230769230769229,6.41025641025641E-3,null,109,38,8,1,0,0]
[null,"Q71","RAT","NORTH EAST LONDON NHS FOUNDATION TRUST","Community Healthcare Other",9,0.88888888888888884,0,null,6,2,1,0,0,0]
[null,"Q71","RAT","NORTH EAST LONDON NHS FOUNDATION TRUST","Community Inpatient Services",119,0.94957983193277307,8.4033613445378148E-3,null,74,39,4,0,1,1]
[null,"Q71","RAT","NORTH EAST LONDON NHS FOUNDATION TRUST","Community Nursing Services",133,0.96992481203007519,7.5187969924812026E-3,null,87,42,3,1,0,0]
[null,"Q71","RAT","NORTH EAST LONDON NHS FOUNDATION TRUST","Rehabilitation & Therapy Services",134,0.97761194029850751,0,null,109,22,2,0,0,1]
[null,"Q71","RAT","NORTH EAST LONDON NHS FOUNDATION TRUST","Specialist Services",192,0.95833333333333337,1.0416666666666666E-2,null,128,56,4,2,0,2]
[null,"Q71","RPG","OXLEAS NHS FOUNDATION TRUST","Children & Family Services",132,0.98484848484848486,0,null,93,37,2,0,0,0]
[null,"Q71","RPG","OXLEAS NHS FOUNDATION TRUST","Community Healthcare Other",73,1,0,null,66,7,0,0,0,0]
[null,"Q71","RPG","OXLEAS NHS FOUNDATION TRUST","Community Inpatient Services",16,0.875,6.25E-2,null,14,0,1,1,0,0]
[null,"Q71","RPG","OXLEAS NHS FOUNDATION TRUST","Community Nursing Services",19,1,0,null,16,3,0,0,0,0]
[null,"Q71","RPG","OXLEAS NHS FOUNDATION TRUST","Rehabilitation & Therapy Services",106,0.98113207547169812,0,null,90,14,1,0,0,1]
[null,"Q71","RPY","THE ROYAL MARSDEN NHS FOUNDATION TRUST","Children & Family Services",10,1,0,null,9,1,0,0,0,0]
[null,"Q71","RPY","THE ROYAL MARSDEN NHS FOUNDATION TRUST","Community Nursing Services",14,0.8571428571428571,0,null,9,3,2,0,0,0]
[null,"Q71","RPY","THE ROYAL MARSDEN NHS FOUNDATION TRUST","Rehabilitation & Therapy Services",41,0.85365853658536583,4.878048780487805E-2,null,19,16,3,1,1,1]
[null,"Q71","RPY","THE ROYAL MARSDEN NHS FOUNDATION TRUST","Specialist Services",7,1,0,null,6,1,0,0,0,0]
[null,"Q71","RKE","THE WHITTINGTON HOSPITAL NHS TRUST","Children & Family Services",33,0.96969696969696972,0,null,26,6,1,0,0,0]
[null,"Q71","RKE","THE WHITTINGTON HOSPITAL NHS TRUST","Community Inpatient Services",8,0.625,0.25,null,3,2,0,0,2,1]
[null,"Q71","RKE","THE WHITTINGTON HOSPITAL NHS TRUST","Community Nursing Services",11,1,0,null,9,2,0,0,0,0]
[null,"Q71","RKE","THE WHITTINGTON HOSPITAL NHS TRUST","Rehabilitation & Therapy Services",60,0.98333333333333328,1.6666666666666666E-2,null,29,30,0,0,1,0]
[null,"Q71","RKE","THE WHITTINGTON HOSPITAL NHS TRUST","Specialist Services",51,0.96078431372549022,0,null,41,8,2,0,0,0]
[null,"Q71","RFW","WEST MIDDLESEX UNIVERSITY HOSPITAL NHS TRUST","Children & Family Services",3,"*","*",null,"*","*","*","*","*","*"]
[null,"Q71","RFW","WEST MIDDLESEX UNIVERSITY HOSPITAL NHS TRUST","Specialist Services",224,0.9642857142857143,0,null,"*","*","*","*","*","*"]
[null,"IS1","NQ1","ANGLIAN COMMUNITY ENTERPRISE COMMUNITY INTEREST COMPANY (ACE CIC)","Children & Family Services",218,1,0,null,174,44,0,0,0,0]
[null,"IS1","NQ1","ANGLIAN COMMUNITY ENTERPRISE COMMUNITY INTEREST COMPANY (ACE CIC)","Community Healthcare Other",754,0.980106100795756,3.9787798408488064E-3,null,595,144,12,2,1,0]
[null,"IS1","NQ1","ANGLIAN COMMUNITY ENTERPRISE COMMUNITY INTEREST COMPANY (ACE CIC)","Community Inpatient Services",69,0.98550724637681164,0,null,62,6,1,0,0,0]
[null,"IS1","NQ1","ANGLIAN COMMUNITY ENTERPRISE COMMUNITY INTEREST COMPANY (ACE CIC)","Community Nursing Services",102,0.99019607843137258,9.8039215686274508E-3,null,88,13,0,0,1,0]
[null,"IS1","NQ1","ANGLIAN COMMUNITY ENTERPRISE COMMUNITY INTEREST COMPANY (ACE CIC)","Rehabilitation & Therapy Services",60,0.96666666666666667,0,null,47,11,0,0,0,2]
[null,"IS1","NQ1","ANGLIAN COMMUNITY ENTERPRISE COMMUNITY INTEREST COMPANY (ACE CIC)","Specialist Services",46,1,0,null,40,6,0,0,0,0]
[null,"IS1","8HH94","BARDOC","Community Healthcare Other",37,0.72972972972972971,0.21621621621621623,null,19,8,2,2,6,0]
[null,"IS1","NLW","BRISTOL COMMUNITY HEALTH","Community Healthcare Other",723,0.94467496542185336,2.4896265560165973E-2,null,511,172,17,9,9,5]
[null,"IS1","NLW","BRISTOL COMMUNITY HEALTH","Community Nursing Services",76,0.97368421052631582,0,null,59,15,2,0,0,0]
[null,"IS1","NLW","BRISTOL COMMUNITY HEALTH","Rehabilitation & Therapy Services",92,0.97826086956521741,0,null,75,15,1,0,0,1]
[null,"IS1","NLW","BRISTOL COMMUNITY HEALTH","Specialist Services",44,0.93181818181818177,6.8181818181818177E-2,null,28,13,0,1,2,0]
[null,"IS1","NQV","BROMLEY HEALTHCARE","Children & Family Services",1,"*","*",null,"*","*","*","*","*","*"]
[null,"IS1","NQV","BROMLEY HEALTHCARE","Community Nursing Services",15,1,0,null,12,3,0,0,0,0]
[null,"IS1","NQV","BROMLEY HEALTHCARE","Rehabilitation & Therapy Services",12,1,0,null,"*","*","*","*","*","*"]
[null,"IS1","NQV","BROMLEY HEALTHCARE","Specialist Services",52,1,0,null,43,9,0,0,0,0]
[null,"IS1","NTP","CARE UK","Community Healthcare Other",2851,0.94738688179586106,2.5605050859347597E-2,null,1994,707,51,31,42,26]
[null,"IS1","NNF","CITY HEALTH CARE PARTNERSHIP CIC","Children & Family Services",61,1,0,null,51,10,0,0,0,0]
[null,"IS1","NNF","CITY HEALTH CARE PARTNERSHIP CIC","Community Healthcare Other",28,0.9285714285714286,7.1428571428571425E-2,null,20,6,0,0,2,0]
[null,"IS1","NNF","CITY HEALTH CARE PARTNERSHIP CIC","Community Nursing Services",156,0.96794871794871795,3.2051282051282048E-2,null,119,32,0,0,5,0]
[null,"IS1","NNF","CITY HEALTH CARE PARTNERSHIP CIC","Rehabilitation & Therapy Services",17,1,0,null,13,4,0,0,0,0]
[null,"IS1","NNF","CITY HEALTH CARE PARTNERSHIP CIC","Specialist Services",169,0.97041420118343191,5.9171597633136093E-3,null,135,29,3,1,0,1]
[null,"IS1","NTV","CSH SURREY","Children & Family Services",68,0.8529411764705882,7.3529411764705885E-2,null,42,16,2,3,2,3]
[null,"IS1","NTV","CSH SURREY","Community Healthcare Other",2,"*","*",null,"*","*","*","*","*","*"]
[null,"IS1","NTV","CSH SURREY","Community Inpatient Services",37,0.89189189189189189,5.4054054054054057E-2,null,23,10,0,0,2,2]
[null,"IS1","NTV","CSH SURREY","Community Nursing Services",28,0.9642857142857143,3.5714285714285712E-2,null,27,0,0,1,0,0]
[null,"IS1","NTV","CSH SURREY","Rehabilitation & Therapy Services",15,1,0,null,"*","*","*","*","*","*"]
[null,"IS1","NAX","EAST COAST COMMUNITY HEALTHCARE C.I.C","Children & Family Services",66,1,0,null,52,14,0,0,0,0]
[null,"IS1","NAX","EAST COAST COMMUNITY HEALTHCARE C.I.C","Community Healthcare Other",147,0.99319727891156462,0,null,128,18,1,0,0,0]
[null,"IS1","NAX","EAST COAST COMMUNITY HEALTHCARE C.I.C","Community Nursing Services",146,0.99315068493150682,6.8493150684931503E-3,null,137,8,0,1,0,0]
[null,"IS1","NAX","EAST COAST COMMUNITY HEALTHCARE C.I.C","Rehabilitation & Therapy Services",335,0.9880597014925373,5.9701492537313433E-3,null,292,39,2,0,2,0]
[null,"IS1","NAX","EAST COAST COMMUNITY HEALTHCARE C.I.C","Specialist Services",47,0.95744680851063835,2.1276595744680851E-2,null,43,2,1,0,1,0]
[null,"IS1","NDJ","FIRST COMMUNITY HEALTH AND CARE CIC","Children & Family Services",181,0.98342541436464093,0,null,144,34,1,0,0,2]
[null,"IS1","NDJ","FIRST COMMUNITY HEALTH AND CARE CIC","Community Healthcare Other",168,0.98809523809523814,0,null,158,8,1,0,0,1]
[null,"IS1","NDJ","FIRST COMMUNITY HEALTH AND CARE CIC","Community Inpatient Services",2,"*","*",null,"*","*","*","*","*","*"]
[null,"IS1","NDJ","FIRST COMMUNITY HEALTH AND CARE CIC","Community Nursing Services",44,0.97727272727272729,0,null,"*","*","*","*","*","*"]
[null,"IS1","NDJ","FIRST COMMUNITY HEALTH AND CARE CIC","Rehabilitation & Therapy Services",294,0.97278911564625847,1.020408163265306E-2,null,220,66,3,1,2,2]
[null,"IS1","NDJ","FIRST COMMUNITY HEALTH AND CARE CIC","Specialist Services",55,0.94545454545454544,1.8181818181818181E-2,null,44,8,1,0,1,1]
[null,"IS1","NQ7","MEDWAY COMMUNITY HEALTHCARE","Children & Family Services",2,"*","*",null,"*","*","*","*","*","*"]
[null,"IS1","NQ7","MEDWAY COMMUNITY HEALTHCARE","Community Healthcare Other",43,0.86046511627906974,6.9767441860465115E-2,null,28,9,3,1,2,0]
[null,"IS1","NQ7","MEDWAY COMMUNITY HEALTHCARE","Community Inpatient Services",23,0.95652173913043481,4.3478260869565216E-2,null,21,1,0,0,1,0]
[null,"IS1","NQ7","MEDWAY COMMUNITY HEALTHCARE","Community Nursing Services",6,1,0,null,"*","*","*","*","*","*"]
[null,"IS1","NQ7","MEDWAY COMMUNITY HEALTHCARE","Rehabilitation & Therapy Services",128,0.9609375,7.8125E-3,null,109,14,2,0,1,2]
[null,"IS1","NQ7","MEDWAY COMMUNITY HEALTHCARE","Specialist Services",66,0.95454545454545459,1.5151515151515152E-2,null,57,6,0,1,0,2]
[null,"IS1","NLT","NORTH SOMERSET COMMUNITY PARTNERSHIP COMMUNITY INTEREST COMPANY","Children & Family Services",79,0.96202531645569622,1.2658227848101266E-2,null,58,18,1,1,0,1]
[null,"IS1","NLT","NORTH SOMERSET COMMUNITY PARTNERSHIP COMMUNITY INTEREST COMPANY","Community Healthcare Other",444,0.98648648648648651,2.2522522522522522E-3,null,380,58,2,0,1,3]
[null,"IS1","NLT","NORTH SOMERSET COMMUNITY PARTNERSHIP COMMUNITY INTEREST COMPANY","Community Inpatient Services",12,1,0,null,"*","*","*","*","*","*"]
[null,"IS1","NLT","NORTH SOMERSET COMMUNITY PARTNERSHIP COMMUNITY INTEREST COMPANY","Community Nursing Services",185,0.97297297297297303,0,null,120,60,4,0,0,1]
[null,"IS1","NLT","NORTH SOMERSET COMMUNITY PARTNERSHIP COMMUNITY INTEREST COMPANY","Rehabilitation & Therapy Services",4,"*","*",null,"*","*","*","*","*","*"]
[null,"IS1","NLT","NORTH SOMERSET COMMUNITY PARTNERSHIP COMMUNITY INTEREST COMPANY","Specialist Services",156,0.98076923076923073,0,null,123,30,0,0,0,3]
[null,"IS1","NR3","NOTTINGHAM CITYCARE PARTNERSHIP","Children & Family Services",17,0.94117647058823528,0,null,13,3,0,0,0,1]
[null,"IS1","NR3","NOTTINGHAM CITYCARE PARTNERSHIP","Community Healthcare Other",72,0.98611111111111116,0,null,50,21,0,0,0,1]
[null,"IS1","NR3","NOTTINGHAM CITYCARE PARTNERSHIP","Community Nursing Services",58,0.91379310344827591,3.4482758620689655E-2,null,46,7,1,1,1,2]
[null,"IS1","NR3","NOTTINGHAM CITYCARE PARTNERSHIP","Rehabilitation & Therapy Services",125,0.93600000000000005,8.0000000000000002E-3,null,94,23,0,1,0,7]
[null,"IS1","NR3","NOTTINGHAM CITYCARE PARTNERSHIP","Specialist Services",110,0.9363636363636364,2.7272727272727271E-2,null,87,16,4,1,2,0]
[null,"IS1","NQH","NOVUS HEALTH LTD","Community Healthcare Other",31,0.967741935483871,3.2258064516129031E-2,null,28,2,0,1,0,0]
[null,"IS1","NQH","NOVUS HEALTH LTD","Rehabilitation & Therapy Services",131,0.96183206106870234,1.5267175572519083E-2,null,105,21,3,1,1,0]
[null,"IS1","NLL","PENINSULA COMMUNITY HEALTH C.I.C","Community Healthcare Other",894,0.98434004474272929,5.5928411633109623E-3,null,795,85,5,2,3,4]
[null,"IS1","NLL","PENINSULA COMMUNITY HEALTH C.I.C","Community Inpatient Services",103,0.98058252427184467,0,null,77,24,2,0,0,0]
[null,"IS1","NLL","PENINSULA COMMUNITY HEALTH C.I.C","Community Nursing Services",167,0.98203592814371254,1.1976047904191617E-2,null,140,24,0,1,1,1]
[null,"IS1","NLL","PENINSULA COMMUNITY HEALTH C.I.C","Rehabilitation & Therapy Services",18,1,0,null,16,2,0,0,0,0]
[null,"IS1","NLL","PENINSULA COMMUNITY HEALTH C.I.C","Specialist Services",12,0.91666666666666663,0,null,11,0,0,0,0,1]
[null,"IS1","NR5","PLYMOUTH COMMUNITY HEALTHCARE (CIC)","Community Healthcare Other",745,0.9852348993288591,5.3691275167785232E-3,null,625,109,5,2,2,2]
[null,"IS1","NR5","PLYMOUTH COMMUNITY HEALTHCARE (CIC)","Community Inpatient Services",20,1,0,null,19,1,0,0,0,0]
[null,"IS1","NQA","PROVIDE","Children & Family Services",39,0.84615384615384615,2.564102564102564E-2,null,26,7,0,0,1,5]
[null,"IS1","NQA","PROVIDE","Community Healthcare Other",26,1,0,null,26,0,0,0,0,0]
[null,"IS1","NQA","PROVIDE","Community Inpatient Services",52,1,0,null,41,11,0,0,0,0]
[null,"IS1","NQA","PROVIDE","Community Nursing Services",5,1,0,null,"*","*","*","*","*","*"]
[null,"IS1","NQA","PROVIDE","Rehabilitation & Therapy Services",11,1,0,null,11,0,0,0,0,0]
[null,"IS1","NQA","PROVIDE","Specialist Services",1,"*","*",null,"*","*","*","*","*","*"]
[null,"IS1","NNC","SOLENT MEDICAL SERVICES LIMITED","Community Healthcare Other",6,1,0,null,1,5,0,0,0,0]
[null,"IS1","NGX","TAURUS HEALTHCARE LTD","Community Healthcare Other",375,0.98666666666666669,0,null,310,60,5,0,0,0]
[null,"IS1","NGX","TAURUS HEALTHCARE LTD","Community Nursing Services",3,"*","*",null,"*","*","*","*","*","*"]
[null,"IS1","NGX","TAURUS HEALTHCARE LTD","Rehabilitation & Therapy Services",73,1,0,null,"*","*","*","*","*","*"]
[null,"IS1","NDK","YARBOROUGH CLEE CARE LIMITED","Community Nursing Services",19,1,0,null,17,2,0,0,0,0]
[null,"IS1","NNV","YOUR HEALTHCARE","Community Inpatient Services",10,1,0,null,"*","*","*","*","*","*"]
[null,"IS1","NNV","YOUR HEALTHCARE","Specialist Services",4,"*","*",null,"*","*","*","*","*","*"]

{"sheet":"BS","index":4,"n_rows":461,"n_cols":38,"rows_kept":461,"cut":false,"hidden":true,"merged":[]}
["Please select criteria…",1,"All areas",1,"N/A","N/A",null,"All areas",null,"Please select criteria…",1,"All trusts",1,1,"N/A",null,null,null,"Please select criteria…",1,"All categories",1,1,1,null,null,null,"All trusts","All categories",null,null,null,"<---fixed lists",null,"All trusts",null,"All trusts","All categories"]
["Area Team Code",null,"IS1 Independent Sector Provider",null,null,null,null,"IS1",null,"Area Team Code",null,"5 BOROUGHS PARTNERSHIP NHS FOUNDATION TRUST",null,null,null,null,null,null,"Area Team Code",null,"Specialist Services",null,null,null,null,null,"IS1 Independent Sector Provider","ANGLIAN COMMUNITY ENTERPRISE COMMUNITY INTEREST COMPANY (ACE CIC)","Children & Family Services",null,null,null,"linked lists--->",null,"5 BOROUGHS PARTNERSHIP NHS FOUNDATION TRUST",null,"5 BOROUGHS PARTNERSHIP NHS FOUNDATION TRUST","Specialist Services"]
["Area Team Name",null,"Q44 Cheshire, Warrington And Wirral Area Team",null,null,null,null,"Q44",null,"Trust Code",null,"AIREDALE NHS FOUNDATION TRUST",null,null,null,null,null,null,"Trust Code",null,"Community Inpatient Services",null,null,null,null,null,"IS1 Independent Sector Provider","ANGLIAN COMMUNITY ENTERPRISE COMMUNITY INTEREST COMPANY (ACE CIC)","Community Healthcare Other",null,null,null,null,null,"AIREDALE NHS FOUNDATION TRUST",null,"AIREDALE NHS FOUNDATION TRUST","Community Inpatient Services"]
["Total Responses",null,"Q45 Durham, Darlington And Tees Area Team",null,null,null,null,"Q45",null,"Trust Name",null,"ANGLIAN COMMUNITY ENTERPRISE COMMUNITY INTEREST COMPANY (ACE CIC)",null,null,null,null,null,null,"Trust Name",null,"Rehabilitation & Therapy Services",null,null,null,null,null,"IS1 Independent Sector Provider","ANGLIAN COMMUNITY ENTERPRISE COMMUNITY INTEREST COMPANY (ACE CIC)","Community Inpatient Services",null,null,null,null,null,"ANGLIAN COMMUNITY ENTERPRISE COMMUNITY INTEREST COMPANY (ACE CIC)",null,"ANGLIAN COMMUNITY ENTERPRISE COMMUNITY INTEREST COMPANY (ACE CIC)","Rehabilitation & Therapy Services"]
["Total Eligible",null,"Q46 Greater Manchester Area Team",null,null,null,null,"Q46",null,"Total Responses",null,"BARDOC",null,null,null,null,null,null,"Category",null,"Community Healthcare Other",null,null,null,null,null,"IS1 Independent Sector Provider","ANGLIAN COMMUNITY ENTERPRISE COMMUNITY INTEREST COMPANY (ACE CIC)","Community Nursing Services",null,null,null,null,null,"BARDOC",null,"BARDOC","Community Healthcare Other"]
["Percentage Recommended",null,"Q47 Lancashire Area Team",null,null,null,null,"Q47",null,"Total Eligible",null,"BARNET, ENFIELD AND HARINGEY MENTAL HEALTH NHS TRUST",null,null,null,null,null,null,"Total Responses",null,"Community Nursing Services",null,null,null,null,null,"IS1 Independent Sector Provider","ANGLIAN COMMUNITY ENTERPRISE COMMUNITY INTEREST COMPANY (ACE CIC)","Rehabilitation & Therapy Services",null,null,null,null,null,"BARNET, ENFIELD AND HARINGEY MENTAL HEALTH NHS TRUST",null,"BARNET, ENFIELD AND HARINGEY MENTAL HEALTH NHS TRUST","Community Nursing Services"]
["Percentage Not  Recommended",null,"Q48 Merseyside Area Team",null,null,null,null,"Q48",null,"Percentage Recommended",null,"BARTS HEALTH NHS TRUST",null,null,null,null,null,null,"Percentage Recommended",null,"Children & Family Services",null,null,null,null,null,"IS1 Independent Sector Provider","ANGLIAN COMMUNITY ENTERPRISE COMMUNITY INTEREST COMPANY (ACE CIC)","Specialist Services",null,null,null,null,null,"BARTS HEALTH NHS TRUST",null,"BARTS HEALTH NHS TRUST","Children & Family Services"]
["Extremely Likely",null,"Q49 Cumbria, Northumberland, Tyne And Wear Area Team",null,null,null,null,"Q49",null,"Percentage Not  Recommended",null,"BERKSHIRE HEALTHCARE NHS FOUNDATION TRUST",null,null,null,null,null,null,"Percentage Not  Recommended",null,null,null,null,null,null,null,"IS1 Independent Sector Provider","BARDOC","Community Healthcare Other",null,null,null,null,null,"BERKSHIRE HEALTHCARE NHS FOUNDATION TRUST",null,"BERKSHIRE HEALTHCARE NHS FOUNDATION TRUST"]
["Likely",null,"Q50 North Yorkshire And Humber Area Team",null,null,null,null,"Q50",null,"Extremely Likely",null,"BIRMINGHAM COMMUNITY HEALTHCARE NHS TRUST",null,null,null,null,null,null,"Extremely Likely",null,null,null,null,null,null,null,"IS1 Independent Sector Provider","BRISTOL COMMUNITY HEALTH","Community Healthcare Other",null,null,null,null,null,"BIRMINGHAM COMMUNITY HEALTHCARE NHS TRUST",null,"BIRMINGHAM COMMUNITY HEALTHCARE NHS TRUST"]
["Neither",null,"Q51 South Yorkshire And Bassetlaw Area Team",null,null,null,null,"Q51",null,"Likely",null,"BLACK COUNTRY PARTNERSHIP NHS FOUNDATION TRUST",null,null,null,null,null,null,"Likely",null,null,null,null,null,null,null,"IS1 Independent Sector Provider","BRISTOL COMMUNITY HEALTH","Community Nursing Services",null,null,null,null,null,"BLACK COUNTRY PARTNERSHIP NHS FOUNDATION TRUST",null,"BLACK COUNTRY PARTNERSHIP NHS FOUNDATION TRUST"]
["Unlikely",null,"Q52 West Yorkshire Area Team",null,null,null,null,"Q52",null,"Neither",null,"BLACKPOOL TEACHING HOSPITALS NHS FOUNDATION TRUST",null,null,null,null,null,null,"Neither",null,null,null,null,null,null,null,"IS1 Independent Sector Provider","BRISTOL COMMUNITY HEALTH","Rehabilitation & Therapy Services",null,null,null,null,null,"BLACKPOOL TEACHING HOSPITALS NHS FOUNDATION TRUST",null,"BLACKPOOL TEACHING HOSPITALS NHS FOUNDATION TRUST"]
["Extremely Unlikely",null,"Q53 Arden, Herefordshire And Worcestershire Area Team",null,null,null,null,"Q53",null,"Unlikely",null,"BOLTON NHS FOUNDATION TRUST",null,null,null,null,null,null,"Unlikely",null,null,null,null,null,null,null,"IS1 Independent Sector Provider","BRISTOL COMMUNITY HEALTH","Specialist Services",null,null,null,null,null,"BOLTON NHS FOUNDATION TRUST",null,"BOLTON NHS FOUNDATION TRUST"]
["Don't Know",null,"Q54 Birmingham And The Black Country Area Team",null,null,null,null,"Q54",null,"Extremely Unlikely",null,"BRADFORD DISTRICT CARE TRUST",null,null,null,null,null,null,"Extremely Unlikely",null,null,null,null,null,null,null,"IS1 Independent Sector Provider","BROMLEY HEALTHCARE","Children & Family Services",null,null,null,null,null,"BRADFORD DISTRICT CARE TRUST",null,"BRADFORD DISTRICT CARE TRUST"]
[null,null,"Q55 Derbyshire And Nottinghamshire Area Team",null,null,null,null,"Q55",null,"Don't Know",null,"BRIDGEWATER COMMUNITY HEALTHCARE NHS FOUNDATION TRUST",null,null,null,null,null,null,"Don't Know",null,null,null,null,null,null,null,"IS1 Independent Sector Provider","BROMLEY HEALTHCARE","Community Nursing Services",null,null,null,null,null,"BRIDGEWATER COMMUNITY HEALTHCARE NHS FOUNDATION TRUST",null,"BRIDGEWATER COMMUNITY HEALTHCARE NHS FOUNDATION TRUST"]
[null,null,"Q56 East Anglia Area Team",null,null,null,null,"Q56",null,"SMS/Text / Smartphone App",null,"BRISTOL COMMUNITY HEALTH",null,null,null,null,null,null,null,null,null,null,null,null,null,null,"IS1 Independent Sector Provider","BROMLEY HEALTHCARE","Rehabilitation & Therapy Services",null,null,null,null,null,"BRISTOL COMMUNITY HEALTH",null,"BRISTOL COMMUNITY HEALTH"]
[null,null,"Q57 Essex Area Team",null,null,null,null,"Q57",null,"Electronic tablet/kiosk at point of discharge",null,"BROMLEY HEALTHCARE",null,null,null,null,null,null,null,null,null,null,null,null,null,null,"IS1 Independent Sector Provider","BROMLEY HEALTHCARE","Specialist Services",null,null,null,null,null,"BROMLEY HEALTHCARE",null,"BROMLEY HEALTHCARE"]
[null,null,"Q58 Hertfordshire And The South Midlands Area Team",null,null,null,null,"Q58",null,"Paper / postcard at point of discharge",null,"BUCKINGHAMSHIRE HEALTHCARE NHS TRUST",null,null,null,null,null,null,null,null,null,null,null,null,null,null,"IS1 Independent Sector Provider","CARE UK","Community Healthcare Other",null,null,null,null,null,"BUCKINGHAMSHIRE HEALTHCARE NHS TRUST",null,"BUCKINGHAMSHIRE HEALTHCARE NHS TRUST"]
[null,null,"Q59 Leicestershire And Lincolnshire Area Team",null,null,null,null,"Q59",null,"Paper survey, sent to the patients home",null,"CALDERDALE AND HUDDERSFIELD NHS FOUNDATION TRUST",null,null,null,null,null,null,null,null,null,null,null,null,null,null,"IS1 Independent Sector Provider","CITY HEALTH CARE PARTNERSHIP CIC","Children & Family Services",null,null,null,null,null,"CALDERDALE AND HUDDERSFIELD NHS FOUNDATION TRUST",null,"CALDERDALE AND HUDDERSFIELD NHS FOUNDATION TRUST"]
[null,null,"Q60 Shropshire And Staffordshire Area Team",null,null,null,null,"Q60",null,"Telephone survey once patient is home",null,"CAMBRIDGESHIRE AND PETERBOROUGH NHS FOUNDATION TRUST",null,null,null,null,null,null,null,null,null,null,null,null,null,null,"IS1 Independent Sector Provider","CITY HEALTH CARE PARTNERSHIP CIC","Community Healthcare Other",null,null,null,null,null,"CAMBRIDGESHIRE AND PETERBOROUGH NHS FOUNDATION TRUST",null,"CAMBRIDGESHIRE AND PETERBOROUGH NHS FOUNDATION TRUST"]
[null,null,"Q64 Bath, Gloucestershire, Swindon And Wiltshire Area Team",null,null,null,null,"Q64",null,"Online survey once patient is home",null,"CAMBRIDGESHIRE COMMUNITY SERVICES NHS TRUST",null,null,null,null,null,null,null,null,null,null,null,null,null,null,"IS1 Independent Sector Provider","CITY HEALTH CARE PARTNERSHIP CIC","Community Nursing Services",null,null,null,null,null,"CAMBRIDGESHIRE COMMUNITY SERVICES NHS TRUST",null,"CAMBRIDGESHIRE COMMUNITY SERVICES NHS TRUST"]
[null,null,"Q65 Bristol, North Somerset, Somerset And South Gloucestershire Area Team",null,null,null,null,"Q65",null,"Other",null,"CARE UK",null,null,null,null,null,null,null,null,null,null,null,null,null,null,"IS1 Independent Sector Provider","CITY HEALTH CARE PARTNERSHIP CIC","Rehabilitation & Therapy Services",null,null,null,null,null,"CARE UK",null,"CARE UK"]
[null,null,"Q66 Devon, Cornwall And Isles Of Scilly Area Team",null,null,null,null,"Q66",null,null,null,"CENTRAL AND NORTH WEST LONDON NHS FOUNDATION TRUST",null,null,null,null,null,null,null,null,null,null,null,null,null,null,"IS1 Independent Sector Provider","CITY HEALTH CARE PARTNERSHIP CIC","Specialist Services",null,null,null,null,null,"CENTRAL AND NORTH WEST LONDON NHS FOUNDATION TRUST",null,"CENTRAL AND NORTH WEST LONDON NHS FOUNDATION TRUST"]
[null,null,"Q67 Kent And Medway Area Team",null,null,null,null,"Q67",null,null,null,"CENTRAL LONDON COMMUNITY HEALTHCARE NHS TRUST",null,null,null,null,null,null,null,null,null,null,null,null,null,null,"IS1 Independent Sector Provider","CSH SURREY","Children & Family Services",null,null,null,null,null,"CENTRAL LONDON COMMUNITY HEALTHCARE NHS TRUST",null,"CENTRAL LONDON COMMUNITY HEALTHCARE NHS TRUST"]
[null,null,"Q68 Surrey And Sussex Area Team",null,null,null,null,"Q68",null,null,null,"CENTRAL MANCHESTER UNIVERSITY HOSPITALS NHS FOUNDATION TRUST",null,null,null,null,null,null,null,null,null,null,null,null,null,null,"IS1 Independent Sector Provider","CSH SURREY","Community Healthcare Other",null,null,null,null,null,"CENTRAL MANCHESTER UNIVERSITY HOSPITALS NHS FOUNDATION TRUST",null,"CENTRAL MANCHESTER UNIVERSITY HOSPITALS NHS FOUNDATION TRUST"]
[null,null,"Q69 Thames Valley Area Team",null,null,null,null,"Q69",null,null,null,"CHESHIRE AND WIRRAL PARTNERSHIP NHS FOUNDATION TRUST",null,null,null,null,null,null,null,null,null,null,null,null,null,null,"IS1 Independent Sector Provider","CSH SURREY","Community Inpatient Services",null,null,null,null,null,"CHESHIRE AND WIRRAL PARTNERSHIP NHS FOUNDATION TRUST",null,"CHESHIRE AND WIRRAL PARTNERSHIP NHS FOUNDATION TRUST"]
[null,null,"Q70 Wessex Area Team",null,null,null,null,"Q70",null,null,null,"CITY HEALTH CARE PARTNERSHIP CIC",null,null,null,null,null,null,null,null,null,null,null,null,null,null,"IS1 Independent Sector Provider","CSH SURREY","Community Nursing Services",null,null,null,null,null,"CITY HEALTH CARE PARTNERSHIP CIC",null,"CITY HEALTH CARE PARTNERSHIP CIC"]
[null,null,"Q71 London Area Team",null,null,null,null,"Q71",null,null,null,"CORNWALL PARTNERSHIP NHS FOUNDATION TRUST",null,null,null,null,null,null,null,null,null,null,null,null,null,null,"IS1 Independent Sector Provider","CSH SURREY","Rehabilitation & Therapy Services",null,null,null,null,null,"CORNWALL PARTNERSHIP NHS FOUNDATION TRUST",null,"CORNWALL PARTNERSHIP NHS FOUNDATION TRUST"]
[null,null,null,null,null,null,null,null,null,null,null,"COUNTY DURHAM AND DARLINGTON NHS FOUNDATION TRUST",null,null,null,null,null,null,null,null,null,null,null,null,null,null,"IS1 Independent Sector Provider","EAST COAST COMMUNITY HEALTHCARE C.I.C","Children & Family Services",null,null,null,null,null,"COUNTY DURHAM AND DARLINGTON NHS FOUNDATION TRUST",null,"COUNTY DURHAM AND DARLINGTON NHS FOUNDATION TRUST"]
[null,null,null,null,null,null,null,null,null,null,null,"COVENTRY AND WARWICKSHIRE PARTNERSHIP NHS TRUST",null,null,null,null,null,null,null,null,null,null,null,null,null,null,"IS1 Independent Sector Provider","EAST COAST COMMUNITY HEALTHCARE C.I.C","Community Healthcare Other",null,null,null,null,null,"COVENTRY AND WARWICKSHIRE PARTNERSHIP NHS TRUST",null,"COVENTRY AND WARWICKSHIRE PARTNERSHIP NHS TRUST"]
[null,null,null,null,null,null,null,null,null,null,null,"CROYDON HEALTH SERVICES NHS TRUST",null,null,null,null,null,null,null,null,null,null,null,null,null,null,"IS1 Independent Sector Provider","EAST COAST COMMUNITY HEALTHCARE C.I.C","Community Nursing Services",null,null,null,null,null,"CROYDON HEALTH SERVICES NHS TRUST",null,"CROYDON HEALTH SERVICES NHS TRUST"]
[null,null,null,null,null,null,null,null,null,null,null,"CSH SURREY",null,null,null,null,null,null,null,null,null,null,null,null,null,null,"IS1 Independent Sector Provider","EAST COAST COMMUNITY HEALTHCARE C.I.C","Rehabilitation & Therapy Services",null,null,null,null,null,"CSH SURREY",null,"CSH SURREY"]
[null,null,null,null,null,null,null,null,null,null,null,"CUMBRIA PARTNERSHIP NHS FOUNDATION TRUST",null,null,null,null,null,null,null,null,null,null,null,null,null,null,"IS1 Independent Sector Provider","EAST COAST COMMUNITY HEALTHCARE C.I.C","Specialist Services",null,null,null,null,null,"CUMBRIA PARTNERSHIP NHS FOUNDATION TRUST",null,"CUMBRIA PARTNERSHIP NHS FOUNDATION TRUST"]
[null,null,null,null,null,null,null,null,null,null,null,"DERBY HOSPITALS NHS FOUNDATION TRUST",null,null,null,null,null,null,null,null,null,null,null,null,null,null,"IS1 Independent Sector Provider","FIRST COMMUNITY HEALTH AND CARE CIC","Children & Family Services",null,null,null,null,null,"DERBY HOSPITALS NHS FOUNDATION TRUST",null,"DERBY HOSPITALS NHS FOUNDATION TRUST"]
[null,null,null,null,null,null,null,null,null,null,null,"DERBYSHIRE COMMUNITY HEALTH SERVICES NHS FOUNDATION TRUST",null,null,null,null,null,null,null,null,null,null,null,null,null,null,"IS1 Independent Sector Provider","FIRST COMMUNITY HEALTH AND CARE CIC","Community Healthcare Other",null,null,null,null,null,"DERBYSHIRE COMMUNITY HEALTH SERVICES NHS FOUNDATION TRUST",null,"DERBYSHIRE COMMUNITY HEALTH SERVICES NHS FOUNDATION TRUST"]
[null,null,null,null,null,null,null,null,null,null,null,"DERBYSHIRE HEALTHCARE NHS FOUNDATION TRUST",null,null,null,null,null,null,null,null,null,null,null,null,null,null,"IS1 Independent Sector Provider","FIRST COMMUNITY HEALTH AND CARE CIC","Community Inpatient Services",null,null,null,null,null,"DERBYSHIRE HEALTHCARE NHS FOUNDATION TRUST",null,"DERBYSHIRE HEALTHCARE NHS FOUNDATION TRUST"]
[null,null,null,null,null,null,null,null,null,null,null,"DORSET HEALTHCARE UNIVERSITY NHS FOUNDATION TRUST",null,null,null,null,null,null,null,null,null,null,null,null,null,null,"IS1 Independent Sector Provider","FIRST COMMUNITY HEALTH AND CARE CIC","Community Nursing Services",null,null,null,null,null,"DORSET HEALTHCARE UNIVERSITY NHS FOUNDATION TRUST",null,"DORSET HEALTHCARE UNIVERSITY NHS FOUNDATION TRUST"]
[null,null,null,null,null,null,null,null,null,null,null,"EAST CHESHIRE NHS TRUST",null,null,null,null,null,null,null,null,null,null,null,null,null,null,"IS1 Independent Sector Provider","FIRST COMMUNITY HEALTH AND CARE CIC","Rehabilitation & Therapy Services",null,null,null,null,null,"EAST CHESHIRE NHS TRUST",null,"EAST CHESHIRE NHS TRUST"]
[null,null,null,null,null,null,null,null,null,null,null,"EAST COAST COMMUNITY HEALTHCARE C.I.C",null,null,null,null,null,null,null,null,null,null,null,null,null,null,"IS1 Independent Sector Provider","FIRST COMMUNITY HEALTH AND CARE CIC","Specialist Services",null,null,null,null,null,"EAST COAST COMMUNITY HEALTHCARE C.I.C",null,"EAST COAST COMMUNITY HEALTHCARE C.I.C"]
[null,null,null,null,null,null,null,null,null,null,null,"EAST LANCASHIRE HOSPITALS NHS TRUST",null,null,null,null,null,null,null,null,null,null,null,null,null,null,"IS1 Independent Sector Provider","MEDWAY COMMUNITY HEALTHCARE","Children & Family Services",null,null,null,null,null,"EAST LANCASHIRE HOSPITALS NHS TRUST",null,"EAST LANCASHIRE HOSPITALS NHS TRUST"]
[null,null,null,null,null,null,null,null,null,null,null,"EAST SUSSEX HEALTHCARE NHS TRUST",null,null,null,null,null,null,null,null,null,null,null,null,null,null,"IS1 Independent Sector Provider","MEDWAY COMMUNITY HEALTHCARE","Community Healthcare Other",null,null,null,null,null,"EAST SUSSEX HEALTHCARE NHS TRUST",null,"EAST SUSSEX HEALTHCARE NHS TRUST"]
[null,null,null,null,null,null,null,null,null,null,null,"FIRST COMMUNITY HEALTH AND CARE CIC",null,null,null,null,null,null,null,null,null,null,null,null,null,null,"IS1 Independent Sector Provider","MEDWAY COMMUNITY HEALTHCARE","Community Inpatient Services",null,null,null,null,null,"FIRST COMMUNITY HEALTH AND CARE CIC",null,"FIRST COMMUNITY HEALTH AND CARE CIC"]
[null,null,null,null,null,null,null,null,null,null,null,"FRIMLEY HEALTH NHS FOUNDATION TRUST",null,null,null,null,null,null,null,null,null,null,null,null,null,null,"IS1 Independent Sector Provider","MEDWAY COMMUNITY HEALTHCARE","Community Nursing Services",null,null,null,null,null,"FRIMLEY HEALTH NHS FOUNDATION TRUST",null,"FRIMLEY HEALTH NHS FOUNDATION TRUST"]
[null,null,null,null,null,null,null,null,null,null,null,"GLOUCESTERSHIRE CARE SERVICES NHS TRUST",null,null,null,null,null,null,null,null,null,null,null,null,null,null,"IS1 Independent Sector Provider","MEDWAY COMMUNITY HEALTHCARE","Rehabilitation & Therapy Services",null,null,null,null,null,"GLOUCESTERSHIRE CARE SERVICES NHS TRUST",null,"GLOUCESTERSHIRE CARE SERVICES NHS TRUST"]
[null,null,null,null,null,null,null,null,null,null,null,"GREAT WESTERN HOSPITALS NHS FOUNDATION TRUST",null,null,null,null,null,null,null,null,null,null,null,null,null,null,"IS1 Independent Sector Provider","MEDWAY COMMUNITY HEALTHCARE","Specialist Services",null,null,null,null,null,"GREAT WESTERN HOSPITALS NHS FOUNDATION TRUST",null,"GREAT WESTERN HOSPITALS NHS FOUNDATION TRUST"]
[null,null,null,null,null,null,null,null,null,null,null,"GUY'S AND ST THOMAS' NHS FOUNDATION TRUST",null,null,null,null,null,null,null,null,null,null,null,null,null,null,"IS1 Independent Sector Provider","NORTH SOMERSET COMMUNITY PARTNERSHIP COMMUNITY INTEREST COMPANY","Children & Family Services",null,null,null,null,null,"GUY'S AND ST THOMAS' NHS FOUNDATION TRUST",null,"GUY'S AND ST THOMAS' NHS FOUNDATION TRUST"]
[null,null,null,null,null,null,null,null,null,null,null,"HARROGATE AND DISTRICT NHS FOUNDATION TRUST",null,null,null,null,null,null,null,null,null,null,null,null,null,null,"IS1 Independent Sector Provider","NORTH SOMERSET COMMUNITY PARTNERSHIP COMMUNITY INTEREST COMPANY","Community Healthcare Other",null,null,null,null,null,"HARROGATE AND DISTRICT NHS FOUNDATION TRUST",null,"HARROGATE AND DISTRICT NHS FOUNDATION TRUST"]
[null,null,null,null,null,null,null,null,null,null,null,"HEART OF ENGLAND NHS FOUNDATION TRUST",null,null,null,null,null,null,null,null,null,null,null,null,null,null,"IS1 Independent Sector Provider","NORTH SOMERSET COMMUNITY PARTNERSHIP COMMUNITY INTEREST COMPANY","Community Inpatient Services",null,null,null,null,null,"HEART OF ENGLAND NHS FOUNDATION TRUST",null,"HEART OF ENGLAND NHS FOUNDATION TRUST"]
[null,null,null,null,null,null,null,null,null,null,null,"HERTFORDSHIRE COMMUNITY NHS TRUST",null,null,null,null,null,null,null,null,null,null,null,null,null,null,"IS1 Independent Sector Provider","NORTH SOMERSET COMMUNITY PARTNERSHIP COMMUNITY INTEREST COMPANY","Community Nursing Services",null,null,null,null,null,"HERTFORDSHIRE COMMUNITY NHS TRUST",null,"HERTFORDSHIRE COMMUNITY NHS TRUST"]
[null,null,null,null,null,null,null,null,null,null,null,"HOMERTON UNIVERSITY HOSPITAL NHS FOUNDATION TRUST",null,null,null,null,null,null,null,null,null,null,null,null,null,null,"IS1 Independent Sector Provider","NORTH SOMERSET COMMUNITY PARTNERSHIP COMMUNITY INTEREST COMPANY","Rehabilitation & Therapy Services",null,null,null,null,null,"HOMERTON UNIVERSITY HOSPITAL NHS FOUNDATION TRUST",null,"HOMERTON UNIVERSITY HOSPITAL NHS FOUNDATION TRUST"]
[null,null,null,null,null,null,null,null,null,null,null,"HOUNSLOW AND RICHMOND COMMUNITY HEALTHCARE NHS TRUST",null,null,null,null,null,null,null,null,null,null,null,null,null,null,"IS1 Independent Sector Provider","NORTH SOMERSET COMMUNITY PARTNERSHIP COMMUNITY INTEREST COMPANY","Specialist Services",null,null,null,null,null,"HOUNSLOW AND RICHMOND COMMUNITY HEALTHCARE NHS TRUST",null,"HOUNSLOW AND RICHMOND COMMUNITY HEALTHCARE NHS TRUST"]
[null,null,null,null,null,null,null,null,null,null,null,"HUMBER NHS FOUNDATION TRUST",null,null,null,null,null,null,null,null,null,null,null,null,null,null,"IS1 Independent Sector Provider","NOTTINGHAM CITYCARE PARTNERSHIP","Children & Family Services",null,null,null,null,null,"HUMBER NHS FOUNDATION TRUST",null,"HUMBER NHS FOUNDATION TRUST"]
[null,null,null,null,null,null,null,null,null,null,null,"ISLE OF WIGHT NHS TRUST",null,null,null,null,null,null,null,null,null,null,null,null,null,null,"IS1 Independent Sector Provider","NOTTINGHAM CITYCARE PARTNERSHIP","Community Healthcare Other",null,null,null,null,null,"ISLE OF WIGHT NHS TRUST",null,"ISLE OF WIGHT NHS TRUST"]
[null,null,null,null,null,null,null,null,null,null,null,"KENT COMMUNITY HEALTH NHS FOUNDATION TRUST",null,null,null,null,null,null,null,null,null,null,null,null,null,null,"IS1 Independent Sector Provider","NOTTINGHAM CITYCARE PARTNERSHIP","Community Nursing Services",null,null,null,null,null,"KENT COMMUNITY HEALTH NHS FOUNDATION TRUST",null,"KENT COMMUNITY HEALTH NHS FOUNDATION TRUST"]
[null,null,null,null,null,null,null,null,null,null,null,"LANCASHIRE CARE NHS FOUNDATION TRUST",null,null,null,null,null,null,null,null,null,null,null,null,null,null,"IS1 Independent Sector Provider","NOTTINGHAM CITYCARE PARTNERSHIP","Rehabilitation & Therapy Services",null,null,null,null,null,"LANCASHIRE CARE NHS FOUNDATION TRUST",null,"LANCASHIRE CARE NHS FOUNDATION TRUST"]
[null,null,null,null,null,null,null,null,null,null,null,"LEEDS COMMUNITY HEALTHCARE NHS TRUST",null,null,null,null,null,null,null,null,null,null,null,null,null,null,"IS1 Independent Sector Provider","NOTTINGHAM CITYCARE PARTNERSHIP","Specialist Services",null,null,null,null,null,"LEEDS COMMUNITY HEALTHCARE NHS TRUST",null,"LEEDS COMMUNITY HEALTHCARE NHS TRUST"]
[null,null,null,null,null,null,null,null,null,null,null,"LEICESTERSHIRE PARTNERSHIP NHS TRUST",null,null,null,null,null,null,null,null,null,null,null,null,null,null,"IS1 Independent Sector Provider","NOVUS HEALTH LTD","Community Healthcare Other",null,null,null,null,null,"LEICESTERSHIRE PARTNERSHIP NHS TRUST",null,"LEICESTERSHIRE PARTNERSHIP NHS TRUST"]
[null,null,null,null,null,null,null,null,null,null,null,"LEWISHAM AND GREENWICH NHS TRUST",null,null,null,null,null,null,null,null,null,null,null,null,null,null,"IS1 Independent Sector Provider","NOVUS HEALTH LTD","Rehabilitation & Therapy Services",null,null,null,null,null,"LEWISHAM AND GREENWICH NHS TRUST",null,"LEWISHAM AND GREENWICH NHS TRUST"]
[null,null,null,null,null,null,null,null,null,null,null,"LINCOLNSHIRE COMMUNITY HEALTH SERVICES NHS TRUST",null,null,null,null,null,null,null,null,null,null,null,null,null,null,"IS1 Independent Sector Provider","PENINSULA COMMUNITY HEALTH C.I.C","Community Healthcare Other",null,null,null,null,null,"LINCOLNSHIRE COMMUNITY HEALTH SERVICES NHS TRUST",null,"LINCOLNSHIRE COMMUNITY HEALTH SERVICES NHS TRUST"]
[null,null,null,null,null,null,null,null,null,null,null,"LIVERPOOL COMMUNITY HEALTH NHS TRUST",null,null,null,null,null,null,null,null,null,null,null,null,null,null,"IS1 Independent Sector Provider","PENINSULA COMMUNITY HEALTH C.I.C","Community Inpatient Services",null,null,null,null,null,"LIVERPOOL COMMUNITY HEALTH NHS TRUST",null,"LIVERPOOL COMMUNITY HEALTH NHS TRUST"]
[null,null,null,null,null,null,null,null,null,null,null,"LONDON NORTH WEST HEALTHCARE NHS TRUST",null,null,null,null,null,null,null,null,null,null,null,null,null,null,"IS1 Independent Sector Provider","PENINSULA COMMUNITY HEALTH C.I.C","Community Nursing Services",null,null,null,null,null,"LONDON NORTH WEST HEALTHCARE NHS TRUST",null,"LONDON NORTH WEST HEALTHCARE NHS TRUST"]
[null,null,null,null,null,null,null,null,null,null,null,"MEDWAY COMMUNITY HEALTHCARE",null,null,null,null,null,null,null,null,null,null,null,null,null,null,"IS1 Independent Sector Provider","PENINSULA COMMUNITY HEALTH C.I.C","Rehabilitation & Therapy Services",null,null,null,null,null,"MEDWAY COMMUNITY HEALTHCARE",null,"MEDWAY COMMUNITY HEALTHCARE"]
[null,null,null,null,null,null,null,null,null,null,null,"MID YORKSHIRE HOSPITALS NHS TRUST",null,null,null,null,null,null,null,null,null,null,null,null,null,null,"IS1 Independent Sector Provider","PENINSULA COMMUNITY HEALTH C.I.C","Specialist Services",null,null,null,null,null,"MID YORKSHIRE HOSPITALS NHS TRUST",null,"MID YORKSHIRE HOSPITALS NHS TRUST"]
[null,null,null,null,null,null,null,null,null,null,null,"NORFOLK COMMUNITY HEALTH AND CARE NHS TRUST",null,null,null,null,null,null,null,null,null,null,null,null,null,null,"IS1 Independent Sector Provider","PLYMOUTH COMMUNITY HEALTHCARE (CIC)","Community Healthcare Other",null,null,null,null,null,"NORFOLK COMMUNITY HEALTH AND CARE NHS TRUST",null,"NORFOLK COMMUNITY HEALTH AND CARE NHS TRUST"]
[null,null,null,null,null,null,null,null,null,null,null,"NORTH EAST LONDON NHS FOUNDATION TRUST",null,null,null,null,null,null,null,null,null,null,null,null,null,null,"IS1 Independent Sector Provider","PLYMOUTH COMMUNITY HEALTHCARE (CIC)","Community Inpatient Services",null,null,null,null,null,"NORTH EAST LONDON NHS FOUNDATION TRUST",null,"NORTH EAST LONDON NHS FOUNDATION TRUST"]
[null,null,null,null,null,null,null,null,null,null,null,"NORTH SOMERSET COMMUNITY PARTNERSHIP COMMUNITY INTEREST COMPANY",null,null,null,null,null,null,null,null,null,null,null,null,null,null,"IS1 Independent Sector Provider","PROVIDE","Children & Family Services",null,null,null,null,null,"NORTH SOMERSET COMMUNITY PARTNERSHIP COMMUNITY INTEREST COMPANY",null,"NORTH SOMERSET COMMUNITY PARTNERSHIP COMMUNITY INTEREST COMPANY"]
[null,null,null,null,null,null,null,null,null,null,null,"NORTH TEES AND HARTLEPOOL NHS FOUNDATION TRUST",null,null,null,null,null,null,null,null,null,null,null,null,null,null,"IS1 Independent Sector Provider","PROVIDE","Community Healthcare Other",null,null,null,null,null,"NORTH TEES AND HARTLEPOOL NHS FOUNDATION TRUST",null,"NORTH TEES AND HARTLEPOOL NHS FOUNDATION TRUST"]
[null,null,null,null,null,null,null,null,null,null,null,"NORTHAMPTONSHIRE HEALTHCARE NHS FOUNDATION TRUST",null,null,null,null,null,null,null,null,null,null,null,null,null,null,"IS1 Independent Sector Provider","PROVIDE","Community Inpatient Services",null,null,null,null,null,"NORTHAMPTONSHIRE HEALTHCARE NHS FOUNDATION TRUST",null,"NORTHAMPTONSHIRE HEALTHCARE NHS FOUNDATION TRUST"]
[null,null,null,null,null,null,null,null,null,null,null,"NORTHERN DEVON HEALTHCARE NHS TRUST",null,null,null,null,null,null,null,null,null,null,null,null,null,null,"IS1 Independent Sector Provider","PROVIDE","Community Nursing Services",null,null,null,null,null,"NORTHERN DEVON HEALTHCARE NHS TRUST",null,"NORTHERN DEVON HEALTHCARE NHS TRUST"]
[null,null,null,null,null,null,null,null,null,null,null,"NORTHERN LINCOLNSHIRE AND GOOLE NHS FOUNDATION TRUST",null,null,null,null,null,null,null,null,null,null,null,null,null,null,"IS1 Independent Sector Provider","PROVIDE","Rehabilitation & Therapy Services",null,null,null,null,null,"NORTHERN LINCOLNSHIRE AND GOOLE NHS FOUNDATION TRUST",null,"NORTHERN LINCOLNSHIRE AND GOOLE NHS FOUNDATION TRUST"]
[null,null,null,null,null,null,null,null,null,null,null,"NORTHUMBRIA HEALTHCARE NHS FOUNDATION TRUST",null,null,null,null,null,null,null,null,null,null,null,null,null,null,"IS1 Independent Sector Provider","PROVIDE","Specialist Services",null,null,null,null,null,"NORTHUMBRIA HEALTHCARE NHS FOUNDATION TRUST",null,"NORTHUMBRIA HEALTHCARE NHS FOUNDATION TRUST"]
[null,null,null,null,null,null,null,null,null,null,null,"NOTTINGHAM CITYCARE PARTNERSHIP",null,null,null,null,null,null,null,null,null,null,null,null,null,null,"IS1 Independent Sector Provider","SOLENT MEDICAL SERVICES LIMITED","Community Healthcare Other",null,null,null,null,null,"NOTTINGHAM CITYCARE PARTNERSHIP",null,"NOTTINGHAM CITYCARE PARTNERSHIP"]
[null,null,null,null,null,null,null,null,null,null,null,"NOTTINGHAM UNIVERSITY HOSPITALS NHS TRUST",null,null,null,null,null,null,null,null,null,null,null,null,null,null,"IS1 Independent Sector Provider","TAURUS HEALTHCARE LTD","Community Healthcare Other",null,null,null,null,null,"NOTTINGHAM UNIVERSITY HOSPITALS NHS TRUST",null,"NOTTINGHAM UNIVERSITY HOSPITALS NHS TRUST"]
[null,null,null,null,null,null,null,null,null,null,null,"NOTTINGHAMSHIRE HEALTHCARE NHS FOUNDATION TRUST",null,null,null,null,null,null,null,null,null,null,null,null,null,null,"IS1 Independent Sector Provider","TAURUS HEALTHCARE LTD","Community Nursing Services",null,null,null,null,null,"NOTTINGHAMSHIRE HEALTHCARE NHS FOUNDATION TRUST",null,"NOTTINGHAMSHIRE HEALTHCARE NHS FOUNDATION TRUST"]
[null,null,null,null,null,null,null,null,null,null,null,"NOVUS HEALTH LTD",null,null,null,null,null,null,null,null,null,null,null,null,null,null,"IS1 Independent Sector Provider","TAURUS HEALTHCARE LTD","Rehabilitation & Therapy Services",null,null,null,null,null,"NOVUS HEALTH LTD",null,"NOVUS HEALTH LTD"]
[null,null,null,null,null,null,null,null,null,null,null,"OXFORD HEALTH NHS FOUNDATION TRUST",null,null,null,null,null,null,null,null,null,null,null,null,null,null,"IS1 Independent Sector Provider","YARBOROUGH CLEE CARE LIMITED","Community Nursing Services",null,null,null,null,null,"OXFORD HEALTH NHS FOUNDATION TRUST",null,"OXFORD HEALTH NHS FOUNDATION TRUST"]
[null,null,null,null,null,null,null,null,null,null,null,"OXLEAS NHS FOUNDATION TRUST",null,null,null,null,null,null,null,null,null,null,null,null,null,null,"IS1 Independent Sector Provider","YOUR HEALTHCARE","Community Inpatient Services",null,null,null,null,null,"OXLEAS NHS FOUNDATION TRUST",null,"OXLEAS NHS FOUNDATION TRUST"]
[null,null,null,null,null,null,null,null,null,null,null,"PENINSULA COMMUNITY HEALTH C.I.C",null,null,null,null,null,null,null,null,null,null,null,null,null,null,"IS1 Independent Sector Provider","YOUR HEALTHCARE","Specialist Services",null,null,null,null,null,"PENINSULA COMMUNITY HEALTH C.I.C",null,"PENINSULA COMMUNITY HEALTH C.I.C"]
[null,null,null,null,null,null,null,null,null,null,null,"PENNINE ACUTE HOSPITALS NHS TRUST",null,null,null,null,null,null,null,null,null,null,null,null,null,null,"Q44 Cheshire, Warrington And Wirral Area Team","5 BOROUGHS PARTNERSHIP NHS FOUNDATION TRUST","Children & Family Services",null,null,null,null,null,"PENNINE ACUTE HOSPITALS NHS TRUST",null,"PENNINE ACUTE HOSPITALS NHS TRUST"]
[null,null,null,null,null,null,null,null,null,null,null,"PENNINE CARE NHS FOUNDATION TRUST",null,null,null,null,null,null,null,null,null,null,null,null,null,null,"Q44 Cheshire, Warrington And Wirral Area Team","5 BOROUGHS PARTNERSHIP NHS FOUNDATION TRUST","Community Healthcare Other",null,null,null,null,null,"PENNINE CARE NHS FOUNDATION TRUST",null,"PENNINE CARE NHS FOUNDATION TRUST"]
[null,null,null,null,null,null,null,null,null,null,null,"PLYMOUTH COMMUNITY HEALTHCARE (CIC)",null,null,null,null,null,null,null,null,null,null,null,null,null,null,"Q44 Cheshire, Warrington And Wirral Area Team","5 BOROUGHS PARTNERSHIP NHS FOUNDATION TRUST","Community Nursing Services",null,null,null,null,null,"PLYMOUTH COMMUNITY HEALTHCARE (CIC)",null,"PLYMOUTH COMMUNITY HEALTHCARE (CIC)"]
[null,null,null,null,null,null,null,null,null,null,null,"PROVIDE",null,null,null,null,null,null,null,null,null,null,null,null,null,null,"Q44 Cheshire, Warrington And Wirral Area Team","5 BOROUGHS PARTNERSHIP NHS FOUNDATION TRUST","Rehabilitation & Therapy Services",null,null,null,null,null,"PROVIDE",null,"PROVIDE"]
[null,null,null,null,null,null,null,null,null,null,null,"SALFORD ROYAL NHS FOUNDATION TRUST",null,null,null,null,null,null,null,null,null,null,null,null,null,null,"Q44 Cheshire, Warrington And Wirral Area Team","5 BOROUGHS PARTNERSHIP NHS FOUNDATION TRUST","Specialist Services",null,null,null,null,null,"SALFORD ROYAL NHS FOUNDATION TRUST",null,"SALFORD ROYAL NHS FOUNDATION TRUST"]
[null,null,null,null,null,null,null,null,null,null,null,"SHEFFIELD HEALTH & SOCIAL CARE NHS FOUNDATION TRUST",null,null,null,null,null,null,null,null,null,null,null,null,null,null,"Q44 Cheshire, Warrington And Wirral Area Team","CHESHIRE AND WIRRAL PARTNERSHIP NHS FOUNDATION TRUST","Community Healthcare Other",null,null,null,null,null,"SHEFFIELD HEALTH & SOCIAL CARE NHS FOUNDATION TRUST",null,"SHEFFIELD HEALTH & SOCIAL CARE NHS FOUNDATION TRUST"]
[null,null,null,null,null,null,null,null,null,null,null,"SHEFFIELD TEACHING HOSPITALS NHS FOUNDATION TRUST",null,null,null,null,null,null,null,null,null,null,null,null,null,null,"Q44 Cheshire, Warrington And Wirral Area Team","CHESHIRE AND WIRRAL PARTNERSHIP NHS FOUNDATION TRUST","Community Nursing Services",null,null,null,null,null,"SHEFFIELD TEACHING HOSPITALS NHS FOUNDATION TRUST",null,"SHEFFIELD TEACHING HOSPITALS NHS FOUNDATION TRUST"]
[null,null,null,null,null,null,null,null,null,null,null,"SHROPSHIRE COMMUNITY HEALTH NHS TRUST",null,null,null,null,null,null,null,null,null,null,null,null,null,null,"Q44 Cheshire, Warrington And Wirral Area Team","CHESHIRE AND WIRRAL PARTNERSHIP NHS FOUNDATION TRUST","Specialist Services",null,null,null,null,null,"SHROPSHIRE COMMUNITY HEALTH NHS TRUST",null,"SHROPSHIRE COMMUNITY HEALTH NHS TRUST"]
[null,null,null,null,null,null,null,null,null,null,null,"SOLENT MEDICAL SERVICES LIMITED",null,null,null,null,null,null,null,null,null,null,null,null,null,null,"Q44 Cheshire, Warrington And Wirral Area Team","EAST CHESHIRE NHS TRUST","Rehabilitation & Therapy Services",null,null,null,null,null,"SOLENT MEDICAL SERVICES LIMITED",null,"SOLENT MEDICAL SERVICES LIMITED"]
[null,null,null,null,null,null,null,null,null,null,null,"SOLENT NHS TRUST",null,null,null,null,null,null,null,null,null,null,null,null,null,null,"Q44 Cheshire, Warrington And Wirral Area Team","WIRRAL COMMUNITY NHS TRUST","Community Healthcare Other",null,null,null,null,null,"SOLENT NHS TRUST",null,"SOLENT NHS TRUST"]
[null,null,null,null,null,null,null,null,null,null,null,"SOMERSET PARTNERSHIP NHS FOUNDATION TRUST",null,null,null,null,null,null,null,null,null,null,null,null,null,null,"Q44 Cheshire, Warrington And Wirral Area Team","WIRRAL COMMUNITY NHS TRUST","Community Nursing Services",null,null,null,null,null,"SOMERSET PARTNERSHIP NHS FOUNDATION TRUST",null,"SOMERSET PARTNERSHIP NHS FOUNDATION TRUST"]
[null,null,null,null,null,null,null,null,null,null,null,"SOUTH ESSEX PARTNERSHIP UNIVERSITY NHS FOUNDATION TRUST",null,null,null,null,null,null,null,null,null,null,null,null,null,null,"Q44 Cheshire, Warrington And Wirral Area Team","WIRRAL COMMUNITY NHS TRUST","Rehabilitation & Therapy Services",null,null,null,null,null,"SOUTH ESSEX PARTNERSHIP UNIVERSITY NHS FOUNDATION TRUST",null,"SOUTH ESSEX PARTNERSHIP UNIVERSITY NHS FOUNDATION TRUST"]
[null,null,null,null,null,null,null,null,null,null,null,"SOUTH STAFFORDSHIRE AND SHROPSHIRE HEALTHCARE NHS FOUNDATION TRUST",null,null,null,null,null,null,null,null,null,null,null,null,null,null,"Q44 Cheshire, Warrington And Wirral Area Team","WIRRAL COMMUNITY NHS TRUST","Specialist Services",null,null,null,null,null,"SOUTH STAFFORDSHIRE AND SHROPSHIRE HEALTHCARE NHS FOUNDATION TRUST",null,"SOUTH STAFFORDSHIRE AND SHROPSHIRE HEALTHCARE NHS FOUNDATION TRUST"]
[null,null,null,null,null,null,null,null,null,null,null,"SOUTH TEES HOSPITALS NHS FOUNDATION TRUST",null,null,null,null,null,null,null,null,null,null,null,null,null,null,"Q45 Durham, Darlington And Tees Area Team","COUNTY DURHAM AND DARLINGTON NHS FOUNDATION TRUST","Children & Family Services",null,null,null,null,null,"SOUTH TEES HOSPITALS NHS FOUNDATION TRUST",null,"SOUTH TEES HOSPITALS NHS FOUNDATION TRUST"]
[null,null,null,null,null,null,null,null,null,null,null,"SOUTH TYNESIDE NHS FOUNDATION TRUST",null,null,null,null,null,null,null,null,null,null,null,null,null,null,"Q45 Durham, Darlington And Tees Area Team","COUNTY DURHAM AND DARLINGTON NHS FOUNDATION TRUST","Community Inpatient Services",null,null,null,null,null,"SOUTH TYNESIDE NHS FOUNDATION TRUST",null,"SOUTH TYNESIDE NHS FOUNDATION TRUST"]
[null,null,null,null,null,null,null,null,null,null,null,"SOUTH WARWICKSHIRE NHS FOUNDATION TRUST",null,null,null,null,null,null,null,null,null,null,null,null,null,null,"Q45 Durham, Darlington And Tees Area Team","COUNTY DURHAM AND DARLINGTON NHS FOUNDATION TRUST","Community Nursing Services",null,null,null,null,null,"SOUTH WARWICKSHIRE NHS FOUNDATION TRUST",null,"SOUTH WARWICKSHIRE NHS FOUNDATION TRUST"]
[null,null,null,null,null,null,null,null,null,null,null,"SOUTH WEST YORKSHIRE PARTNERSHIP NHS FOUNDATION TRUST",null,null,null,null,null,null,null,null,null,null,null,null,null,null,"Q45 Durham, Darlington And Tees Area Team","COUNTY DURHAM AND DARLINGTON NHS FOUNDATION TRUST","Specialist Services",null,null,null,null,null,"SOUTH WEST YORKSHIRE PARTNERSHIP NHS FOUNDATION TRUST",null,"SOUTH WEST YORKSHIRE PARTNERSHIP NHS FOUNDATION TRUST"]
[null,null,null,null,null,null,null,null,null,null,null,"SOUTH WESTERN AMBULANCE SERVICE NHS FOUNDATION TRUST",null,null,null,null,null,null,null,null,null,null,null,null,null,null,"Q45 Durham, Darlington And Tees Area Team","NORTH TEES AND HARTLEPOOL NHS FOUNDATION TRUST","Community Inpatient Services",null,null,null,null,null,"SOUTH WESTERN AMBULANCE SERVICE NHS FOUNDATION TRUST",null,"SOUTH WESTERN AMBULANCE SERVICE NHS FOUNDATION TRUST"]
[null,null,null,null,null,null,null,null,null,null,null,"SOUTHERN HEALTH NHS FOUNDATION TRUST",null,null,null,null,null,null,null,null,null,null,null,null,null,null,"Q45 Durham, Darlington And Tees Area Team","SOUTH TEES HOSPITALS NHS FOUNDATION TRUST","Children & Family Services",null,null,null,null,null,"SOUTHERN HEALTH NHS FOUNDATION TRUST",null,"SOUTHERN HEALTH NHS FOUNDATION TRUST"]
[null,null,null,null,null,null,null,null,null,null,null,"SOUTHPORT AND ORMSKIRK HOSPITAL NHS TRUST",null,null,null,null,null,null,null,null,null,null,null,null,null,null,"Q45 Durham, Darlington And Tees Area Team","SOUTH TEES HOSPITALS NHS FOUNDATION TRUST","Community Inpatient Services",null,null,null,null,null,"SOUTHPORT AND ORMSKIRK HOSPITAL NHS TRUST",null,"SOUTHPORT AND ORMSKIRK HOSPITAL NHS TRUST"]
[null,null,null,null,null,null,null,null,null,null,null,"STAFFORDSHIRE AND STOKE ON TRENT PARTNERSHIP NHS TRUST",null,null,null,null,null,null,null,null,null,null,null,null,null,null,"Q46 Greater Manchester Area Team","BOLTON NHS FOUNDATION TRUST","Children & Family Services",null,null,null,null,null,"STAFFORDSHIRE AND STOKE ON TRENT PARTNERSHIP NHS TRUST",null,"STAFFORDSHIRE AND STOKE ON TRENT PARTNERSHIP NHS TRUST"]
[null,null,null,null,null,null,null,null,null,null,null,"STOCKPORT NHS FOUNDATION TRUST",null,null,null,null,null,null,null,null,null,null,null,null,null,null,"Q46 Greater Manchester Area Team","BOLTON NHS FOUNDATION TRUST","Community Nursing Services",null,null,null,null,null,"STOCKPORT NHS FOUNDATION TRUST",null,"STOCKPORT NHS FOUNDATION TRUST"]
[null,null,null,null,null,null,null,null,null,null,null,"SUSSEX COMMUNITY NHS TRUST",null,null,null,null,null,null,null,null,null,null,null,null,null,null,"Q46 Greater Manchester Area Team","BOLTON NHS FOUNDATION TRUST","Rehabilitation & Therapy Services",null,null,null,null,null,"SUSSEX COMMUNITY NHS TRUST",null,"SUSSEX COMMUNITY NHS TRUST"]
[null,null,null,null,null,null,null,null,null,null,null,"TAURUS HEALTHCARE LTD",null,null,null,null,null,null,null,null,null,null,null,null,null,null,"Q46 Greater Manchester Area Team","BOLTON NHS FOUNDATION TRUST","Specialist Services",null,null,null,null,null,"TAURUS HEALTHCARE LTD",null,"TAURUS HEALTHCARE LTD"]
[null,null,null,null,null,null,null,null,null,null,null,"THE DUDLEY GROUP NHS FOUNDATION TRUST",null,null,null,null,null,null,null,null,null,null,null,null,null,null,"Q46 Greater Manchester Area Team","BRIDGEWATER COMMUNITY HEALTHCARE NHS FOUNDATION TRUST","Children & Family Services",null,null,null,null,null,"THE DUDLEY GROUP NHS FOUNDATION TRUST",null,"THE DUDLEY GROUP NHS FOUNDATION TRUST"]
[null,null,null,null,null,null,null,null,null,null,null,"THE NEWCASTLE UPON TYNE HOSPITALS NHS FOUNDATION TRUST",null,null,null,null,null,null,null,null,null,null,null,null,null,null,"Q46 Greater Manchester Area Team","BRIDGEWATER COMMUNITY HEALTHCARE NHS FOUNDATION TRUST","Community Healthcare Other",null,null,null,null,null,"THE NEWCASTLE UPON TYNE HOSPITALS NHS FOUNDATION TRUST",null,"THE NEWCASTLE UPON TYNE HOSPITALS NHS FOUNDATION TRUST"]
[null,null,null,null,null,null,null,null,null,null,null,"THE ROTHERHAM NHS FOUNDATION TRUST",null,null,null,null,null,null,null,null,null,null,null,null,null,null,"Q46 Greater Manchester Area Team","BRIDGEWATER COMMUNITY HEALTHCARE NHS FOUNDATION TRUST","Community Inpatient Services",null,null,null,null,null,"THE ROTHERHAM NHS FOUNDATION TRUST",null,"THE ROTHERHAM NHS FOUNDATION TRUST"]
[null,null,null,null,null,null,null,null,null,null,null,"THE ROYAL MARSDEN NHS FOUNDATION TRUST",null,null,null,null,null,null,null,null,null,null,null,null,null,null,"Q46 Greater Manchester Area Team","BRIDGEWATER COMMUNITY HEALTHCARE NHS FOUNDATION TRUST","Community Nursing Services",null,null,null,null,null,"THE ROYAL MARSDEN NHS FOUNDATION TRUST",null,"THE ROYAL MARSDEN NHS FOUNDATION TRUST"]
[null,null,null,null,null,null,null,null,null,null,null,"THE ROYAL WOLVERHAMPTON NHS TRUST",null,null,null,null,null,null,null,null,null,null,null,null,null,null,"Q46 Greater Manchester Area Team","BRIDGEWATER COMMUNITY HEALTHCARE NHS FOUNDATION TRUST","Rehabilitation & Therapy Services",null,null,null,null,null,"THE ROYAL WOLVERHAMPTON NHS TRUST",null,"THE ROYAL WOLVERHAMPTON NHS TRUST"]
[null,null,null,null,null,null,null,null,null,null,null,"THE WHITTINGTON HOSPITAL NHS TRUST",null,null,null,null,null,null,null,null,null,null,null,null,null,null,"Q46 Greater Manchester Area Team","BRIDGEWATER COMMUNITY HEALTHCARE NHS FOUNDATION TRUST","Specialist Services",null,null,null,null,null,"THE WHITTINGTON HOSPITAL NHS TRUST",null,"THE WHITTINGTON HOSPITAL NHS TRUST"]
[null,null,null,null,null,null,null,null,null,null,null,"TORBAY AND SOUTHERN DEVON HEALTH AND CARE NHS TRUST",null,null,null,null,null,null,null,null,null,null,null,null,null,null,"Q46 Greater Manchester Area Team","CENTRAL MANCHESTER UNIVERSITY HOSPITALS NHS FOUNDATION TRUST","Children & Family Services",null,null,null,null,null,"TORBAY AND SOUTHERN DEVON HEALTH AND CARE NHS TRUST",null,"TORBAY AND SOUTHERN DEVON HEALTH AND CARE NHS TRUST"]
[null,null,null,null,null,null,null,null,null,null,null,"UNIVERSITY HOSPITAL OF SOUTH MANCHESTER NHS FOUNDATION TRUST",null,null,null,null,null,null,null,null,null,null,null,null,null,null,"Q46 Greater Manchester Area Team","CENTRAL MANCHESTER UNIVERSITY HOSPITALS NHS FOUNDATION TRUST","Community Inpatient Services",null,null,null,null,null,"UNIVERSITY HOSPITAL OF SOUTH MANCHESTER NHS FOUNDATION TRUST",null,"UNIVERSITY HOSPITAL OF SOUTH MANCHESTER NHS FOUNDATION TRUST"]
[null,null,null,null,null,null,null,null,null,null,null,"WALSALL HEALTHCARE NHS TRUST",null,null,null,null,null,null,null,null,null,null,null,null,null,null,"Q46 Greater Manchester Area Team","CENTRAL MANCHESTER UNIVERSITY HOSPITALS NHS FOUNDATION TRUST","Community Nursing Services",null,null,null,null,null,"WALSALL HEALTHCARE NHS TRUST",null,"WALSALL HEALTHCARE NHS TRUST"]
[null,null,null,null,null,null,null,null,null,null,null,"WEST MIDDLESEX UNIVERSITY HOSPITAL NHS TRUST",null,null,null,null,null,null,null,null,null,null,null,null,null,null,"Q46 Greater Manchester Area Team","CENTRAL MANCHESTER UNIVERSITY HOSPITALS NHS FOUNDATION TRUST","Specialist Services",null,null,null,null,null,"WEST MIDDLESEX UNIVERSITY HOSPITAL NHS TRUST",null,"WEST MIDDLESEX UNIVERSITY HOSPITAL NHS TRUST"]
[null,null,null,null,null,null,null,null,null,null,null,"WIRRAL COMMUNITY NHS TRUST",null,null,null,null,null,null,null,null,null,null,null,null,null,null,"Q46 Greater Manchester Area Team","PENNINE ACUTE HOSPITALS NHS TRUST","Community Healthcare Other",null,null,null,null,null,"WIRRAL COMMUNITY NHS TRUST",null,"WIRRAL COMMUNITY NHS TRUST"]
[null,null,null,null,null,null,null,null,null,null,null,"WORCESTERSHIRE HEALTH AND CARE NHS TRUST",null,null,null,null,null,null,null,null,null,null,null,null,null,null,"Q46 Greater Manchester Area Team","PENNINE ACUTE HOSPITALS NHS TRUST","Community Nursing Services",null,null,null,null,null,"WORCESTERSHIRE HEALTH AND CARE NHS TRUST",null,"WORCESTERSHIRE HEALTH AND CARE NHS TRUST"]
[null,null,null,null,null,null,null,null,null,null,null,"WYE VALLEY NHS TRUST",null,null,null,null,null,null,null,null,null,null,null,null,null,null,"Q46 Greater Manchester Area Team","PENNINE ACUTE HOSPITALS NHS TRUST","Rehabilitation & Therapy Services",null,null,null,null,null,"WYE VALLEY NHS TRUST",null,"WYE VALLEY NHS TRUST"]
[null,null,null,null,null,null,null,null,null,null,null,"YARBOROUGH CLEE CARE LIMITED",null,null,null,null,null,null,null,null,null,null,null,null,null,null,"Q46 Greater Manchester Area Team","PENNINE ACUTE HOSPITALS NHS TRUST","Specialist Services",null,null,null,null,null,"YARBOROUGH CLEE CARE LIMITED",null,"YARBOROUGH CLEE CARE LIMITED"]
[null,null,null,null,null,null,null,null,null,null,null,"YORK TEACHING HOSPITAL NHS FOUNDATION TRUST",null,null,null,null,null,null,null,null,null,null,null,null,null,null,"Q46 Greater Manchester Area Team","PENNINE CARE NHS FOUNDATION TRUST","Children & Family Services",null,null,null,null,null,"YORK TEACHING HOSPITAL NHS FOUNDATION TRUST",null,"YORK TEACHING HOSPITAL NHS FOUNDATION TRUST"]
[null,null,null,null,null,null,null,null,null,null,null,"YOUR HEALTHCARE",null,null,null,null,null,null,null,null,null,null,null,null,null,null,"Q46 Greater Manchester Area Team","PENNINE CARE NHS FOUNDATION TRUST","Community Healthcare Other",null,null,null,null,null,"YOUR HEALTHCARE",null,"YOUR HEALTHCARE"]
[null,null,null,null,null,null,null,null,null,null,null,null,null,null,null,null,null,null,null,null,null,null,null,null,null,null,"Q46 Greater Manchester Area Team","PENNINE CARE NHS FOUNDATION TRUST","Community Nursing Services"]
[null,null,null,null,null,null,null,null,null,null,null,null,null,null,null,null,null,null,null,null,null,null,null,null,null,null,"Q46 Greater Manchester Area Team","PENNINE CARE NHS FOUNDATION TRUST","Rehabilitation & Therapy Services"]
[null,null,null,null,null,null,null,null,null,null,null,null,null,null,null,null,null,null,null,null,null,null,null,null,null,null,"Q46 Greater Manchester Area Team","SALFORD ROYAL NHS FOUNDATION TRUST","Children & Family Services"]
[null,null,null,null,null,null,null,null,null,null,null,null,null,null,null,null,null,null,null,null,null,null,null,null,null,null,"Q46 Greater Manchester Area Team","SALFORD ROYAL NHS FOUNDATION TRUST","Community Nursing Services"]
[null,null,null,null,null,null,null,null,null,null,null,null,null,null,null,null,null,null,null,null,null,null,null,null,null,null,"Q46 Greater Manchester Area Team","SALFORD ROYAL NHS FOUNDATION TRUST","Rehabilitation & Therapy Services"]
[null,null,null,null,null,null,null,null,null,null,null,null,null,null,null,null,null,null,null,null,null,null,null,null,null,null,"Q46 Greater Manchester Area Team","STOCKPORT NHS FOUNDATION TRUST","Children & Family Services"]
[null,null,null,null,null,null,null,null,null,null,null,null,null,null,null,null,null,null,null,null,null,null,null,null,null,null,"Q46 Greater Manchester Area Team","STOCKPORT NHS FOUNDATION TRUST","Community Healthcare Other"]
[null,null,null,null,null,null,null,null,null,null,null,null,null,null,null,null,null,null,null,null,null,null,null,null,null,null,"Q46 Greater Manchester Area Team","STOCKPORT NHS FOUNDATION TRUST","Community Nursing Services"]
[null,null,null,null,null,null,null,null,null,null,null,null,null,null,null,null,null,null,null,null,null,null,null,null,null,null,"Q46 Greater Manchester Area Team","STOCKPORT NHS FOUNDATION TRUST","Rehabilitation & Therapy Services"]
[null,null,null,null,null,null,null,null,null,null,null,null,null,null,null,null,null,null,null,null,null,null,null,null,null,null,"Q46 Greater Manchester Area Team","STOCKPORT NHS FOUNDATION TRUST","Specialist Services"]
[null,null,null,null,null,null,null,null,null,null,null,null,null,null,null,null,null,null,null,null,null,null,null,null,null,null,"Q46 Greater Manchester Area Team","UNIVERSITY HOSPITAL OF SOUTH MANCHESTER NHS FOUNDATION TRUST","Community Inpatient Services"]
[null,null,null,null,null,null,null,null,null,null,null,null,null,null,null,null,null,null,null,null,null,null,null,null,null,null,"Q47 Lancashire Area Team","BLACKPOOL TEACHING HOSPITALS NHS FOUNDATION TRUST","Community Inpatient Services"]
[null,null,null,null,null,null,null,null,null,null,null,null,null,null,null,null,null,null,null,null,null,null,null,null,null,null,"Q47 Lancashire Area Team","BLACKPOOL TEACHING HOSPITALS NHS FOUNDATION TRUST","Community Nursing Services"]
[null,null,null,null,null,null,null,null,null,null,null,null,null,null,null,null,null,null,null,null,null,null,null,null,null,null,"Q47 Lancashire Area Team","BLACKPOOL TEACHING HOSPITALS NHS FOUNDATION TRUST","Rehabilitation & Therapy Services"]
[null,null,null,null,null,null,null,null,null,null,null,null,null,null,null,null,null,null,null,null,null,null,null,null,null,null,"Q47 Lancashire Area Team","BLACKPOOL TEACHING HOSPITALS NHS FOUNDATION TRUST","Specialist Services"]
[null,null,null,null,null,null,null,null,null,null,null,null,null,null,null,null,null,null,null,null,null,null,null,null,null,null,"Q47 Lancashire Area Team","EAST LANCASHIRE HOSPITALS NHS TRUST","Community Healthcare Other"]
[null,null,null,null,null,null,null,null,null,null,null,null,null,null,null,null,null,null,null,null,null,null,null,null,null,null,"Q47 Lancashire Area Team","EAST LANCASHIRE HOSPITALS NHS TRUST","Community Inpatient Services"]
[null,null,null,null,null,null,null,null,null,null,null,null,null,null,null,null,null,null,null,null,null,null,null,null,null,null,"Q47 Lancashire Area Team","EAST LANCASHIRE HOSPITALS NHS TRUST","Community Nursing Services"]
[null,null,null,null,null,null,null,null,null,null,null,null,null,null,null,null,null,null,null,null,null,null,null,null,null,null,"Q47 Lancashire Area Team","EAST LANCASHIRE HOSPITALS NHS TRUST","Rehabilitation & Therapy Services"]
[null,null,null,null,null,null,null,null,null,null,null,null,null,null,null,null,null,null,null,null,null,null,null,null,null,null,"Q47 Lancashire Area Team","EAST LANCASHIRE HOSPITALS NHS TRUST","Specialist Services"]
[null,null,null,null,null,null,null,null,null,null,null,null,null,null,null,null,null,null,null,null,null,null,null,null,null,null,"Q47 Lancashire Area Team","LANCASHIRE CARE NHS FOUNDATION TRUST","Children & Family Services"]
[null,null,null,null,null,null,null,null,null,null,null,null,null,null,null,null,null,null,null,null,null,null,null,null,null,null,"Q47 Lancashire Area Team","LANCASHIRE CARE NHS FOUNDATION TRUST","Community Inpatient Services"]
[null,null,null,null,null,null,null,null,null,null,null,null,null,null,null,null,null,null,null,null,null,null,null,null,null,null,"Q47 Lancashire Area Team","LANCASHIRE CARE NHS FOUNDATION TRUST","Community Nursing Services"]
[null,null,null,null,null,null,null,null,null,null,null,null,null,null,null,null,null,null,null,null,null,null,null,null,null,null,"Q47 Lancashire Area Team","LANCASHIRE CARE NHS FOUNDATION TRUST","Rehabilitation & Therapy Services"]
[null,null,null,null,null,null,null,null,null,null,null,null,null,null,null,null,null,null,null,null,null,null,null,null,null,null,"Q47 Lancashire Area Team","LANCASHIRE CARE NHS FOUNDATION TRUST","Specialist Services"]
[null,null,null,null,null,null,null,null,null,null,null,null,null,null,null,null,null,null,null,null,null,null,null,null,null,null,"Q48 Merseyside Area Team","LIVERPOOL COMMUNITY HEALTH NHS TRUST","Children & Family Services"]
[null,null,null,null,null,null,null,null,null,null,null,null,null,null,null,null,null,null,null,null,null,null,null,null,null,null,"Q48 Merseyside Area Team","LIVERPOOL COMMUNITY HEALTH NHS TRUST","Community Healthcare Other"]
[null,null,null,null,null,null,null,null,null,null,null,null,null,null,null,null,null,null,null,null,null,null,null,null,null,null,"Q48 Merseyside Area Team","LIVERPOOL COMMUNITY HEALTH NHS TRUST","Community Inpatient Services"]
[null,null,null,null,null,null,null,null,null,null,null,null,null,null,null,null,null,null,null,null,null,null,null,null,null,null,"Q48 Merseyside Area Team","LIVERPOOL COMMUNITY HEALTH NHS TRUST","Community Nursing Services"]
[null,null,null,null,null,null,null,null,null,null,null,null,null,null,null,null,null,null,null,null,null,null,null,null,null,null,"Q48 Merseyside Area Team","LIVERPOOL COMMUNITY HEALTH NHS TRUST","Rehabilitation & Therapy Services"]
[null,null,null,null,null,null,null,null,null,null,null,null,null,null,null,null,null,null,null,null,null,null,null,null,null,null,"Q48 Merseyside Area Team","LIVERPOOL COMMUNITY HEALTH NHS TRUST","Specialist Services"]
[null,null,null,null,null,null,null,null,null,null,null,null,null,null,null,null,null,null,null,null,null,null,null,null,null,null,"Q48 Merseyside Area Team","SOUTHPORT AND ORMSKIRK HOSPITAL NHS TRUST","Community Nursing Services"]
[null,null,null,null,null,null,null,null,null,null,null,null,null,null,null,null,null,null,null,null,null,null,null,null,null,null,"Q48 Merseyside Area Team","SOUTHPORT AND ORMSKIRK HOSPITAL NHS TRUST","Specialist Services"]
[null,null,null,null,null,null,null,null,null,null,null,null,null,null,null,null,null,null,null,null,null,null,null,null,null,null,"Q49 Cumbria, Northumberland, Tyne And Wear Area Team","CUMBRIA PARTNERSHIP NHS FOUNDATION TRUST","Children & Family Services"]
[null,null,null,null,null,null,null,null,null,null,null,null,null,null,null,null,null,null,null,null,null,null,null,null,null,null,"Q49 Cumbria, Northumberland, Tyne And Wear Area Team","CUMBRIA PARTNERSHIP NHS FOUNDATION TRUST","Community Healthcare Other"]
[null,null,null,null,null,null,null,null,null,null,null,null,null,null,null,null,null,null,null,null,null,null,null,null,null,null,"Q49 Cumbria, Northumberland, Tyne And Wear Area Team","CUMBRIA PARTNERSHIP NHS FOUNDATION TRUST","Community Inpatient Services"]
[null,null,null,null,null,null,null,null,null,null,null,null,null,null,null,null,null,null,null,null,null,null,null,null,null,null,"Q49 Cumbria, Northumberland, Tyne And Wear Area Team","CUMBRIA PARTNERSHIP NHS FOUNDATION TRUST","Community Nursing Services"]
[null,null,null,null,null,null,null,null,null,null,null,null,null,null,null,null,null,null,null,null,null,null,null,null,null,null,"Q49 Cumbria, Northumberland, Tyne And Wear Area Team","CUMBRIA PARTNERSHIP NHS FOUNDATION TRUST","Rehabilitation & Therapy Services"]
[null,null,null,null,null,null,null,null,null,null,null,null,null,null,null,null,null,null,null,null,null,null,null,null,null,null,"Q49 Cumbria, Northumberland, Tyne And Wear Area Team","CUMBRIA PARTNERSHIP NHS FOUNDATION TRUST","Specialist Services"]
[null,null,null,null,null,null,null,null,null,null,null,null,null,null,null,null,null,null,null,null,null,null,null,null,null,null,"Q49 Cumbria, Northumberland, Tyne And Wear Area Team","NORTHUMBRIA HEALTHCARE NHS FOUNDATION TRUST","Children & Family Services"]
[null,null,null,null,null,null,null,null,null,null,null,null,null,null,null,null,null,null,null,null,null,null,null,null,null,null,"Q49 Cumbria, Northumberland, Tyne And Wear Area Team","NORTHUMBRIA HEALTHCARE NHS FOUNDATION TRUST","Community Healthcare Other"]
[null,null,null,null,null,null,null,null,null,null,null,null,null,null,null,null,null,null,null,null,null,null,null,null,null,null,"Q49 Cumbria, Northumberland, Tyne And Wear Area Team","NORTHUMBRIA HEALTHCARE NHS FOUNDATION TRUST","Community Nursing Services"]
[null,null,null,null,null,null,null,null,null,null,null,null,null,null,null,null,null,null,null,null,null,null,null,null,null,null,"Q49 Cumbria, Northumberland, Tyne And Wear Area Team","NORTHUMBRIA HEALTHCARE NHS FOUNDATION TRUST","Rehabilitation & Therapy Services"]
[null,null,null,null,null,null,null,null,null,null,null,null,null,null,null,null,null,null,null,null,null,null,null,null,null,null,"Q49 Cumbria, Northumberland, Tyne And Wear Area Team","SOUTH TYNESIDE NHS FOUNDATION TRUST","Children & Family Services"]
[null,null,null,null,null,null,null,null,null,null,null,null,null,null,null,null,null,null,null,null,null,null,null,null,null,null,"Q49 Cumbria, Northumberland, Tyne And Wear Area Team","SOUTH TYNESIDE NHS FOUNDATION TRUST","Community Inpatient Services"]
[null,null,null,null,null,null,null,null,null,null,null,null,null,null,null,null,null,null,null,null,null,null,null,null,null,null,"Q49 Cumbria, Northumberland, Tyne And Wear Area Team","SOUTH TYNESIDE NHS FOUNDATION TRUST","Community Nursing Services"]
[null,null,null,null,null,null,null,null,null,null,null,null,null,null,null,null,null,null,null,null,null,null,null,null,null,null,"Q49 Cumbria, Northumberland, Tyne And Wear Area Team","SOUTH TYNESIDE NHS FOUNDATION TRUST","Rehabilitation & Therapy Services"]
[null,null,null,null,null,null,null,null,null,null,null,null,null,null,null,null,null,null,null,null,null,null,null,null,null,null,"Q49 Cumbria, Northumberland, Tyne And Wear Area Team","THE NEWCASTLE UPON TYNE HOSPITALS NHS FOUNDATION TRUST","Community Healthcare Other"]
[null,null,null,null,null,null,null,null,null,null,null,null,null,null,null,null,null,null,null,null,null,null,null,null,null,null,"Q49 Cumbria, Northumberland, Tyne And Wear Area Team","THE NEWCASTLE UPON TYNE HOSPITALS NHS FOUNDATION TRUST","Community Nursing Services"]
[null,null,null,null,null,null,null,null,null,null,null,null,null,null,null,null,null,null,null,null,null,null,null,null,null,null,"Q50 North Yorkshire And Humber Area Team","HARROGATE AND DISTRICT NHS FOUNDATION TRUST","Community Inpatient Services"]
[null,null,null,null,null,null,null,null,null,null,null,null,null,null,null,null,null,null,null,null,null,null,null,null,null,null,"Q50 North Yorkshire And Humber Area Team","HARROGATE AND DISTRICT NHS FOUNDATION TRUST","Rehabilitation & Therapy Services"]
[null,null,null,null,null,null,null,null,null,null,null,null,null,null,null,null,null,null,null,null,null,null,null,null,null,null,"Q50 North Yorkshire And Humber Area Team","HUMBER NHS FOUNDATION TRUST","Children & Family Services"]
[null,null,null,null,null,null,null,null,null,null,null,null,null,null,null,null,null,null,null,null,null,null,null,null,null,null,"Q50 North Yorkshire And Humber Area Team","HUMBER NHS FOUNDATION TRUST","Community Healthcare Other"]
[null,null,null,null,null,null,null,null,null,null,null,null,null,null,null,null,null,null,null,null,null,null,null,null,null,null,"Q50 North Yorkshire And Humber Area Team","HUMBER NHS FOUNDATION TRUST","Community Inpatient Services"]
[null,null,null,null,null,null,null,null,null,null,null,null,null,null,null,null,null,null,null,null,null,null,null,null,null,null,"Q50 North Yorkshire And Humber Area Team","HUMBER NHS FOUNDATION TRUST","Community Nursing Services"]
[null,null,null,null,null,null,null,null,null,null,null,null,null,null,null,null,null,null,null,null,null,null,null,null,null,null,"Q50 North Yorkshire And Humber Area Team","HUMBER NHS FOUNDATION TRUST","Rehabilitation & Therapy Services"]
[null,null,null,null,null,null,null,null,null,null,null,null,null,null,null,null,null,null,null,null,null,null,null,null,null,null,"Q50 North Yorkshire And Humber Area Team","HUMBER NHS FOUNDATION TRUST","Specialist Services"]
[null,null,null,null,null,null,null,null,null,null,null,null,null,null,null,null,null,null,null,null,null,null,null,null,null,null,"Q50 North Yorkshire And Humber Area Team","NORTHERN LINCOLNSHIRE AND GOOLE NHS FOUNDATION TRUST","Children & Family Services"]
[null,null,null,null,null,null,null,null,null,null,null,null,null,null,null,null,null,null,null,null,null,null,null,null,null,null,"Q50 North Yorkshire And Humber Area Team","NORTHERN LINCOLNSHIRE AND GOOLE NHS FOUNDATION TRUST","Community Nursing Services"]
[null,null,null,null,null,null,null,null,null,null,null,null,null,null,null,null,null,null,null,null,null,null,null,null,null,null,"Q50 North Yorkshire And Humber Area Team","NORTHERN LINCOLNSHIRE AND GOOLE NHS FOUNDATION TRUST","Rehabilitation & Therapy Services"]
[null,null,null,null,null,null,null,null,null,null,null,null,null,null,null,null,null,null,null,null,null,null,null,null,null,null,"Q50 North Yorkshire And Humber Area Team","NORTHERN LINCOLNSHIRE AND GOOLE NHS FOUNDATION TRUST","Specialist Services"]
[null,null,null,null,null,null,null,null,null,null,null,null,null,null,null,null,null,null,null,null,null,null,null,null,null,null,"Q50 North Yorkshire And Humber Area Team","YORK TEACHING HOSPITAL NHS FOUNDATION TRUST","Community Healthcare Other"]
[null,null,null,null,null,null,null,null,null,null,null,null,null,null,null,null,null,null,null,null,null,null,null,null,null,null,"Q50 North Yorkshire And Humber Area Team","YORK TEACHING HOSPITAL NHS FOUNDATION TRUST","Community Inpatient Services"]
[null,null,null,null,null,null,null,null,null,null,null,null,null,null,null,null,null,null,null,null,null,null,null,null,null,null,"Q50 North Yorkshire And Humber Area Team","YORK TEACHING HOSPITAL NHS FOUNDATION TRUST","Community Nursing Services"]
[null,null,null,null,null,null,null,null,null,null,null,null,null,null,null,null,null,null,null,null,null,null,null,null,null,null,"Q50 North Yorkshire And Humber Area Team","YORK TEACHING HOSPITAL NHS FOUNDATION TRUST","Specialist Services"]
[null,null,null,null,null,null,null,null,null,null,null,null,null,null,null,null,null,null,null,null,null,null,null,null,null,null,"Q51 South Yorkshire And Bassetlaw Area Team","SHEFFIELD HEALTH & SOCIAL CARE NHS FOUNDATION TRUST","Rehabilitation & Therapy Services"]
[null,null,null,null,null,null,null,null,null,null,null,null,null,null,null,null,null,null,null,null,null,null,null,null,null,null,"Q51 South Yorkshire And Bassetlaw Area Team","SHEFFIELD HEALTH & SOCIAL CARE NHS FOUNDATION TRUST","Specialist Services"]
[null,null,null,null,null,null,null,null,null,null,null,null,null,null,null,null,null,null,null,null,null,null,null,null,null,null,"Q51 South Yorkshire And Bassetlaw Area Team","SHEFFIELD TEACHING HOSPITALS NHS FOUNDATION TRUST","Community Healthcare Other"]
[null,null,null,null,null,null,null,null,null,null,null,null,null,null,null,null,null,null,null,null,null,null,null,null,null,null,"Q51 South Yorkshire And Bassetlaw Area Team","SHEFFIELD TEACHING HOSPITALS NHS FOUNDATION TRUST","Community Nursing Services"]
[null,null,null,null,null,null,null,null,null,null,null,null,null,null,null,null,null,null,null,null,null,null,null,null,null,null,"Q51 South Yorkshire And Bassetlaw Area Team","SHEFFIELD TEACHING HOSPITALS NHS FOUNDATION TRUST","Rehabilitation & Therapy Services"]
[null,null,null,null,null,null,null,null,null,null,null,null,null,null,null,null,null,null,null,null,null,null,null,null,null,null,"Q51 South Yorkshire And Bassetlaw Area Team","SHEFFIELD TEACHING HOSPITALS NHS FOUNDATION TRUST","Specialist Services"]
[null,null,null,null,null,null,null,null,null,null,null,null,null,null,null,null,null,null,null,null,null,null,null,null,null,null,"Q51 South Yorkshire And Bassetlaw Area Team","THE ROTHERHAM NHS FOUNDATION TRUST","Children & Family Services"]
[null,null,null,null,null,null,null,null,null,null,null,null,null,null,null,null,null,null,null,null,null,null,null,null,null,null,"Q51 South Yorkshire And Bassetlaw Area Team","THE ROTHERHAM NHS FOUNDATION TRUST","Community Inpatient Services"]
[null,null,null,null,null,null,null,null,null,null,null,null,null,null,null,null,null,null,null,null,null,null,null,null,null,null,"Q51 South Yorkshire And Bassetlaw Area Team","THE ROTHERHAM NHS FOUNDATION TRUST","Community Nursing Services"]
[null,null,null,null,null,null,null,null,null,null,null,null,null,null,null,null,null,null,null,null,null,null,null,null,null,null,"Q51 South Yorkshire And Bassetlaw Area Team","THE ROTHERHAM NHS FOUNDATION TRUST","Rehabilitation & Therapy Services"]
[null,null,null,null,null,null,null,null,null,null,null,null,null,null,null,null,null,null,null,null,null,null,null,null,null,null,"Q51 South Yorkshire And Bassetlaw Area Team","THE ROTHERHAM NHS FOUNDATION TRUST","Specialist Services"]
[null,null,null,null,null,null,null,null,null,null,null,null,null,null,null,null,null,null,null,null,null,null,null,null,null,null,"Q52 West Yorkshire Area Team","AIREDALE NHS FOUNDATION TRUST","Children & Family Services"]
[null,null,null,null,null,null,null,null,null,null,null,null,null,null,null,null,null,null,null,null,null,null,null,null,null,null,"Q52 West Yorkshire Area Team","AIREDALE NHS FOUNDATION TRUST","Community Inpatient Services"]
[null,null,null,null,null,null,null,null,null,null,null,null,null,null,null,null,null,null,null,null,null,null,null,null,null,null,"Q52 West Yorkshire Area Team","AIREDALE NHS FOUNDATION TRUST","Community Nursing Services"]
[null,null,null,null,null,null,null,null,null,null,null,null,null,null,null,null,null,null,null,null,null,null,null,null,null,null,"Q52 West Yorkshire Area Team","AIREDALE NHS FOUNDATION TRUST","Rehabilitation & Therapy Services"]
[null,null,null,null,null,null,null,null,null,null,null,null,null,null,null,null,null,null,null,null,null,null,null,null,null,null,"Q52 West Yorkshire Area Team","BRADFORD DISTRICT CARE TRUST","Children & Family Services"]
[null,null,null,null,null,null,null,null,null,null,null,null,null,null,null,null,null,null,null,null,null,null,null,null,null,null,"Q52 West Yorkshire Area Team","BRADFORD DISTRICT CARE TRUST","Community Healthcare Other"]
[null,null,null,null,null,null,null,null,null,null,null,null,null,null,null,null,null,null,null,null,null,null,null,null,null,null,"Q52 West Yorkshire Area Team","BRADFORD DISTRICT CARE TRUST","Community Nursing Services"]
[null,null,null,null,null,null,null,null,null,null,null,null,null,null,null,null,null,null,null,null,null,null,null,null,null,null,"Q52 West Yorkshire Area Team","BRADFORD DISTRICT CARE TRUST","Rehabilitation & Therapy Services"]
[null,null,null,null,null,null,null,null,null,null,null,null,null,null,null,null,null,null,null,null,null,null,null,null,null,null,"Q52 West Yorkshire Area Team","BRADFORD DISTRICT CARE TRUST","Specialist Services"]
[null,null,null,null,null,null,null,null,null,null,null,null,null,null,null,null,null,null,null,null,null,null,null,null,null,null,"Q52 West Yorkshire Area Team","CALDERDALE AND HUDDERSFIELD NHS FOUNDATION TRUST","Children & Family Services"]
[null,null,null,null,null,null,null,null,null,null,null,null,null,null,null,null,null,null,null,null,null,null,null,null,null,null,"Q52 West Yorkshire Area Team","CALDERDALE AND HUDDERSFIELD NHS FOUNDATION TRUST","Community Inpatient Services"]
[null,null,null,null,null,null,null,null,null,null,null,null,null,null,null,null,null,null,null,null,null,null,null,null,null,null,"Q52 West Yorkshire Area Team","CALDERDALE AND HUDDERSFIELD NHS FOUNDATION TRUST","Community Nursing Services"]
[null,null,null,null,null,null,null,null,null,null,null,null,null,null,null,null,null,null,null,null,null,null,null,null,null,null,"Q52 West Yorkshire Area Team","CALDERDALE AND HUDDERSFIELD NHS FOUNDATION TRUST","Rehabilitation & Therapy Services"]
[null,null,null,null,null,null,null,null,null,null,null,null,null,null,null,null,null,null,null,null,null,null,null,null,null,null,"Q52 West Yorkshire Area Team","CALDERDALE AND HUDDERSFIELD NHS FOUNDATION TRUST","Specialist Services"]
[null,null,null,null,null,null,null,null,null,null,null,null,null,null,null,null,null,null,null,null,null,null,null,null,null,null,"Q52 West Yorkshire Area Team","LEEDS COMMUNITY HEALTHCARE NHS TRUST","Children & Family Services"]
[null,null,null,null,null,null,null,null,null,null,null,null,null,null,null,null,null,null,null,null,null,null,null,null,null,null,"Q52 West Yorkshire Area Team","MID YORKSHIRE HOSPITALS NHS TRUST","Children & Family Services"]
[null,null,null,null,null,null,null,null,null,null,null,null,null,null,null,null,null,null,null,null,null,null,null,null,null,null,"Q52 West Yorkshire Area Team","MID YORKSHIRE HOSPITALS NHS TRUST","Community Inpatient Services"]
[null,null,null,null,null,null,null,null,null,null,null,null,null,null,null,null,null,null,null,null,null,null,null,null,null,null,"Q52 West Yorkshire Area Team","MID YORKSHIRE HOSPITALS NHS TRUST","Community Nursing Services"]
[null,null,null,null,null,null,null,null,null,null,null,null,null,null,null,null,null,null,null,null,null,null,null,null,null,null,"Q52 West Yorkshire Area Team","MID YORKSHIRE HOSPITALS NHS TRUST","Rehabilitation & Therapy Services"]
[null,null,null,null,null,null,null,null,null,null,null,null,null,null,null,null,null,null,null,null,null,null,null,null,null,null,"Q52 West Yorkshire Area Team","MID YORKSHIRE HOSPITALS NHS TRUST","Specialist Services"]
[null,null,null,null,null,null,null,null,null,null,null,null,null,null,null,null,null,null,null,null,null,null,null,null,null,null,"Q52 West Yorkshire Area Team","SOUTH WEST YORKSHIRE PARTNERSHIP NHS FOUNDATION TRUST","Children & Family Services"]
[null,null,null,null,null,null,null,null,null,null,null,null,null,null,null,null,null,null,null,null,null,null,null,null,null,null,"Q52 West Yorkshire Area Team","SOUTH WEST YORKSHIRE PARTNERSHIP NHS FOUNDATION TRUST","Community Nursing Services"]
[null,null,null,null,null,null,null,null,null,null,null,null,null,null,null,null,null,null,null,null,null,null,null,null,null,null,"Q52 West Yorkshire Area Team","SOUTH WEST YORKSHIRE PARTNERSHIP NHS FOUNDATION TRUST","Rehabilitation & Therapy Services"]
[null,null,null,null,null,null,null,null,null,null,null,null,null,null,null,null,null,null,null,null,null,null,null,null,null,null,"Q52 West Yorkshire Area Team","SOUTH WEST YORKSHIRE PARTNERSHIP NHS FOUNDATION TRUST","Specialist Services"]
[null,null,null,null,null,null,null,null,null,null,null,null,null,null,null,null,null,null,null,null,null,null,null,null,null,null,"Q53 Arden, Herefordshire And Worcestershire Area Team","COVENTRY AND WARWICKSHIRE PARTNERSHIP NHS TRUST","Community Healthcare Other"]
[null,null,null,null,null,null,null,null,null,null,null,null,null,null,null,null,null,null,null,null,null,null,null,null,null,null,"Q53 Arden, Herefordshire And Worcestershire Area Team","COVENTRY AND WARWICKSHIRE PARTNERSHIP NHS TRUST","Community Nursing Services"]
[null,null,null,null,null,null,null,null,null,null,null,null,null,null,null,null,null,null,null,null,null,null,null,null,null,null,"Q53 Arden, Herefordshire And Worcestershire Area Team","COVENTRY AND WARWICKSHIRE PARTNERSHIP NHS TRUST","Rehabilitation & Therapy Services"]
[null,null,null,null,null,null,null,null,null,null,null,null,null,null,null,null,null,null,null,null,null,null,null,null,null,null,"Q53 Arden, Herefordshire And Worcestershire Area Team","COVENTRY AND WARWICKSHIRE PARTNERSHIP NHS TRUST","Specialist Services"]
[null,null,null,null,null,null,null,null,null,null,null,null,null,null,null,null,null,null,null,null,null,null,null,null,null,null,"Q53 Arden, Herefordshire And Worcestershire Area Team","SOUTH WARWICKSHIRE NHS FOUNDATION TRUST","Community Nursing Services"]
[null,null,null,null,null,null,null,null,null,null,null,null,null,null,null,null,null,null,null,null,null,null,null,null,null,null,"Q53 Arden, Herefordshire And Worcestershire Area Team","SOUTH WARWICKSHIRE NHS FOUNDATION TRUST","Rehabilitation & Therapy Services"]
[null,null,null,null,null,null,null,null,null,null,null,null,null,null,null,null,null,null,null,null,null,null,null,null,null,null,"Q53 Arden, Herefordshire And Worcestershire Area Team","SOUTH WARWICKSHIRE NHS FOUNDATION TRUST","Specialist Services"]
[null,null,null,null,null,null,null,null,null,null,null,null,null,null,null,null,null,null,null,null,null,null,null,null,null,null,"Q53 Arden, Herefordshire And Worcestershire Area Team","WORCESTERSHIRE HEALTH AND CARE NHS TRUST","Community Inpatient Services"]
[null,null,null,null,null,null,null,null,null,null,null,null,null,null,null,null,null,null,null,null,null,null,null,null,null,null,"Q53 Arden, Herefordshire And Worcestershire Area Team","WORCESTERSHIRE HEALTH AND CARE NHS TRUST","Rehabilitation & Therapy Services"]
[null,null,null,null,null,null,null,null,null,null,null,null,null,null,null,null,null,null,null,null,null,null,null,null,null,null,"Q53 Arden, Herefordshire And Worcestershire Area Team","WYE VALLEY NHS TRUST","Children & Family Services"]
[null,null,null,null,null,null,null,null,null,null,null,null,null,null,null,null,null,null,null,null,null,null,null,null,null,null,"Q53 Arden, Herefordshire And Worcestershire Area Team","WYE VALLEY NHS TRUST","Community Healthcare Other"]
[null,null,null,null,null,null,null,null,null,null,null,null,null,null,null,null,null,null,null,null,null,null,null,null,null,null,"Q53 Arden, Herefordshire And Worcestershire Area Team","WYE VALLEY NHS TRUST","Community Inpatient Services"]
[null,null,null,null,null,null,null,null,null,null,null,null,null,null,null,null,null,null,null,null,null,null,null,null,null,null,"Q53 Arden, Herefordshire And Worcestershire Area Team","WYE VALLEY NHS TRUST","Community Nursing Services"]
[null,null,null,null,null,null,null,null,null,null,null,null,null,null,null,null,null,null,null,null,null,null,null,null,null,null,"Q53 Arden, Herefordshire And Worcestershire Area Team","WYE VALLEY NHS TRUST","Rehabilitation & Therapy Services"]
[null,null,null,null,null,null,null,null,null,null,null,null,null,null,null,null,null,null,null,null,null,null,null,null,null,null,"Q53 Arden, Herefordshire And Worcestershire Area Team","WYE VALLEY NHS TRUST","Specialist Services"]
[null,null,null,null,null,null,null,null,null,null,null,null,null,null,null,null,null,null,null,null,null,null,null,null,null,null,"Q54 Birmingham And The Black Country Area Team","BIRMINGHAM COMMUNITY HEALTHCARE NHS TRUST","Children & Family Services"]
[null,null,null,null,null,null,null,null,null,null,null,null,null,null,null,null,null,null,null,null,null,null,null,null,null,null,"Q54 Birmingham And The Black Country Area Team","BIRMINGHAM COMMUNITY HEALTHCARE NHS TRUST","Community Inpatient Services"]
[null,null,null,null,null,null,null,null,null,null,null,null,null,null,null,null,null,null,null,null,null,null,null,null,null,null,"Q54 Birmingham And The Black Country Area Team","BIRMINGHAM COMMUNITY HEALTHCARE NHS TRUST","Community Nursing Services"]
[null,null,null,null,null,null,null,null,null,null,null,null,null,null,null,null,null,null,null,null,null,null,null,null,null,null,"Q54 Birmingham And The Black Country Area Team","BIRMINGHAM COMMUNITY HEALTHCARE NHS TRUST","Rehabilitation & Therapy Services"]
[null,null,null,null,null,null,null,null,null,null,null,null,null,null,null,null,null,null,null,null,null,null,null,null,null,null,"Q54 Birmingham And The Black Country Area Team","BIRMINGHAM COMMUNITY HEALTHCARE NHS TRUST","Specialist Services"]
[null,null,null,null,null,null,null,null,null,null,null,null,null,null,null,null,null,null,null,null,null,null,null,null,null,null,"Q54 Birmingham And The Black Country Area Team","BLACK COUNTRY PARTNERSHIP NHS FOUNDATION TRUST","Community Healthcare Other"]
[null,null,null,null,null,null,null,null,null,null,null,null,null,null,null,null,null,null,null,null,null,null,null,null,null,null,"Q54 Birmingham And The Black Country Area Team","HEART OF ENGLAND NHS FOUNDATION TRUST","Children & Family Services"]
[null,null,null,null,null,null,null,null,null,null,null,null,null,null,null,null,null,null,null,null,null,null,null,null,null,null,"Q54 Birmingham And The Black Country Area Team","HEART OF ENGLAND NHS FOUNDATION TRUST","Community Healthcare Other"]
[null,null,null,null,null,null,null,null,null,null,null,null,null,null,null,null,null,null,null,null,null,null,null,null,null,null,"Q54 Birmingham And The Black Country Area Team","HEART OF ENGLAND NHS FOUNDATION TRUST","Community Nursing Services"]
[null,null,null,null,null,null,null,null,null,null,null,null,null,null,null,null,null,null,null,null,null,null,null,null,null,null,"Q54 Birmingham And The Black Country Area Team","HEART OF ENGLAND NHS FOUNDATION TRUST","Rehabilitation & Therapy Services"]
[null,null,null,null,null,null,null,null,null,null,null,null,null,null,null,null,null,null,null,null,null,null,null,null,null,null,"Q54 Birmingham And The Black Country Area Team","HEART OF ENGLAND NHS FOUNDATION TRUST","Specialist Services"]
[null,null,null,null,null,null,null,null,null,null,null,null,null,null,null,null,null,null,null,null,null,null,null,null,null,null,"Q54 Birmingham And The Black Country Area Team","THE DUDLEY GROUP NHS FOUNDATION TRUST","Community Nursing Services"]
[null,null,null,null,null,null,null,null,null,null,null,null,null,null,null,null,null,null,null,null,null,null,null,null,null,null,"Q54 Birmingham And The Black Country Area Team","THE DUDLEY GROUP NHS FOUNDATION TRUST","Rehabilitation & Therapy Services"]
[null,null,null,null,null,null,null,null,null,null,null,null,null,null,null,null,null,null,null,null,null,null,null,null,null,null,"Q54 Birmingham And The Black Country Area Team","THE DUDLEY GROUP NHS FOUNDATION TRUST","Specialist Services"]
[null,null,null,null,null,null,null,null,null,null,null,null,null,null,null,null,null,null,null,null,null,null,null,null,null,null,"Q54 Birmingham And The Black Country Area Team","THE ROYAL WOLVERHAMPTON NHS TRUST","Community Healthcare Other"]
[null,null,null,null,null,null,null,null,null,null,null,null,null,null,null,null,null,null,null,null,null,null,null,null,null,null,"Q54 Birmingham And The Black Country Area Team","WALSALL HEALTHCARE NHS TRUST","Children & Family Services"]
[null,null,null,null,null,null,null,null,null,null,null,null,null,null,null,null,null,null,null,null,null,null,null,null,null,null,"Q54 Birmingham And The Black Country Area Team","WALSALL HEALTHCARE NHS TRUST","Community Healthcare Other"]
[null,null,null,null,null,null,null,null,null,null,null,null,null,null,null,null,null,null,null,null,null,null,null,null,null,null,"Q54 Birmingham And The Black Country Area Team","WALSALL HEALTHCARE NHS TRUST","Community Inpatient Services"]
[null,null,null,null,null,null,null,null,null,null,null,null,null,null,null,null,null,null,null,null,null,null,null,null,null,null,"Q54 Birmingham And The Black Country Area Team","WALSALL HEALTHCARE NHS TRUST","Community Nursing Services"]
[null,null,null,null,null,null,null,null,null,null,null,null,null,null,null,null,null,null,null,null,null,null,null,null,null,null,"Q54 Birmingham And The Black Country Area Team","WALSALL HEALTHCARE NHS TRUST","Rehabilitation & Therapy Services"]
[null,null,null,null,null,null,null,null,null,null,null,null,null,null,null,null,null,null,null,null,null,null,null,null,null,null,"Q54 Birmingham And The Black Country Area Team","WALSALL HEALTHCARE NHS TRUST","Specialist Services"]
[null,null,null,null,null,null,null,null,null,null,null,null,null,null,null,null,null,null,null,null,null,null,null,null,null,null,"Q55 Derbyshire And Nottinghamshire Area Team","DERBY HOSPITALS NHS FOUNDATION TRUST","Community Nursing Services"]
[null,null,null,null,null,null,null,null,null,null,null,null,null,null,null,null,null,null,null,null,null,null,null,null,null,null,"Q55 Derbyshire And Nottinghamshire Area Team","DERBYSHIRE COMMUNITY HEALTH SERVICES NHS FOUNDATION TRUST","Children & Family Services"]
[null,null,null,null,null,null,null,null,null,null,null,null,null,null,null,null,null,null,null,null,null,null,null,null,null,null,"Q55 Derbyshire And Nottinghamshire Area Team","DERBYSHIRE COMMUNITY HEALTH SERVICES NHS FOUNDATION TRUST","Community Healthcare Other"]
[null,null,null,null,null,null,null,null,null,null,null,null,null,null,null,null,null,null,null,null,null,null,null,null,null,null,"Q55 Derbyshire And Nottinghamshire Area Team","DERBYSHIRE COMMUNITY HEALTH SERVICES NHS FOUNDATION TRUST","Community Inpatient Services"]
[null,null,null,null,null,null,null,null,null,null,null,null,null,null,null,null,null,null,null,null,null,null,null,null,null,null,"Q55 Derbyshire And Nottinghamshire Area Team","DERBYSHIRE COMMUNITY HEALTH SERVICES NHS FOUNDATION TRUST","Community Nursing Services"]
[null,null,null,null,null,null,null,null,null,null,null,null,null,null,null,null,null,null,null,null,null,null,null,null,null,null,"Q55 Derbyshire And Nottinghamshire Area Team","DERBYSHIRE COMMUNITY HEALTH SERVICES NHS FOUNDATION TRUST","Rehabilitation & Therapy Services"]
[null,null,null,null,null,null,null,null,null,null,null,null,null,null,null,null,null,null,null,null,null,null,null,null,null,null,"Q55 Derbyshire And Nottinghamshire Area Team","DERBYSHIRE COMMUNITY HEALTH SERVICES NHS FOUNDATION TRUST","Specialist Services"]
[null,null,null,null,null,null,null,null,null,null,null,null,null,null,null,null,null,null,null,null,null,null,null,null,null,null,"Q55 Derbyshire And Nottinghamshire Area Team","DERBYSHIRE HEALTHCARE NHS FOUNDATION TRUST","Children & Family Services"]
[null,null,null,null,null,null,null,null,null,null,null,null,null,null,null,null,null,null,null,null,null,null,null,null,null,null,"Q55 Derbyshire And Nottinghamshire Area Team","NOTTINGHAM UNIVERSITY HOSPITALS NHS TRUST","Children & Family Services"]
[null,null,null,null,null,null,null,null,null,null,null,null,null,null,null,null,null,null,null,null,null,null,null,null,null,null,"Q55 Derbyshire And Nottinghamshire Area Team","NOTTINGHAM UNIVERSITY HOSPITALS NHS TRUST","Specialist Services"]
[null,null,null,null,null,null,null,null,null,null,null,null,null,null,null,null,null,null,null,null,null,null,null,null,null,null,"Q55 Derbyshire And Nottinghamshire Area Team","NOTTINGHAMSHIRE HEALTHCARE NHS FOUNDATION TRUST","Children & Family Services"]
[null,null,null,null,null,null,null,null,null,null,null,null,null,null,null,null,null,null,null,null,null,null,null,null,null,null,"Q55 Derbyshire And Nottinghamshire Area Team","NOTTINGHAMSHIRE HEALTHCARE NHS FOUNDATION TRUST","Community Inpatient Services"]
[null,null,null,null,null,null,null,null,null,null,null,null,null,null,null,null,null,null,null,null,null,null,null,null,null,null,"Q55 Derbyshire And Nottinghamshire Area Team","NOTTINGHAMSHIRE HEALTHCARE NHS FOUNDATION TRUST","Community Nursing Services"]
[null,null,null,null,null,null,null,null,null,null,null,null,null,null,null,null,null,null,null,null,null,null,null,null,null,null,"Q55 Derbyshire And Nottinghamshire Area Team","NOTTINGHAMSHIRE HEALTHCARE NHS FOUNDATION TRUST","Rehabilitation & Therapy Services"]
[null,null,null,null,null,null,null,null,null,null,null,null,null,null,null,null,null,null,null,null,null,null,null,null,null,null,"Q55 Derbyshire And Nottinghamshire Area Team","NOTTINGHAMSHIRE HEALTHCARE NHS FOUNDATION TRUST","Specialist Services"]
[null,null,null,null,null,null,null,null,null,null,null,null,null,null,null,null,null,null,null,null,null,null,null,null,null,null,"Q56 East Anglia Area Team","CAMBRIDGESHIRE AND PETERBOROUGH NHS FOUNDATION TRUST","Children & Family Services"]
[null,null,null,null,null,null,null,null,null,null,null,null,null,null,null,null,null,null,null,null,null,null,null,null,null,null,"Q56 East Anglia Area Team","CAMBRIDGESHIRE COMMUNITY SERVICES NHS TRUST","Children & Family Services"]
[null,null,null,null,null,null,null,null,null,null,null,null,null,null,null,null,null,null,null,null,null,null,null,null,null,null,"Q56 East Anglia Area Team","CAMBRIDGESHIRE COMMUNITY SERVICES NHS TRUST","Community Healthcare Other"]
[null,null,null,null,null,null,null,null,null,null,null,null,null,null,null,null,null,null,null,null,null,null,null,null,null,null,"Q56 East Anglia Area Team","CAMBRIDGESHIRE COMMUNITY SERVICES NHS TRUST","Community Inpatient Services"]
[null,null,null,null,null,null,null,null,null,null,null,null,null,null,null,null,null,null,null,null,null,null,null,null,null,null,"Q56 East Anglia Area Team","CAMBRIDGESHIRE COMMUNITY SERVICES NHS TRUST","Community Nursing Services"]
[null,null,null,null,null,null,null,null,null,null,null,null,null,null,null,null,null,null,null,null,null,null,null,null,null,null,"Q56 East Anglia Area Team","CAMBRIDGESHIRE COMMUNITY SERVICES NHS TRUST","Rehabilitation & Therapy Services"]
[null,null,null,null,null,null,null,null,null,null,null,null,null,null,null,null,null,null,null,null,null,null,null,null,null,null,"Q56 East Anglia Area Team","CAMBRIDGESHIRE COMMUNITY SERVICES NHS TRUST","Specialist Services"]
[null,null,null,null,null,null,null,null,null,null,null,null,null,null,null,null,null,null,null,null,null,null,null,null,null,null,"Q56 East Anglia Area Team","NORFOLK COMMUNITY HEALTH AND CARE NHS TRUST","Children & Family Services"]
[null,null,null,null,null,null,null,null,null,null,null,null,null,null,null,null,null,null,null,null,null,null,null,null,null,null,"Q56 East Anglia Area Team","NORFOLK COMMUNITY HEALTH AND CARE NHS TRUST","Community Healthcare Other"]
[null,null,null,null,null,null,null,null,null,null,null,null,null,null,null,null,null,null,null,null,null,null,null,null,null,null,"Q56 East Anglia Area Team","NORFOLK COMMUNITY HEALTH AND CARE NHS TRUST","Community Inpatient Services"]
[null,null,null,null,null,null,null,null,null,null,null,null,null,null,null,null,null,null,null,null,null,null,null,null,null,null,"Q56 East Anglia Area Team","NORFOLK COMMUNITY HEALTH AND CARE NHS TRUST","Community Nursing Services"]
[null,null,null,null,null,null,null,null,null,null,null,null,null,null,null,null,null,null,null,null,null,null,null,null,null,null,"Q56 East Anglia Area Team","NORFOLK COMMUNITY HEALTH AND CARE NHS TRUST","Rehabilitation & Therapy Services"]
[null,null,null,null,null,null,null,null,null,null,null,null,null,null,null,null,null,null,null,null,null,null,null,null,null,null,"Q56 East Anglia Area Team","NORFOLK COMMUNITY HEALTH AND CARE NHS TRUST","Specialist Services"]
[null,null,null,null,null,null,null,null,null,null,null,null,null,null,null,null,null,null,null,null,null,null,null,null,null,null,"Q57 Essex Area Team","SOUTH ESSEX PARTNERSHIP UNIVERSITY NHS FOUNDATION TRUST","Children & Family Services"]
[null,null,null,null,null,null,null,null,null,null,null,null,null,null,null,null,null,null,null,null,null,null,null,null,null,null,"Q57 Essex Area Team","SOUTH ESSEX PARTNERSHIP UNIVERSITY NHS FOUNDATION TRUST","Community Inpatient Services"]
[null,null,null,null,null,null,null,null,null,null,null,null,null,null,null,null,null,null,null,null,null,null,null,null,null,null,"Q57 Essex Area Team","SOUTH ESSEX PARTNERSHIP UNIVERSITY NHS FOUNDATION TRUST","Community Nursing Services"]
[null,null,null,null,null,null,null,null,null,null,null,null,null,null,null,null,null,null,null,null,null,null,null,null,null,null,"Q57 Essex Area Team","SOUTH ESSEX PARTNERSHIP UNIVERSITY NHS FOUNDATION TRUST","Rehabilitation & Therapy Services"]
[null,null,null,null,null,null,null,null,null,null,null,null,null,null,null,null,null,null,null,null,null,null,null,null,null,null,"Q57 Essex Area Team","SOUTH ESSEX PARTNERSHIP UNIVERSITY NHS FOUNDATION TRUST","Specialist Services"]
[null,null,null,null,null,null,null,null,null,null,null,null,null,null,null,null,null,null,null,null,null,null,null,null,null,null,"Q58 Hertfordshire And The South Midlands Area Team","HERTFORDSHIRE COMMUNITY NHS TRUST","Children & Family Services"]
[null,null,null,null,null,null,null,null,null,null,null,null,null,null,null,null,null,null,null,null,null,null,null,null,null,null,"Q58 Hertfordshire And The South Midlands Area Team","HERTFORDSHIRE COMMUNITY NHS TRUST","Community Healthcare Other"]
[null,null,null,null,null,null,null,null,null,null,null,null,null,null,null,null,null,null,null,null,null,null,null,null,null,null,"Q58 Hertfordshire And The South Midlands Area Team","HERTFORDSHIRE COMMUNITY NHS TRUST","Community Inpatient Services"]
[null,null,null,null,null,null,null,null,null,null,null,null,null,null,null,null,null,null,null,null,null,null,null,null,null,null,"Q58 Hertfordshire And The South Midlands Area Team","HERTFORDSHIRE COMMUNITY NHS TRUST","Community Nursing Services"]
[null,null,null,null,null,null,null,null,null,null,null,null,null,null,null,null,null,null,null,null,null,null,null,null,null,null,"Q58 Hertfordshire And The South Midlands Area Team","HERTFORDSHIRE COMMUNITY NHS TRUST","Rehabilitation & Therapy Services"]
[null,null,null,null,null,null,null,null,null,null,null,null,null,null,null,null,null,null,null,null,null,null,null,null,null,null,"Q58 Hertfordshire And The South Midlands Area Team","HERTFORDSHIRE COMMUNITY NHS TRUST","Specialist Services"]
[null,null,null,null,null,null,null,null,null,null,null,null,null,null,null,null,null,null,null,null,null,null,null,null,null,null,"Q58 Hertfordshire And The South Midlands Area Team","NORTHAMPTONSHIRE HEALTHCARE NHS FOUNDATION TRUST","Children & Family Services"]
[null,null,null,null,null,null,null,null,null,null,null,null,null,null,null,null,null,null,null,null,null,null,null,null,null,null,"Q58 Hertfordshire And The South Midlands Area Team","NORTHAMPTONSHIRE HEALTHCARE NHS FOUNDATION TRUST","Community Healthcare Other"]
[null,null,null,null,null,null,null,null,null,null,null,null,null,null,null,null,null,null,null,null,null,null,null,null,null,null,"Q58 Hertfordshire And The South Midlands Area Team","NORTHAMPTONSHIRE HEALTHCARE NHS FOUNDATION TRUST","Community Inpatient Services"]
[null,null,null,null,null,null,null,null,null,null,null,null,null,null,null,null,null,null,null,null,null,null,null,null,null,null,"Q58 Hertfordshire And The South Midlands Area Team","NORTHAMPTONSHIRE HEALTHCARE NHS FOUNDATION TRUST","Community Nursing Services"]
[null,null,null,null,null,null,null,null,null,null,null,null,null,null,null,null,null,null,null,null,null,null,null,null,null,null,"Q58 Hertfordshire And The South Midlands Area Team","NORTHAMPTONSHIRE HEALTHCARE NHS FOUNDATION TRUST","Rehabilitation & Therapy Services"]
[null,null,null,null,null,null,null,null,null,null,null,null,null,null,null,null,null,null,null,null,null,null,null,null,null,null,"Q58 Hertfordshire And The South Midlands Area Team","NORTHAMPTONSHIRE HEALTHCARE NHS FOUNDATION TRUST","Specialist Services"]
[null,null,null,null,null,null,null,null,null,null,null,null,null,null,null,null,null,null,null,null,null,null,null,null,null,null,"Q59 Leicestershire And Lincolnshire Area Team","LEICESTERSHIRE PARTNERSHIP NHS TRUST","Children & Family Services"]
[null,null,null,null,null,null,null,null,null,null,null,null,null,null,null,null,null,null,null,null,null,null,null,null,null,null,"Q59 Leicestershire And Lincolnshire Area Team","LEICESTERSHIRE PARTNERSHIP NHS TRUST","Community Healthcare Other"]
[null,null,null,null,null,null,null,null,null,null,null,null,null,null,null,null,null,null,null,null,null,null,null,null,null,null,"Q59 Leicestershire And Lincolnshire Area Team","LEICESTERSHIRE PARTNERSHIP NHS TRUST","Community Inpatient Services"]
[null,null,null,null,null,null,null,null,null,null,null,null,null,null,null,null,null,null,null,null,null,null,null,null,null,null,"Q59 Leicestershire And Lincolnshire Area Team","LEICESTERSHIRE PARTNERSHIP NHS TRUST","Community Nursing Services"]
[null,null,null,null,null,null,null,null,null,null,null,null,null,null,null,null,null,null,null,null,null,null,null,null,null,null,"Q59 Leicestershire And Lincolnshire Area Team","LEICESTERSHIRE PARTNERSHIP NHS TRUST","Rehabilitation & Therapy Services"]
[null,null,null,null,null,null,null,null,null,null,null,null,null,null,null,null,null,null,null,null,null,null,null,null,null,null,"Q59 Leicestershire And Lincolnshire Area Team","LEICESTERSHIRE PARTNERSHIP NHS TRUST","Specialist Services"]
[null,null,null,null,null,null,null,null,null,null,null,null,null,null,null,null,null,null,null,null,null,null,null,null,null,null,"Q59 Leicestershire And Lincolnshire Area Team","LINCOLNSHIRE COMMUNITY HEALTH SERVICES NHS TRUST","Children & Family Services"]
[null,null,null,null,null,null,null,null,null,null,null,null,null,null,null,null,null,null,null,null,null,null,null,null,null,null,"Q59 Leicestershire And Lincolnshire Area Team","LINCOLNSHIRE COMMUNITY HEALTH SERVICES NHS TRUST","Community Healthcare Other"]
[null,null,null,null,null,null,null,null,null,null,null,null,null,null,null,null,null,null,null,null,null,null,null,null,null,null,"Q59 Leicestershire And Lincolnshire Area Team","LINCOLNSHIRE COMMUNITY HEALTH SERVICES NHS TRUST","Community Inpatient Services"]
[null,null,null,null,null,null,null,null,null,null,null,null,null,null,null,null,null,null,null,null,null,null,null,null,null,null,"Q59 Leicestershire And Lincolnshire Area Team","LINCOLNSHIRE COMMUNITY HEALTH SERVICES NHS TRUST","Community Nursing Services"]
[null,null,null,null,null,null,null,null,null,null,null,null,null,null,null,null,null,null,null,null,null,null,null,null,null,null,"Q59 Leicestershire And Lincolnshire Area Team","LINCOLNSHIRE COMMUNITY HEALTH SERVICES NHS TRUST","Rehabilitation & Therapy Services"]
[null,null,null,null,null,null,null,null,null,null,null,null,null,null,null,null,null,null,null,null,null,null,null,null,null,null,"Q59 Leicestershire And Lincolnshire Area Team","LINCOLNSHIRE COMMUNITY HEALTH SERVICES NHS TRUST","Specialist Services"]
[null,null,null,null,null,null,null,null,null,null,null,null,null,null,null,null,null,null,null,null,null,null,null,null,null,null,"Q60 Shropshire And Staffordshire Area Team","SHROPSHIRE COMMUNITY HEALTH NHS TRUST","Children & Family Services"]
[null,null,null,null,null,null,null,null,null,null,null,null,null,null,null,null,null,null,null,null,null,null,null,null,null,null,"Q60 Shropshire And Staffordshire Area Team","SHROPSHIRE COMMUNITY HEALTH NHS TRUST","Community Healthcare Other"]
[null,null,null,null,null,null,null,null,null,null,null,null,null,null,null,null,null,null,null,null,null,null,null,null,null,null,"Q60 Shropshire And Staffordshire Area Team","SHROPSHIRE COMMUNITY HEALTH NHS TRUST","Community Inpatient Services"]
[null,null,null,null,null,null,null,null,null,null,null,null,null,null,null,null,null,null,null,null,null,null,null,null,null,null,"Q60 Shropshire And Staffordshire Area Team","SHROPSHIRE COMMUNITY HEALTH NHS TRUST","Community Nursing Services"]
[null,null,null,null,null,null,null,null,null,null,null,null,null,null,null,null,null,null,null,null,null,null,null,null,null,null,"Q60 Shropshire And Staffordshire Area Team","SHROPSHIRE COMMUNITY HEALTH NHS TRUST","Rehabilitation & Therapy Services"]
[null,null,null,null,null,null,null,null,null,null,null,null,null,null,null,null,null,null,null,null,null,null,null,null,null,null,"Q60 Shropshire And Staffordshire Area Team","SHROPSHIRE COMMUNITY HEALTH NHS TRUST","Specialist Services"]
[null,null,null,null,null,null,null,null,null,null,null,null,null,null,null,null,null,null,null,null,null,null,null,null,null,null,"Q60 Shropshire And Staffordshire Area Team","SOUTH STAFFORDSHIRE AND SHROPSHIRE HEALTHCARE NHS FOUNDATION TRUST","Children & Family Services"]
[null,null,null,null,null,null,null,null,null,null,null,null,null,null,null,null,null,null,null,null,null,null,null,null,null,null,"Q60 Shropshire And Staffordshire Area Team","STAFFORDSHIRE AND STOKE ON TRENT PARTNERSHIP NHS TRUST","Children & Family Services"]
[null,null,null,null,null,null,null,null,null,null,null,null,null,null,null,null,null,null,null,null,null,null,null,null,null,null,"Q60 Shropshire And Staffordshire Area Team","STAFFORDSHIRE AND STOKE ON TRENT PARTNERSHIP NHS TRUST","Community Healthcare Other"]
[null,null,null,null,null,null,null,null,null,null,null,null,null,null,null,null,null,null,null,null,null,null,null,null,null,null,"Q60 Shropshire And Staffordshire Area Team","STAFFORDSHIRE AND STOKE ON TRENT PARTNERSHIP NHS TRUST","Community Inpatient Services"]
[null,null,null,null,null,null,null,null,null,null,null,null,null,null,null,null,null,null,null,null,null,null,null,null,null,null,"Q60 Shropshire And Staffordshire Area Team","STAFFORDSHIRE AND STOKE ON TRENT PARTNERSHIP NHS TRUST","Community Nursing Services"]
[null,null,null,null,null,null,null,null,null,null,null,null,null,null,null,null,null,null,null,null,null,null,null,null,null,null,"Q60 Shropshire And Staffordshire Area Team","STAFFORDSHIRE AND STOKE ON TRENT PARTNERSHIP NHS TRUST","Rehabilitation & Therapy Services"]
[null,null,null,null,null,null,null,null,null,null,null,null,null,null,null,null,null,null,null,null,null,null,null,null,null,null,"Q60 Shropshire And Staffordshire Area Team","STAFFORDSHIRE AND STOKE ON TRENT PARTNERSHIP NHS TRUST","Specialist Services"]
[null,null,null,null,null,null,null,null,null,null,null,null,null,null,null,null,null,null,null,null,null,null,null,null,null,null,"Q64 Bath, Gloucestershire, Swindon And Wiltshire Area Team","GLOUCESTERSHIRE CARE SERVICES NHS TRUST","Children & Family Services"]
[null,null,null,null,null,null,null,null,null,null,null,null,null,null,null,null,null,null,null,null,null,null,null,null,null,null,"Q64 Bath, Gloucestershire, Swindon And Wiltshire Area Team","GLOUCESTERSHIRE CARE SERVICES NHS TRUST","Community Healthcare Other"]
[null,null,null,null,null,null,null,null,null,null,null,null,null,null,null,null,null,null,null,null,null,null,null,null,null,null,"Q64 Bath, Gloucestershire, Swindon And Wiltshire Area Team","GLOUCESTERSHIRE CARE SERVICES NHS TRUST","Community Inpatient Services"]
[null,null,null,null,null,null,null,null,null,null,null,null,null,null,null,null,null,null,null,null,null,null,null,null,null,null,"Q64 Bath, Gloucestershire, Swindon And Wiltshire Area Team","GLOUCESTERSHIRE CARE SERVICES NHS TRUST","Community Nursing Services"]
[null,null,null,null,null,null,null,null,null,null,null,null,null,null,null,null,null,null,null,null,null,null,null,null,null,null,"Q64 Bath, Gloucestershire, Swindon And Wiltshire Area Team","GLOUCESTERSHIRE CARE SERVICES NHS TRUST","Rehabilitation & Therapy Services"]
[null,null,null,null,null,null,null,null,null,null,null,null,null,null,null,null,null,null,null,null,null,null,null,null,null,null,"Q64 Bath, Gloucestershire, Swindon And Wiltshire Area Team","GLOUCESTERSHIRE CARE SERVICES NHS TRUST","Specialist Services"]
[null,null,null,null,null,null,null,null,null,null,null,null,null,null,null,null,null,null,null,null,null,null,null,null,null,null,"Q65 Bristol, North Somerset, Somerset And South Gloucestershire Area Team","SOMERSET PARTNERSHIP NHS FOUNDATION TRUST","Community Inpatient Services"]
[null,null,null,null,null,null,null,null,null,null,null,null,null,null,null,null,null,null,null,null,null,null,null,null,null,null,"Q65 Bristol, North Somerset, Somerset And South Gloucestershire Area Team","SOMERSET PARTNERSHIP NHS FOUNDATION TRUST","Rehabilitation & Therapy Services"]
[null,null,null,null,null,null,null,null,null,null,null,null,null,null,null,null,null,null,null,null,null,null,null,null,null,null,"Q65 Bristol, North Somerset, Somerset And South Gloucestershire Area Team","SOMERSET PARTNERSHIP NHS FOUNDATION TRUST","Specialist Services"]
[null,null,null,null,null,null,null,null,null,null,null,null,null,null,null,null,null,null,null,null,null,null,null,null,null,null,"Q66 Devon, Cornwall And Isles Of Scilly Area Team","CORNWALL PARTNERSHIP NHS FOUNDATION TRUST","Children & Family Services"]
[null,null,null,null,null,null,null,null,null,null,null,null,null,null,null,null,null,null,null,null,null,null,null,null,null,null,"Q66 Devon, Cornwall And Isles Of Scilly Area Team","NORTHERN DEVON HEALTHCARE NHS TRUST","Community Healthcare Other"]
[null,null,null,null,null,null,null,null,null,null,null,null,null,null,null,null,null,null,null,null,null,null,null,null,null,null,"Q66 Devon, Cornwall And Isles Of Scilly Area Team","NORTHERN DEVON HEALTHCARE NHS TRUST","Community Inpatient Services"]
[null,null,null,null,null,null,null,null,null,null,null,null,null,null,null,null,null,null,null,null,null,null,null,null,null,null,"Q66 Devon, Cornwall And Isles Of Scilly Area Team","NORTHERN DEVON HEALTHCARE NHS TRUST","Community Nursing Services"]
[null,null,null,null,null,null,null,null,null,null,null,null,null,null,null,null,null,null,null,null,null,null,null,null,null,null,"Q66 Devon, Cornwall And Isles Of Scilly Area Team","NORTHERN DEVON HEALTHCARE NHS TRUST","Rehabilitation & Therapy Services"]
[null,null,null,null,null,null,null,null,null,null,null,null,null,null,null,null,null,null,null,null,null,null,null,null,null,null,"Q66 Devon, Cornwall And Isles Of Scilly Area Team","NORTHERN DEVON HEALTHCARE NHS TRUST","Specialist Services"]
[null,null,null,null,null,null,null,null,null,null,null,null,null,null,null,null,null,null,null,null,null,null,null,null,null,null,"Q66 Devon, Cornwall And Isles Of Scilly Area Team","SOUTH WESTERN AMBULANCE SERVICE NHS FOUNDATION TRUST","Community Healthcare Other"]
[null,null,null,null,null,null,null,null,null,null,null,null,null,null,null,null,null,null,null,null,null,null,null,null,null,null,"Q66 Devon, Cornwall And Isles Of Scilly Area Team","TORBAY AND SOUTHERN DEVON HEALTH AND CARE NHS TRUST","Community Healthcare Other"]
[null,null,null,null,null,null,null,null,null,null,null,null,null,null,null,null,null,null,null,null,null,null,null,null,null,null,"Q66 Devon, Cornwall And Isles Of Scilly Area Team","TORBAY AND SOUTHERN DEVON HEALTH AND CARE NHS TRUST","Community Inpatient Services"]
[null,null,null,null,null,null,null,null,null,null,null,null,null,null,null,null,null,null,null,null,null,null,null,null,null,null,"Q66 Devon, Cornwall And Isles Of Scilly Area Team","TORBAY AND SOUTHERN DEVON HEALTH AND CARE NHS TRUST","Community Nursing Services"]
[null,null,null,null,null,null,null,null,null,null,null,null,null,null,null,null,null,null,null,null,null,null,null,null,null,null,"Q66 Devon, Cornwall And Isles Of Scilly Area Team","TORBAY AND SOUTHERN DEVON HEALTH AND CARE NHS TRUST","Rehabilitation & Therapy Services"]
[null,null,null,null,null,null,null,null,null,null,null,null,null,null,null,null,null,null,null,null,null,null,null,null,null,null,"Q67 Kent And Medway Area Team","KENT COMMUNITY HEALTH NHS FOUNDATION TRUST","Children & Family Services"]
[null,null,null,null,null,null,null,null,null,null,null,null,null,null,null,null,null,null,null,null,null,null,null,null,null,null,"Q67 Kent And Medway Area Team","KENT COMMUNITY HEALTH NHS FOUNDATION TRUST","Community Healthcare Other"]
[null,null,null,null,null,null,null,null,null,null,null,null,null,null,null,null,null,null,null,null,null,null,null,null,null,null,"Q67 Kent And Medway Area Team","KENT COMMUNITY HEALTH NHS FOUNDATION TRUST","Community Inpatient Services"]
[null,null,null,null,null,null,null,null,null,null,null,null,null,null,null,null,null,null,null,null,null,null,null,null,null,null,"Q67 Kent And Medway Area Team","KENT COMMUNITY HEALTH NHS FOUNDATION TRUST","Community Nursing Services"]
[null,null,null,null,null,null,null,null,null,null,null,null,null,null,null,null,null,null,null,null,null,null,null,null,null,null,"Q67 Kent And Medway Area Team","KENT COMMUNITY HEALTH NHS FOUNDATION TRUST","Rehabilitation & Therapy Services"]
[null,null,null,null,null,null,null,null,null,null,null,null,null,null,null,null,null,null,null,null,null,null,null,null,null,null,"Q67 Kent And Medway Area Team","KENT COMMUNITY HEALTH NHS FOUNDATION TRUST","Specialist Services"]
[null,null,null,null,null,null,null,null,null,null,null,null,null,null,null,null,null,null,null,null,null,null,null,null,null,null,"Q68 Surrey And Sussex Area Team","EAST SUSSEX HEALTHCARE NHS TRUST","Community Healthcare Other"]
[null,null,null,null,null,null,null,null,null,null,null,null,null,null,null,null,null,null,null,null,null,null,null,null,null,null,"Q68 Surrey And Sussex Area Team","EAST SUSSEX HEALTHCARE NHS TRUST","Community Inpatient Services"]
[null,null,null,null,null,null,null,null,null,null,null,null,null,null,null,null,null,null,null,null,null,null,null,null,null,null,"Q68 Surrey And Sussex Area Team","EAST SUSSEX HEALTHCARE NHS TRUST","Community Nursing Services"]
[null,null,null,null,null,null,null,null,null,null,null,null,null,null,null,null,null,null,null,null,null,null,null,null,null,null,"Q68 Surrey And Sussex Area Team","EAST SUSSEX HEALTHCARE NHS TRUST","Rehabilitation & Therapy Services"]
[null,null,null,null,null,null,null,null,null,null,null,null,null,null,null,null,null,null,null,null,null,null,null,null,null,null,"Q68 Surrey And Sussex Area Team","FRIMLEY HEALTH NHS FOUNDATION TRUST","Community Healthcare Other"]
[null,null,null,null,null,null,null,null,null,null,null,null,null,null,null,null,null,null,null,null,null,null,null,null,null,null,"Q68 Surrey And Sussex Area Team","FRIMLEY HEALTH NHS FOUNDATION TRUST","Rehabilitation & Therapy Services"]
[null,null,null,null,null,null,null,null,null,null,null,null,null,null,null,null,null,null,null,null,null,null,null,null,null,null,"Q68 Surrey And Sussex Area Team","SUSSEX COMMUNITY NHS TRUST","Children & Family Services"]
[null,null,null,null,null,null,null,null,null,null,null,null,null,null,null,null,null,null,null,null,null,null,null,null,null,null,"Q68 Surrey And Sussex Area Team","SUSSEX COMMUNITY NHS TRUST","Community Healthcare Other"]
[null,null,null,null,null,null,null,null,null,null,null,null,null,null,null,null,null,null,null,null,null,null,null,null,null,null,"Q68 Surrey And Sussex Area Team","SUSSEX COMMUNITY NHS TRUST","Community Inpatient Services"]
[null,null,null,null,null,null,null,null,null,null,null,null,null,null,null,null,null,null,null,null,null,null,null,null,null,null,"Q68 Surrey And Sussex Area Team","SUSSEX COMMUNITY NHS TRUST","Community Nursing Services"]
[null,null,null,null,null,null,null,null,null,null,null,null,null,null,null,null,null,null,null,null,null,null,null,null,null,null,"Q68 Surrey And Sussex Area Team","SUSSEX COMMUNITY NHS TRUST","Rehabilitation & Therapy Services"]
[null,null,null,null,null,null,null,null,null,null,null,null,null,null,null,null,null,null,null,null,null,null,null,null,null,null,"Q68 Surrey And Sussex Area Team","SUSSEX COMMUNITY NHS TRUST","Specialist Services"]
[null,null,null,null,null,null,null,null,null,null,null,null,null,null,null,null,null,null,null,null,null,null,null,null,null,null,"Q69 Thames Valley Area Team","BERKSHIRE HEALTHCARE NHS FOUNDATION TRUST","Children & Family Services"]
[null,null,null,null,null,null,null,null,null,null,null,null,null,null,null,null,null,null,null,null,null,null,null,null,null,null,"Q69 Thames Valley Area Team","BERKSHIRE HEALTHCARE NHS FOUNDATION TRUST","Community Healthcare Other"]
[null,null,null,null,null,null,null,null,null,null,null,null,null,null,null,null,null,null,null,null,null,null,null,null,null,null,"Q69 Thames Valley Area Team","BERKSHIRE HEALTHCARE NHS FOUNDATION TRUST","Community Inpatient Services"]
[null,null,null,null,null,null,null,null,null,null,null,null,null,null,null,null,null,null,null,null,null,null,null,null,null,null,"Q69 Thames Valley Area Team","BERKSHIRE HEALTHCARE NHS FOUNDATION TRUST","Community Nursing Services"]
[null,null,null,null,null,null,null,null,null,null,null,null,null,null,null,null,null,null,null,null,null,null,null,null,null,null,"Q69 Thames Valley Area Team","BERKSHIRE HEALTHCARE NHS FOUNDATION TRUST","Rehabilitation & Therapy Services"]
[null,null,null,null,null,null,null,null,null,null,null,null,null,null,null,null,null,null,null,null,null,null,null,null,null,null,"Q69 Thames Valley Area Team","BERKSHIRE HEALTHCARE NHS FOUNDATION TRUST","Specialist Services"]
[null,null,null,null,null,null,null,null,null,null,null,null,null,null,null,null,null,null,null,null,null,null,null,null,null,null,"Q69 Thames Valley Area Team","BUCKINGHAMSHIRE HEALTHCARE NHS TRUST","Community Inpatient Services"]
[null,null,null,null,null,null,null,null,null,null,null,null,null,null,null,null,null,null,null,null,null,null,null,null,null,null,"Q69 Thames Valley Area Team","BUCKINGHAMSHIRE HEALTHCARE NHS TRUST","Community Nursing Services"]
[null,null,null,null,null,null,null,null,null,null,null,null,null,null,null,null,null,null,null,null,null,null,null,null,null,null,"Q69 Thames Valley Area Team","OXFORD HEALTH NHS FOUNDATION TRUST","Children & Family Services"]
[null,null,null,null,null,null,null,null,null,null,null,null,null,null,null,null,null,null,null,null,null,null,null,null,null,null,"Q69 Thames Valley Area Team","OXFORD HEALTH NHS FOUNDATION TRUST","Community Healthcare Other"]
[null,null,null,null,null,null,null,null,null,null,null,null,null,null,null,null,null,null,null,null,null,null,null,null,null,null,"Q69 Thames Valley Area Team","OXFORD HEALTH NHS FOUNDATION TRUST","Community Inpatient Services"]
[null,null,null,null,null,null,null,null,null,null,null,null,null,null,null,null,null,null,null,null,null,null,null,null,null,null,"Q69 Thames Valley Area Team","OXFORD HEALTH NHS FOUNDATION TRUST","Community Nursing Services"]
[null,null,null,null,null,null,null,null,null,null,null,null,null,null,null,null,null,null,null,null,null,null,null,null,null,null,"Q69 Thames Valley Area Team","OXFORD HEALTH NHS FOUNDATION TRUST","Rehabilitation & Therapy Services"]
[null,null,null,null,null,null,null,null,null,null,null,null,null,null,null,null,null,null,null,null,null,null,null,null,null,null,"Q69 Thames Valley Area Team","OXFORD HEALTH NHS FOUNDATION TRUST","Specialist Services"]
[null,null,null,null,null,null,null,null,null,null,null,null,null,null,null,null,null,null,null,null,null,null,null,null,null,null,"Q70 Wessex Area Team","DORSET HEALTHCARE UNIVERSITY NHS FOUNDATION TRUST","Children & Family Services"]
[null,null,null,null,null,null,null,null,null,null,null,null,null,null,null,null,null,null,null,null,null,null,null,null,null,null,"Q70 Wessex Area Team","DORSET HEALTHCARE UNIVERSITY NHS FOUNDATION TRUST","Community Healthcare Other"]
[null,null,null,null,null,null,null,null,null,null,null,null,null,null,null,null,null,null,null,null,null,null,null,null,null,null,"Q70 Wessex Area Team","DORSET HEALTHCARE UNIVERSITY NHS FOUNDATION TRUST","Community Inpatient Services"]
[null,null,null,null,null,null,null,null,null,null,null,null,null,null,null,null,null,null,null,null,null,null,null,null,null,null,"Q70 Wessex Area Team","DORSET HEALTHCARE UNIVERSITY NHS FOUNDATION TRUST","Community Nursing Services"]
[null,null,null,null,null,null,null,null,null,null,null,null,null,null,null,null,null,null,null,null,null,null,null,null,null,null,"Q70 Wessex Area Team","DORSET HEALTHCARE UNIVERSITY NHS FOUNDATION TRUST","Rehabilitation & Therapy Services"]
[null,null,null,null,null,null,null,null,null,null,null,null,null,null,null,null,null,null,null,null,null,null,null,null,null,null,"Q70 Wessex Area Team","DORSET HEALTHCARE UNIVERSITY NHS FOUNDATION TRUST","Specialist Services"]
[null,null,null,null,null,null,null,null,null,null,null,null,null,null,null,null,null,null,null,null,null,null,null,null,null,null,"Q70 Wessex Area Team","ISLE OF WIGHT NHS TRUST","Community Inpatient Services"]
[null,null,null,null,null,null,null,null,null,null,null,null,null,null,null,null,null,null,null,null,null,null,null,null,null,null,"Q70 Wessex Area Team","ISLE OF WIGHT NHS TRUST","Community Nursing Services"]
[null,null,null,null,null,null,null,null,null,null,null,null,null,null,null,null,null,null,null,null,null,null,null,null,null,null,"Q70 Wessex Area Team","ISLE OF WIGHT NHS TRUST","Rehabilitation & Therapy Services"]
[null,null,null,null,null,null,null,null,null,null,null,null,null,null,null,null,null,null,null,null,null,null,null,null,null,null,"Q70 Wessex Area Team","ISLE OF WIGHT NHS TRUST","Specialist Services"]
[null,null,null,null,null,null,null,null,null,null,null,null,null,null,null,null,null,null,null,null,null,null,null,null,null,null,"Q70 Wessex Area Team","SOLENT NHS TRUST","Children & Family Services"]
[null,null,null,null,null,null,null,null,null,null,null,null,null,null,null,null,null,null,null,null,null,null,null,null,null,null,"Q70 Wessex Area Team","SOLENT NHS TRUST","Community Healthcare Other"]
[null,null,null,null,null,null,null,null,null,null,null,null,null,null,null,null,null,null,null,null,null,null,null,null,null,null,"Q70 Wessex Area Team","SOLENT NHS TRUST","Community Inpatient Services"]
[null,null,null,null,null,null,null,null,null,null,null,null,null,null,null,null,null,null,null,null,null,null,null,null,null,null,"Q70 Wessex Area Team","SOLENT NHS TRUST","Community Nursing Services"]
[null,null,null,null,null,null,null,null,null,null,null,null,null,null,null,null,null,null,null,null,null,null,null,null,null,null,"Q70 Wessex Area Team","SOLENT NHS TRUST","Rehabilitation & Therapy Services"]
[null,null,null,null,null,null,null,null,null,null,null,null,null,null,null,null,null,null,null,null,null,null,null,null,null,null,"Q70 Wessex Area Team","SOLENT NHS TRUST","Specialist Services"]
[null,null,null,null,null,null,null,null,null,null,null,null,null,null,null,null,null,null,null,null,null,null,null,null,null,null,"Q70 Wessex Area Team","SOUTHERN HEALTH NHS FOUNDATION TRUST","Children & Family Services"]
[null,null,null,null,null,null,null,null,null,null,null,null,null,null,null,null,null,null,null,null,null,null,null,null,null,null,"Q70 Wessex Area Team","SOUTHERN HEALTH NHS FOUNDATION TRUST","Community Healthcare Other"]
[null,null,null,null,null,null,null,null,null,null,null,null,null,null,null,null,null,null,null,null,null,null,null,null,null,null,"Q70 Wessex Area Team","SOUTHERN HEALTH NHS FOUNDATION TRUST","Community Inpatient Services"]
[null,null,null,null,null,null,null,null,null,null,null,null,null,null,null,null,null,null,null,null,null,null,null,null,null,null,"Q70 Wessex Area Team","SOUTHERN HEALTH NHS FOUNDATION TRUST","Community Nursing Services"]
[null,null,null,null,null,null,null,null,null,null,null,null,null,null,null,null,null,null,null,null,null,null,null,null,null,null,"Q70 Wessex Area Team","SOUTHERN HEALTH NHS FOUNDATION TRUST","Rehabilitation & Therapy Services"]
[null,null,null,null,null,null,null,null,null,null,null,null,null,null,null,null,null,null,null,null,null,null,null,null,null,null,"Q70 Wessex Area Team","SOUTHERN HEALTH NHS FOUNDATION TRUST","Specialist Services"]
[null,null,null,null,null,null,null,null,null,null,null,null,null,null,null,null,null,null,null,null,null,null,null,null,null,null,"Q71 London Area Team","BARNET, ENFIELD AND HARINGEY MENTAL HEALTH NHS TRUST","Children & Family Services"]
[null,null,null,null,null,null,null,null,null,null,null,null,null,null,null,null,null,null,null,null,null,null,null,null,null,null,"Q71 London Area Team","BARNET, ENFIELD AND HARINGEY MENTAL HEALTH NHS TRUST","Community Inpatient Services"]
[null,null,null,null,null,null,null,null,null,null,null,null,null,null,null,null,null,null,null,null,null,null,null,null,null,null,"Q71 London Area Team","BARNET, ENFIELD AND HARINGEY MENTAL HEALTH NHS TRUST","Community Nursing Services"]
[null,null,null,null,null,null,null,null,null,null,null,null,null,null,null,null,null,null,null,null,null,null,null,null,null,null,"Q71 London Area Team","BARNET, ENFIELD AND HARINGEY MENTAL HEALTH NHS TRUST","Rehabilitation & Therapy Services"]
[null,null,null,null,null,null,null,null,null,null,null,null,null,null,null,null,null,null,null,null,null,null,null,null,null,null,"Q71 London Area Team","BARNET, ENFIELD AND HARINGEY MENTAL HEALTH NHS TRUST","Specialist Services"]
[null,null,null,null,null,null,null,null,null,null,null,null,null,null,null,null,null,null,null,null,null,null,null,null,null,null,"Q71 London Area Team","BARTS HEALTH NHS TRUST","Community Healthcare Other"]
[null,null,null,null,null,null,null,null,null,null,null,null,null,null,null,null,null,null,null,null,null,null,null,null,null,null,"Q71 London Area Team","BARTS HEALTH NHS TRUST","Community Nursing Services"]
[null,null,null,null,null,null,null,null,null,null,null,null,null,null,null,null,null,null,null,null,null,null,null,null,null,null,"Q71 London Area Team","BARTS HEALTH NHS TRUST","Rehabilitation & Therapy Services"]
[null,null,null,null,null,null,null,null,null,null,null,null,null,null,null,null,null,null,null,null,null,null,null,null,null,null,"Q71 London Area Team","BARTS HEALTH NHS TRUST","Specialist Services"]
[null,null,null,null,null,null,null,null,null,null,null,null,null,null,null,null,null,null,null,null,null,null,null,null,null,null,"Q71 London Area Team","CENTRAL AND NORTH WEST LONDON NHS FOUNDATION TRUST","Children & Family Services"]
[null,null,null,null,null,null,null,null,null,null,null,null,null,null,null,null,null,null,null,null,null,null,null,null,null,null,"Q71 London Area Team","CENTRAL AND NORTH WEST LONDON NHS FOUNDATION TRUST","Community Inpatient Services"]
[null,null,null,null,null,null,null,null,null,null,null,null,null,null,null,null,null,null,null,null,null,null,null,null,null,null,"Q71 London Area Team","CENTRAL AND NORTH WEST LONDON NHS FOUNDATION TRUST","Community Nursing Services"]
[null,null,null,null,null,null,null,null,null,null,null,null,null,null,null,null,null,null,null,null,null,null,null,null,null,null,"Q71 London Area Team","CENTRAL AND NORTH WEST LONDON NHS FOUNDATION TRUST","Rehabilitation & Therapy Services"]
[null,null,null,null,null,null,null,null,null,null,null,null,null,null,null,null,null,null,null,null,null,null,null,null,null,null,"Q71 London Area Team","CENTRAL AND NORTH WEST LONDON NHS FOUNDATION TRUST","Specialist Services"]
[null,null,null,null,null,null,null,null,null,null,null,null,null,null,null,null,null,null,null,null,null,null,null,null,null,null,"Q71 London Area Team","CENTRAL LONDON COMMUNITY HEALTHCARE NHS TRUST","Children & Family Services"]
[null,null,null,null,null,null,null,null,null,null,null,null,null,null,null,null,null,null,null,null,null,null,null,null,null,null,"Q71 London Area Team","CENTRAL LONDON COMMUNITY HEALTHCARE NHS TRUST","Community Healthcare Other"]
[null,null,null,null,null,null,null,null,null,null,null,null,null,null,null,null,null,null,null,null,null,null,null,null,null,null,"Q71 London Area Team","CENTRAL LONDON COMMUNITY HEALTHCARE NHS TRUST","Community Inpatient Services"]
[null,null,null,null,null,null,null,null,null,null,null,null,null,null,null,null,null,null,null,null,null,null,null,null,null,null,"Q71 London Area Team","CENTRAL LONDON COMMUNITY HEALTHCARE NHS TRUST","Community Nursing Services"]
[null,null,null,null,null,null,null,null,null,null,null,null,null,null,null,null,null,null,null,null,null,null,null,null,null,null,"Q71 London Area Team","CENTRAL LONDON COMMUNITY HEALTHCARE NHS TRUST","Rehabilitation & Therapy Services"]
[null,null,null,null,null,null,null,null,null,null,null,null,null,null,null,null,null,null,null,null,null,null,null,null,null,null,"Q71 London Area Team","CENTRAL LONDON COMMUNITY HEALTHCARE NHS TRUST","Specialist Services"]
[null,null,null,null,null,null,null,null,null,null,null,null,null,null,null,null,null,null,null,null,null,null,null,null,null,null,"Q71 London Area Team","CROYDON HEALTH SERVICES NHS TRUST","Children & Family Services"]
[null,null,null,null,null,null,null,null,null,null,null,null,null,null,null,null,null,null,null,null,null,null,null,null,null,null,"Q71 London Area Team","CROYDON HEALTH SERVICES NHS TRUST","Community Nursing Services"]
[null,null,null,null,null,null,null,null,null,null,null,null,null,null,null,null,null,null,null,null,null,null,null,null,null,null,"Q71 London Area Team","CROYDON HEALTH SERVICES NHS TRUST","Rehabilitation & Therapy Services"]
[null,null,null,null,null,null,null,null,null,null,null,null,null,null,null,null,null,null,null,null,null,null,null,null,null,null,"Q71 London Area Team","CROYDON HEALTH SERVICES NHS TRUST","Specialist Services"]
[null,null,null,null,null,null,null,null,null,null,null,null,null,null,null,null,null,null,null,null,null,null,null,null,null,null,"Q71 London Area Team","GUY'S AND ST THOMAS' NHS FOUNDATION TRUST","Children & Family Services"]
[null,null,null,null,null,null,null,null,null,null,null,null,null,null,null,null,null,null,null,null,null,null,null,null,null,null,"Q71 London Area Team","GUY'S AND ST THOMAS' NHS FOUNDATION TRUST","Community Inpatient Services"]
[null,null,null,null,null,null,null,null,null,null,null,null,null,null,null,null,null,null,null,null,null,null,null,null,null,null,"Q71 London Area Team","GUY'S AND ST THOMAS' NHS FOUNDATION TRUST","Community Nursing Services"]
[null,null,null,null,null,null,null,null,null,null,null,null,null,null,null,null,null,null,null,null,null,null,null,null,null,null,"Q71 London Area Team","GUY'S AND ST THOMAS' NHS FOUNDATION TRUST","Rehabilitation & Therapy Services"]
[null,null,null,null,null,null,null,null,null,null,null,null,null,null,null,null,null,null,null,null,null,null,null,null,null,null,"Q71 London Area Team","GUY'S AND ST THOMAS' NHS FOUNDATION TRUST","Specialist Services"]
[null,null,null,null,null,null,null,null,null,null,null,null,null,null,null,null,null,null,null,null,null,null,null,null,null,null,"Q71 London Area Team","HOMERTON UNIVERSITY HOSPITAL NHS FOUNDATION TRUST","Community Nursing Services"]
[null,null,null,null,null,null,null,null,null,null,null,null,null,null,null,null,null,null,null,null,null,null,null,null,null,null,"Q71 London Area Team","HOMERTON UNIVERSITY HOSPITAL NHS FOUNDATION TRUST","Rehabilitation & Therapy Services"]
[null,null,null,null,null,null,null,null,null,null,null,null,null,null,null,null,null,null,null,null,null,null,null,null,null,null,"Q71 London Area Team","HOMERTON UNIVERSITY HOSPITAL NHS FOUNDATION TRUST","Specialist Services"]
[null,null,null,null,null,null,null,null,null,null,null,null,null,null,null,null,null,null,null,null,null,null,null,null,null,null,"Q71 London Area Team","HOUNSLOW AND RICHMOND COMMUNITY HEALTHCARE NHS TRUST","Children & Family Services"]
[null,null,null,null,null,null,null,null,null,null,null,null,null,null,null,null,null,null,null,null,null,null,null,null,null,null,"Q71 London Area Team","HOUNSLOW AND RICHMOND COMMUNITY HEALTHCARE NHS TRUST","Community Healthcare Other"]
[null,null,null,null,null,null,null,null,null,null,null,null,null,null,null,null,null,null,null,null,null,null,null,null,null,null,"Q71 London Area Team","HOUNSLOW AND RICHMOND COMMUNITY HEALTHCARE NHS TRUST","Community Inpatient Services"]
[null,null,null,null,null,null,null,null,null,null,null,null,null,null,null,null,null,null,null,null,null,null,null,null,null,null,"Q71 London Area Team","HOUNSLOW AND RICHMOND COMMUNITY HEALTHCARE NHS TRUST","Community Nursing Services"]
[null,null,null,null,null,null,null,null,null,null,null,null,null,null,null,null,null,null,null,null,null,null,null,null,null,null,"Q71 London Area Team","HOUNSLOW AND RICHMOND COMMUNITY HEALTHCARE NHS TRUST","Rehabilitation & Therapy Services"]
[null,null,null,null,null,null,null,null,null,null,null,null,null,null,null,null,null,null,null,null,null,null,null,null,null,null,"Q71 London Area Team","HOUNSLOW AND RICHMOND COMMUNITY HEALTHCARE NHS TRUST","Specialist Services"]
[null,null,null,null,null,null,null,null,null,null,null,null,null,null,null,null,null,null,null,null,null,null,null,null,null,null,"Q71 London Area Team","LEWISHAM AND GREENWICH NHS TRUST","Specialist Services"]
[null,null,null,null,null,null,null,null,null,null,null,null,null,null,null,null,null,null,null,null,null,null,null,null,null,null,"Q71 London Area Team","LONDON NORTH WEST HEALTHCARE NHS TRUST","Community Nursing Services"]
[null,null,null,null,null,null,null,null,null,null,null,null,null,null,null,null,null,null,null,null,null,null,null,null,null,null,"Q71 London Area Team","LONDON NORTH WEST HEALTHCARE NHS TRUST","Rehabilitation & Therapy Services"]
[null,null,null,null,null,null,null,null,null,null,null,null,null,null,null,null,null,null,null,null,null,null,null,null,null,null,"Q71 London Area Team","LONDON NORTH WEST HEALTHCARE NHS TRUST","Specialist Services"]
[null,null,null,null,null,null,null,null,null,null,null,null,null,null,null,null,null,null,null,null,null,null,null,null,null,null,"Q71 London Area Team","NORTH EAST LONDON NHS FOUNDATION TRUST","Children & Family Services"]
[null,null,null,null,null,null,null,null,null,null,null,null,null,null,null,null,null,null,null,null,null,null,null,null,null,null,"Q71 London Area Team","NORTH EAST LONDON NHS FOUNDATION TRUST","Community Healthcare Other"]
[null,null,null,null,null,null,null,null,null,null,null,null,null,null,null,null,null,null,null,null,null,null,null,null,null,null,"Q71 London Area Team","NORTH EAST LONDON NHS FOUNDATION TRUST","Community Inpatient Services"]
[null,null,null,null,null,null,null,null,null,null,null,null,null,null,null,null,null,null,null,null,null,null,null,null,null,null,"Q71 London Area Team","NORTH EAST LONDON NHS FOUNDATION TRUST","Community Nursing Services"]
[null,null,null,null,null,null,null,null,null,null,null,null,null,null,null,null,null,null,null,null,null,null,null,null,null,null,"Q71 London Area Team","NORTH EAST LONDON NHS FOUNDATION TRUST","Rehabilitation & Therapy Services"]
[null,null,null,null,null,null,null,null,null,null,null,null,null,null,null,null,null,null,null,null,null,null,null,null,null,null,"Q71 London Area Team","NORTH EAST LONDON NHS FOUNDATION TRUST","Specialist Services"]
[null,null,null,null,null,null,null,null,null,null,null,null,null,null,null,null,null,null,null,null,null,null,null,null,null,null,"Q71 London Area Team","OXLEAS NHS FOUNDATION TRUST","Children & Family Services"]
[null,null,null,null,null,null,null,null,null,null,null,null,null,null,null,null,null,null,null,null,null,null,null,null,null,null,"Q71 London Area Team","OXLEAS NHS FOUNDATION TRUST","Community Healthcare Other"]
[null,null,null,null,null,null,null,null,null,null,null,null,null,null,null,null,null,null,null,null,null,null,null,null,null,null,"Q71 London Area Team","OXLEAS NHS FOUNDATION TRUST","Community Inpatient Services"]
[null,null,null,null,null,null,null,null,null,null,null,null,null,null,null,null,null,null,null,null,null,null,null,null,null,null,"Q71 London Area Team","OXLEAS NHS FOUNDATION TRUST","Community Nursing Services"]
[null,null,null,null,null,null,null,null,null,null,null,null,null,null,null,null,null,null,null,null,null,null,null,null,null,null,"Q71 London Area Team","OXLEAS NHS FOUNDATION TRUST","Rehabilitation & Therapy Services"]
[null,null,null,null,null,null,null,null,null,null,null,null,null,null,null,null,null,null,null,null,null,null,null,null,null,null,"Q71 London Area Team","THE ROYAL MARSDEN NHS FOUNDATION TRUST","Children & Family Services"]
[null,null,null,null,null,null,null,null,null,null,null,null,null,null,null,null,null,null,null,null,null,null,null,null,null,null,"Q71 London Area Team","THE ROYAL MARSDEN NHS FOUNDATION TRUST","Community Nursing Services"]
[null,null,null,null,null,null,null,null,null,null,null,null,null,null,null,null,null,null,null,null,null,null,null,null,null,null,"Q71 London Area Team","THE ROYAL MARSDEN NHS FOUNDATION TRUST","Rehabilitation & Therapy Services"]
[null,null,null,null,null,null,null,null,null,null,null,null,null,null,null,null,null,null,null,null,null,null,null,null,null,null,"Q71 London Area Team","THE ROYAL MARSDEN NHS FOUNDATION TRUST","Specialist Services"]
[null,null,null,null,null,null,null,null,null,null,null,null,null,null,null,null,null,null,null,null,null,null,null,null,null,null,"Q71 London Area Team","THE WHITTINGTON HOSPITAL NHS TRUST","Children & Family Services"]
[null,null,null,null,null,null,null,null,null,null,null,null,null,null,null,null,null,null,null,null,null,null,null,null,null,null,"Q71 London Area Team","THE WHITTINGTON HOSPITAL NHS TRUST","Community Inpatient Services"]
[null,null,null,null,null,null,null,null,null,null,null,null,null,null,null,null,null,null,null,null,null,null,null,null,null,null,"Q71 London Area Team","THE WHITTINGTON HOSPITAL NHS TRUST","Community Nursing Services"]
[null,null,null,null,null,null,null,null,null,null,null,null,null,null,null,null,null,null,null,null,null,null,null,null,null,null,"Q71 London Area Team","THE WHITTINGTON HOSPITAL NHS TRUST","Rehabilitation & Therapy Services"]
[null,null,null,null,null,null,null,null,null,null,null,null,null,null,null,null,null,null,null,null,null,null,null,null,null,null,"Q71 London Area Team","THE WHITTINGTON HOSPITAL NHS TRUST","Specialist Services"]
[null,null,null,null,null,null,null,null,null,null,null,null,null,null,null,null,null,null,null,null,null,null,null,null,null,null,"Q71 London Area Team","WEST MIDDLESEX UNIVERSITY HOSPITAL NHS TRUST","Children & Family Services"]
[null,null,null,null,null,null,null,null,null,null,null,null,null,null,null,null,null,null,null,null,null,null,null,null,null,null,"Q71 London Area Team","WEST MIDDLESEX UNIVERSITY HOSPITAL NHS TRUST","Specialist Services"]